Workbook

Sheet Introduction
B3: KSU-Swine Farm Management Guide Budgets
B5: Excel spreadsheets for swine enterprise budgeting to evaluate potential income, costs and profitability
L8: Version- 12.7.2020
B28: INTRODUCTION
B29: The Kansas State University cost-return budgets were developed to serve as a barometer of profitability for various livestock industry enterprises. These budgets are NOT intended to represent any one operation. Each individual operation should adjust key inputs to reflect their own situation.
B31: INSTRUCTIONS FOR THE USER:
B32: Be sure to "Enable Content" and "Enable Macros" for the spreadsheet to function correctly. Blue values are inputs that should be changed from the defaults to match your operation. Black values are automatically calculated.
B37: FOR MORE INFORMATION:
B38: Developed by:
B40: Glynn T. Tonsor, Ph.D. | H40: Robin Reid
B41: Agricultural Economist | H41: Extension Associate
B42: Department of Agricultural Economics | H42: Department of Agricultural Economics
B43: Kansas State University | H43: Kansas State University
B44: gtonsor@k-state.edu | H44: robinreid@ksu.edu
B45: 785-532-1518 | H45: 785-532-0964
B47: ACKNOWLEDGEMENTS:
B48: The developers would like to thank the K-State Swine Team for their contributions: Dr. Joel DeRouchey, Dr. Mike Tokach, and Dr. Steve Dritz www.asi.k-state.edu/species/swine/
B51: Copyright 2020 AgManager.info, K-State Department of Agricultural Economics

Sheet Prices
A1: Current Prices | H1: 0
A2: One Year Out Prices | H2: 0
A3: Five Years Out Prices | H3: 0
B4: Current Prices | C4: 0 | D4: One Year Out Prices | E4: 0 | F4: 0 | G4: Five Years Out Prices | H4: 0
B5: (as of Dec. 7th, 2020) | C5: 0 | D5: (as of Dec. 7th, 2020) | E5: 0 | F5: 0 | G5: (Oct. 2020 USDA) | H5: 0
A14: Market Hogs ($/cwt) | B14: 44.75 | C14: 0 | D14: 46.082 | E14: 0 | F14: 0 | G14: 58.48 | H14: 0
A15: Weaned Pig ($/hd) | B15: 43.23 | C15: 0 | D15: 53.15201989 | E15: 0 | F15: 0 | G15: 57.9887021 | H15: 0
A16: Feeder Pig ($/hd) | B16: 54.43 | C16: 0 | D16: 66.53991154 | E16: 0 | F16: 0 | G16: 84.19475254 | H16: 0
A17: Cull Sows ($/cwt) | B17: 46.3 | C17: 0 | D17: 47.67813631 | E17: 0 | F17: 0 | G17: 60.50556425 | H17: 0
A18: Replacement Gilts ($/hd) | B18: 198.0625 | C18: 0 | D18: 203.9579022 | E18: 0 | F18: 0 | G18: 258.8311732 | H18: 0
H29: 0
A30: Swine Feed processing ($/ton) charge | B30: 17 | C30: 0 | D30: 17 | E30: 0 | F30: 0 | G30: 17 | H30: 0
A31: Corn ($/bu) | B31: 4.25 | C31: 0 | D31: 4.18 | E31: 0 | F31: 0 | G31: 3.55 | H31: 0
A32: Soybean Meal ($/ton) | B32: 380 | C32: 0 | D32: 334.6 | E32: 0 | F32: 0 | G32: 341 | H32: 0
A33: DDGS ($/ton) | B33: 210 | C33: 0 | D33: 206.5411765 | E33: 0 | F33: 0 | G33: 175.4117647 | H33: 0
A34: Other Feed Ingredients ($/lb, Farrow-Finish) | B34: 0.1081830803 | C34: 0 | D34: 0.1092649111 | E34: 0 | F34: 0 | G34: 0.1103467419 | H34: 0
A35: Other Feed Ingredients ($/lb, Farrow-Wean) | B35: 0.2027775282 | C35: 0 | D35: 0.2048053035 | E35: 0 | F35: 0 | G35: 0.2068330788 | H35: 0
A36: Other Feed Ingredients ($/lb, Wean-Finish) | B36: 0.2933742417 | C36: 0 | D36: 0.2963079841 | E36: 0 | F36: 0 | G36: 0.2992417265 | H36: 0
A37: Other Feed Ingredients ($/lb, Nursery) | B37: 0.3874027255 | C37: 0 | D37: 0.3912767528 | E37: 0 | F37: 0 | G37: 0.39515078 | H37: 0
A38: Other Feed Ingredients ($/lb, Finish) | B38: 0.2472088111 | C38: 0 | D38: 0.2496808992 | E38: 0 | F38: 0 | G38: 0.2521529873 | H38: 0
B40: 0 | C40: 0 | D40: 0 | E40: 0 | F40: 0 | G40: 0 | H40: 0 | I40: 0
A41: Corn, Yellow Dent | B41: 0.07589285714 | C41: USDA St. Joseph, MO SJ_GR851 Report (http://www.ams.usda.gov/mnreports/sj_gr851.txt) | D41: 0.07665178571 | E41: 0 | F41: 0 | G41: 0.07741071429 | H41: http://www.usda.gov/oce/commodity/projections/ | I41: $/lb
A42: Corn, Nutridense | B42: 0.048 | C42: USDA St. Joseph, MO SJ_GR210 Report (http://www.ams.usda.gov/mnreports/sj_gr210.txt) | D42: 0.04848 | E42: 0 | F42: 0 | G42: 0.04896 | H42: 0 | I42: $/lb
A43: Corn Bran | B43: 0 | C43: USDA St. Joseph, MO NW_GR112 Report (http://www.ams.usda.gov/mnreports/nw_gr112.txt) | D43: 0 | E43: 0 | F43: 0 | G43: 0 | H43: 0 | I43: $/lb
A44: Corn DDG | B44: 0 | C44: 0 | D44: 0 | E44: 0 | F44: 0 | G44: 0 | H44: 0 | I44: $/lb
A45: Corn DDGS, >10% Oil | B45: 0.125 | C45: 0 | D45: 0.12625 | E45: 0 | F45: 0 | G45: 0.1275 | H45: 0 | I45: $/lb
A46: Corn DDGS, >6 and <9% Oil | B46: 0.078 | C46: 0 | D46: 0.07878 | E46: 0 | F46: 0 | G46: 0.07956 | H46: 0 | I46: $/lb
A47: Corn DDGS, <4% Oil | B47: 0 | C47: 0 | D47: 0 | E47: 0 | F47: 0 | G47: 0 | H47: 0 | I47: $/lb
A48: Corn HP DDG | B48: 0.06 | C48: 0 | D48: 0.0606 | E48: 0 | F48: 0 | G48: 0.0612 | H48: 0 | I48: $/lb
A49: Soybean Meal, Dehull, Sol Extr2 | B49: 0 | C49: 0 | D49: 0 | E49: 0 | F49: 0 | G49: 0 | H49: 0 | I49: $/lb
A50: Soybean Meal, Dehulled, Expelled2 | B50: 0 | C50: 0 | D50: 0 | E50: 0 | F50: 0 | G50: 0 | H50: 0 | I50: $/lb
A51: Soybean Meal, Solvent Extracted2 | B51: 0 | C51: USDA St. Joseph, MO SJ_GR851 Report (http://www.ams.usda.gov/mnreports/sj_gr851.txt) | D51: 0 | E51: 0 | F51: 0 | G51: 0 | H51: 0 | I51: $/lb
A52: Corn Gluten Meal | B52: 0 | C52: USDA St. Joseph, MO SJ_GR210 Report (http://www.ams.usda.gov/mnreports/sj_gr210.txt) | D52: 0 | E52: 0 | F52: 0 | G52: 0 | H52: 0 | I52: $/lb
A53: Corn Grits, Hominy Feed | B53: 0.045 | C53: USDA St. Joseph, MO NW_GR112 Report (http://www.ams.usda.gov/mnreports/nw_gr112.txt) | D53: 0.04545 | E53: 0 | F53: 0 | G53: 0.0459 | H53: 0 | I53: $/lb
A54: Cotton Seeds, Fullfat | B54: 0 | C54: 0 | D54: 0 | E54: 0 | F54: 0 | G54: 0 | H54: 0 | I54: $/lb
A55: Cotton Seed Meal | B55: 0 | C55: 0 | D55: 0 | E55: 0 | F55: 0 | G55: 0 | H55: 0 | I55: $/lb
A56: Feather Meal | B56: 0 | C56: 0 | D56: 0 | E56: 0 | F56: 0 | G56: 0 | H56: 0 | I56: $/lb
A57: Fish Meal Combined | B57: 0.7 | C57: 0 | D57: 0.707 | E57: 0 | F57: 0 | G57: 0.714 | H57: 0 | I57: $/lb
A58: Flaxseed | B58: 0 | C58: 0 | D58: 0 | E58: 0 | F58: 0 | G58: 0 | H58: 0 | I58: $/lb
A59: Flaxseed Meal | B59: 0 | C59: 0 | D59: 0 | E59: 0 | F59: 0 | G59: 0 | H59: 0 | I59: $/lb
A60: Lupins | B60: 0 | C60: 0 | D60: 0 | E60: 0 | F60: 0 | G60: 0 | H60: 0 | I60: $/lb
A61: Meat Meal | B61: 0 | C61: USDA St. Joseph, MO SJ_GR851 Report (http://www.ams.usda.gov/mnreports/sj_gr851.txt) | D61: 0 | E61: 0 | F61: 0 | G61: 0 | H61: 0 | I61: $/lb
A62: Meat and Bone Meal, P >4% | B62: 0.15 | C62: USDA St. Joseph, MO SJ_GR210 Report (http://www.ams.usda.gov/mnreports/sj_gr210.txt) | D62: 0.1515 | E62: 0 | F62: 0 | G62: 0.153 | H62: 0 | I62: $/lb
A63: Milk, Casein | B63: 0 | C63: USDA St. Joseph, MO NW_GR112 Report (http://www.ams.usda.gov/mnreports/nw_gr112.txt) | D63: 0 | E63: 0 | F63: 0 | G63: 0 | H63: 0 | I63: $/lb
A64: Milk, Lactose | B64: 0.3 | C64: 0 | D64: 0.303 | E64: 0 | F64: 0 | G64: 0.306 | H64: 0 | I64: $/lb
A65: Milk, Skim Milk Powder | B65: 1.2 | C65: 0 | D65: 1.212 | E65: 0 | F65: 0 | G65: 1.224 | H65: 0 | I65: $/lb
A66: Milk, Whey Powder | B66: 0.55 | C66: 0 | D66: 0.5555 | E66: 0 | F66: 0 | G66: 0.561 | H66: 0 | I66: $/lb
A67: Milk, Whey Permeate, 85% lactose | B67: 0.45 | C67: 0 | D67: 0.4545 | E67: 0 | F67: 0 | G67: 0.459 | H67: 0 | I67: $/lb
A68: Milk, Whey Protein Concentrate | B68: 0 | C68: 0 | D68: 0 | E68: 0 | F68: 0 | G68: 0 | H68: 0 | I68: $/lb
A69: Millet | B69: 0 | C69: 0 | D69: 0 | E69: 0 | F69: 0 | G69: 0 | H69: 0 | I69: $/lb
A70: Molasses, Sugarbeet | B70: 0 | C70: 0 | D70: 0 | E70: 0 | F70: 0 | G70: 0 | H70: 0 | I70: $/lb
A71: Molasses, Sugarcane | B71: 0 | C71: USDA St. Joseph, MO SJ_GR851 Report (http://www.ams.usda.gov/mnreports/sj_gr851.txt) | D71: 0 | E71: 0 | F71: 0 | G71: 0 | H71: 0 | I71: $/lb
A72: Oats | B72: 0 | C72: USDA St. Joseph, MO SJ_GR210 Report (http://www.ams.usda.gov/mnreports/sj_gr210.txt) | D72: 0 | E72: 0 | F72: 0 | G72: 0 | H72: 0 | I72: $/lb
A73: Oats, Naked | B73: 0 | C73: USDA St. Joseph, MO NW_GR112 Report (http://www.ams.usda.gov/mnreports/nw_gr112.txt) | D73: 0 | E73: 0 | F73: 0 | G73: 0 | H73: 0 | I73: $/lb
A74: Oat Groats | B74: 0.175 | C74: 0 | D74: 0.17675 | E74: 0 | F74: 0 | G74: 0.1785 | H74: 0 | I74: $/lb
A75: Peanut Meal, Expelled | B75: 0 | C75: 0 | D75: 0 | E75: 0 | F75: 0 | G75: 0 | H75: 0 | I75: $/lb
A76: Peanut Meal, Extracted | B76: 0 | C76: 0 | D76: 0 | E76: 0 | F76: 0 | G76: 0 | H76: 0 | I76: $/lb
A77: Peas, Field Peas | B77: 0.08 | C77: 0 | D77: 0.0808 | E77: 0 | F77: 0 | G77: 0.0816 | H77: 0 | I77: $/lb
A78: Pea Protein Concentrate | B78: 0 | C78: 0 | D78: 0 | E78: 0 | F78: 0 | G78: 0 | H78: 0 | I78: $/lb
A79: Potato Protein Concentrate | B79: 0 | C79: 0 | D79: 0 | E79: 0 | F79: 0 | G79: 0 | H79: 0 | I79: $/lb
A80: Poultry Byproduct | B80: 0.12 | C80: 0 | D80: 0.1212 | E80: 0 | F80: 0 | G80: 0.1224 | H80: 0 | I80: $/lb
A81: Rice | B81: 0 | C81: USDA St. Joseph, MO SJ_GR851 Report (http://www.ams.usda.gov/mnreports/sj_gr851.txt) | D81: 0 | E81: 0 | F81: 0 | G81: 0 | H81: 0 | I81: $/lb
A82: Rice Bran | B82: 0 | C82: USDA St. Joseph, MO SJ_GR210 Report (http://www.ams.usda.gov/mnreports/sj_gr210.txt) | D82: 0 | E82: 0 | F82: 0 | G82: 0 | H82: 0 | I82: $/lb
A83: Rice Bran, Defatted | B83: 0 | C83: USDA St. Joseph, MO NW_GR112 Report (http://www.ams.usda.gov/mnreports/nw_gr112.txt) | D83: 0 | E83: 0 | F83: 0 | G83: 0 | H83: 0 | I83: $/lb
A84: Rice, Broken | B84: 0 | C84: 0 | D84: 0 | E84: 0 | F84: 0 | G84: 0 | H84: 0 | I84: $/lb
A85: Rye | B85: 0 | C85: 0 | D85: 0 | E85: 0 | F85: 0 | G85: 0 | H85: 0 | I85: $/lb
A86: Sesame Meal | B86: 0 | C86: 0 | D86: 0 | E86: 0 | F86: 0 | G86: 0 | H86: 0 | I86: $/lb
A87: Sorghum | B87: 0.1 | C87: 0 | D87: 0.101 | E87: 0 | F87: 0 | G87: 0.102 | H87: 0 | I87: $/lb
A88: Soybeans, Full Fat | B88: 0.2 | C88: 0 | D88: 0.202 | E88: 0 | F88: 0 | G88: 0.204 | H88: 0 | I88: $/lb
A89: Soybeans, High Protein, Full Fat | B89: 0 | C89: 0 | D89: 0 | E89: 0 | F89: 0 | G89: 0 | H89: 0 | I89: $/lb
A90: Soybeans, Low Oligosaccharide, Full Fat | B90: 0 | C90: 0 | D90: 0 | E90: 0 | F90: 0 | G90: 0 | H90: 0 | I90: $/lb
A91: Soybean Meal, High Protein, Expelled | B91: 0 | C91: USDA St. Joseph, MO SJ_GR851 Report (http://www.ams.usda.gov/mnreports/sj_gr851.txt) | D91: 0 | E91: 0 | F91: 0 | G91: 0 | H91: 0 | I91: $/lb
A92: Soybean Meal, Low Oligosacch, Expell | B92: 0 | C92: USDA St. Joseph, MO SJ_GR210 Report (http://www.ams.usda.gov/mnreports/sj_gr210.txt) | D92: 0 | E92: 0 | F92: 0 | G92: 0 | H92: 0 | I92: $/lb
A93: Soybean Meal, Expelled | B93: 0 | C93: USDA St. Joseph, MO NW_GR112 Report (http://www.ams.usda.gov/mnreports/nw_gr112.txt) | D93: 0 | E93: 0 | F93: 0 | G93: 0 | H93: 0 | I93: $/lb
A94: Soybean Meal, Dehulled, Expelled | B94: 0.175 | C94: 0 | D94: 0.17675 | E94: 0 | F94: 0 | G94: 0.1785 | H94: 0 | I94: $/lb
A95: Soybean Meal, Solvent Extracted | B95: 0.155 | C95: 0 | D95: 0.15655 | E95: 0 | F95: 0 | G95: 0.1581 | H95: 0 | I95: $/lb
A96: Soybean Meal, Dehull, Sol Extr | B96: 0.19 | C96: USDA St. Joseph, MO SJ_GR210 Report (http://www.ams.usda.gov/mnreports/sj_gr210.txt) | D96: 0.1919 | E96: 0 | F96: 0 | G96: 0.1938 | H96: http://www.usda.gov/oce/commodity/projections/ | I96: $/lb
A97: Soybean Meal, High Prot, Dehull, Solv Extr | B97: 0.32 | C97: 0 | D97: 0.3232 | E97: 0 | F97: 0 | G97: 0.3264 | H97: 0 | I97: $/lb
A98: Soybean Meal, Enzyme Treated | B98: 0.02 | C98: 0 | D98: 0.0202 | E98: 0 | F98: 0 | G98: 0.0204 | H98: 0 | I98: $/lb
A99: Soybean Meal, Fermented | B99: 0.035 | C99: 0 | D99: 0.03535 | E99: 0 | F99: 0 | G99: 0.0357 | H99: 0 | I99: $/lb
A100: Soybean Hulls | B100: 0.048 | C100: 0 | D100: 0.04848 | E100: 0 | F100: 0 | G100: 0.04896 | H100: 0 | I100: $/lb
A101: Soy Protein Concentrate | B101: 0.55 | C101: 0 | D101: 0.5555 | E101: 0 | F101: 0 | G101: 0.561 | H101: 0 | I101: $/lb
A102: Soy Protein Isolate | B102: 0.175 | C102: 0 | D102: 0.17675 | E102: 0 | F102: 0 | G102: 0.1785 | H102: 0 | I102: $/lb
A103: Sugar Beet Pulp | B103: 0.2 | C103: 0 | D103: 0.202 | E103: 0 | F103: 0 | G103: 0.204 | H103: 0 | I103: $/lb
A104: Sunflower, Full Fat | B104: 0 | C104: 0 | D104: 0 | E104: 0 | F104: 0 | G104: 0 | H104: 0 | I104: $/lb
A105: Sunflower Meal, Solvent Extracted | B105: 0 | C105: 0 | D105: 0 | E105: 0 | F105: 0 | G105: 0 | H105: 0 | I105: $/lb
A106: Sunflower Meal, Dehulled, Solvent Extr | B106: 0 | C106: 0 | D106: 0 | E106: 0 | F106: 0 | G106: 0 | H106: 0 | I106: $/lb
A107: Triticale | B107: 0 | C107: 0 | D107: 0 | E107: 0 | F107: 0 | G107: 0 | H107: 0 | I107: $/lb
A108: Wheat, Hard Red | B108: 0.06 | C108: 0 | D108: 0.0606 | E108: 0 | F108: 0 | G108: 0.0612 | H108: 0 | I108: $/lb
A109: Wheat, Soft Red | B109: 0.45 | C109: 0 | D109: 0.4545 | E109: 0 | F109: 0 | G109: 0.459 | H109: 0 | I109: $/lb
A110: Wheat Bran | B110: 0.05 | C110: 0 | D110: 0.0505 | E110: 0 | F110: 0 | G110: 0.051 | H110: 0 | I110: $/lb
A111: Wheat Middlings | B111: 0.12 | C111: 0 | D111: 0.1212 | E111: 0 | F111: 0 | G111: 0.1224 | H111: 0 | I111: $/lb
A112: Wheat Shorts | B112: 0 | C112: 0 | D112: 0 | E112: 0 | F112: 0 | G112: 0 | H112: 0 | I112: $/lb
A113: Wheat DDGS | B113: 0 | C113: 0 | D113: 0 | E113: 0 | F113: 0 | G113: 0 | H113: 0 | I113: $/lb
A114: Yeast, Brewers' Yeast | B114: 0 | C114: 0 | D114: 0 | E114: 0 | F114: 0 | G114: 0 | H114: 0 | I114: $/lb
A115: Yeast, Single Cell Protein | B115: 0 | C115: 0 | D115: 0 | E115: 0 | F115: 0 | G115: 0 | H115: 0 | I115: $/lb
A116: Beef Tallow | B116: 0.4 | C116: 0 | D116: 0.404 | E116: 0 | F116: 0 | G116: 0.408 | H116: 0 | I116: $/lb
A117: Choice White Grease | B117: 0.42 | C117: 0 | D117: 0.4242 | E117: 0 | F117: 0 | G117: 0.4284 | H117: 0 | I117: $/lb
A118: Poultry Fat | B118: 2.7 | C118: 0 | D118: 2.727 | E118: 0 | F118: 0 | G118: 2.754 | H118: 0 | I118: $/lb
A119: Lard | B119: 1.25 | C119: 0 | D119: 1.2625 | E119: 0 | F119: 0 | G119: 1.275 | H119: 0 | I119: $/lb
A120: Restaurant Grease | B120: 0.38 | C120: 0 | D120: 0.3838 | E120: 0 | F120: 0 | G120: 0.3876 | H120: 0 | I120: $/lb
A121: Canola oil | B121: 1.2 | C121: 0 | D121: 1.212 | E121: 0 | F121: 0 | G121: 1.224 | H121: 0 | I121: $/lb
A122: Coconut oil | B122: 7 | C122: 0 | D122: 7.07 | E122: 0 | F122: 0 | G122: 7.14 | H122: 0 | I122: $/lb
A123: Corn oil | B123: 7 | C123: 0 | D123: 7.07 | E123: 0 | F123: 0 | G123: 7.14 | H123: 0 | I123: $/lb
A124: Palm Kernel oil | B124: 0 | C124: 0 | D124: 0 | E124: 0 | F124: 0 | G124: 0 | H124: 0 | I124: $/lb
A125: Soybean oil | B125: 0.38 | C125: 0 | D125: 0.3838 | E125: 0 | F125: 0 | G125: 0.3876 | H125: 0 | I125: $/lb
A126: Soybean Lecithin | B126: 0.7 | C126: 0 | D126: 0.707 | E126: 0 | F126: 0 | G126: 0.714 | H126: 0 | I126: $/lb
A127: Sunflower oil | B127: 0.6 | C127: 0 | D127: 0.606 | E127: 0 | F127: 0 | G127: 0.612 | H127: 0 | I127: $/lb
A128: Fat, A/V blend | B128: 2.2 | C128: 0 | D128: 2.222 | E128: 0 | F128: 0 | G128: 2.244 | H128: 0 | I128: $/lb
A129: Calcium carbonate | B129: 0 | C129: 0 | D129: 0 | E129: 0 | F129: 0 | G129: 0 | H129: 0 | I129: $/lb
A130: Calcium phosphate (tricalcium) | B130: 0 | C130: 0 | D130: 0 | E130: 0 | F130: 0 | G130: 0 | H130: 0 | I130: $/lb
A131: Calcium phosphate (dicalcium) | B131: 0.3 | C131: 0 | D131: 0.303 | E131: 0 | F131: 0 | G131: 0.306 | H131: 0 | I131: $/lb
A132: Calcium phosphate (monocalcium) | B132: 0.328 | C132: KSU ration (Apr 2015) | D132: 0.33128 | E132: Assumes 1% increase | F132: 0 | G132: 0.33456 | H132: Assumes 2% increase | I132: $/lb
A133: Calcium sulfate, dihydrate | B133: 0 | C133: KSU ration (Apr 2015) | D133: 0 | E133: Assumes 1% increase | F133: 0 | G133: 0 | H133: Assumes 2% increase | I133: $/lb
A134: Limestone, ground | B134: 0.0176 | C134: KSU ration (Apr 2015) | D134: 0.017776 | E134: Assumes 1% increase | F134: 0 | G134: 0.017952 | H134: Assumes 2% increase | I134: $/lb
A135: Magnesium phosphate | B135: 0 | C135: KSU ration (Apr 2015) | D135: 0 | E135: Assumes 1% increase | F135: 0 | G135: 0 | H135: Assumes 2% increase | I135: $/lb
A136: Sodium carbonate | B136: 0 | C136: KSU ration (Apr 2015) | D136: 0 | E136: Assumes 1% increase | F136: 0 | G136: 0 | H136: Assumes 2% increase | I136: $/lb
A137: Sodium bicarbonate | B137: 0 | C137: KSU ration (Apr 2015) | D137: 0 | E137: Assumes 1% increase | F137: 0 | G137: 0 | H137: Assumes 2% increase | I137: $/lb
A138: Sodium chloride | B138: 0.058 | C138: KSU ration (Apr 2015) | D138: 0.05858 | E138: Assumes 1% increase | F138: 0 | G138: 0.05916 | H138: Assumes 2% increase | I138: $/lb
A139: Sodium phosphate, monobasic | B139: 0 | C139: KSU ration (Apr 2015) | D139: 0 | E139: Assumes 1% increase | F139: 0 | G139: 0 | H139: Assumes 2% increase | I139: $/lb
A140: Sodium sulfate, decahydrate | B140: 0.016 | C140: KSU ration (Apr 2015) | D140: 0.01616 | E140: Assumes 1% increase | F140: 0 | G140: 0.01632 | H140: Assumes 2% increase | I140: $/lb
A141: L-Lys-HCL | B141: 0.75 | C141: KSU ration (Apr 2015) | D141: 0.7575 | E141: Assumes 1% increase | F141: 0 | G141: 0.765 | H141: Assumes 2% increase | I141: $/lb
A142: DL-Met | B142: 2.3 | C142: KSU ration (Apr 2015) | D142: 2.323 | E142: Assumes 1% increase | F142: 0 | G142: 2.346 | H142: Assumes 2% increase | I142: $/lb
A143: L-Thr | B143: 1.2 | C143: KSU ration (Apr 2015) | D143: 1.212 | E143: Assumes 1% increase | F143: 0 | G143: 1.224 | H143: Assumes 2% increase | I143: $/lb
A144: L-Trp | B144: 0 | C144: KSU ration (Apr 2015) | D144: 0 | E144: Assumes 1% increase | F144: 0 | G144: 0 | H144: Assumes 2% increase | I144: $/lb
A145: L-Val | B145: 7 | C145: KSU ration (Apr 2015) | D145: 7.07 | E145: Assumes 1% increase | F145: 0 | G145: 7.14 | H145: Assumes 2% increase | I145: $/lb
A146: L-Ileu | B146: 7 | C146: KSU ration (Apr 2015) | D146: 7.07 | E146: Assumes 1% increase | F146: 0 | G146: 7.14 | H146: Assumes 2% increase | I146: $/lb
A147: Methionine hydroxy analog | B147: 1.2 | C147: KSU ration (Apr 2015) | D147: 1.212 | E147: Assumes 1% increase | F147: 0 | G147: 1.224 | H147: Assumes 2% increase | I147: $/lb
A148: Glutamine | B148: 0 | C148: KSU ration (Apr 2015) | D148: 0 | E148: Assumes 1% increase | F148: 0 | G148: 0 | H148: Assumes 2% increase | I148: $/lb
A149: Glutamic acid | B149: 0 | C149: KSU ration (Apr 2015) | D149: 0 | E149: Assumes 1% increase | F149: 0 | G149: 0 | H149: Assumes 2% increase | I149: $/lb
A150: Biolys | B150: 0.7 | C150: KSU ration (Apr 2015) | D150: 0.707 | E150: Assumes 1% increase | F150: 0 | G150: 0.714 | H150: Assumes 2% increase | I150: $/lb
A151: Liquid lysine 60% | B151: 0.6 | C151: KSU ration (Apr 2015) | D151: 0.606 | E151: Assumes 1% increase | F151: 0 | G151: 0.612 | H151: Assumes 2% increase | I151: $/lb
A152: MHA dry | B152: 2.2 | C152: KSU ration (Apr 2015) | D152: 2.222 | E152: Assumes 1% increase | F152: 0 | G152: 2.244 | H152: Assumes 2% increase | I152: $/lb
A153: Ractopamine 9 g/lb | B153: 37 | C153: KSU ration (Apr 2015) | D153: 37.37 | E153: Assumes 1% increase | F153: 0 | G153: 37.74 | H153: Assumes 2% increase | I153: $/lb
A154: Phase 2 supplement (PEP2) | B154: 0.45 | C154: KSU ration (Apr 2015) | D154: 0.4545 | E154: Assumes 1% increase | F154: 0 | G154: 0.459 | H154: Assumes 2% increase | I154: $/lb
A155: 2007 Starter base mix | B155: 0.36 | C155: KSU ration (Apr 2015) | D155: 0.3636 | E155: Assumes 1% increase | F155: 0 | G155: 0.3672 | H155: Assumes 2% increase | I155: $/lb
A156: 2007 Grow-finish base mix | B156: 0.22 | C156: KSU ration (Apr 2015) | D156: 0.2222 | E156: Assumes 1% increase | F156: 0 | G156: 0.2244 | H156: Assumes 2% increase | I156: $/lb
A157: Developer base mix | B157: 0.2 | C157: KSU ration (Apr 2015) | D157: 0.202 | E157: Assumes 1% increase | F157: 0 | G157: 0.204 | H157: Assumes 2% increase | I157: $/lb
A158: 2007 Sow base mix | B158: 0.22 | C158: KSU ration (Apr 2015) | D158: 0.2222 | E158: Assumes 1% increase | F158: 0 | G158: 0.2244 | H158: Assumes 2% increase | I158: $/lb
A159: Vitamin premix with phytase | B159: 0.677 | C159: KSU ration (Apr 2015) | D159: 0.68377 | E159: Assumes 1% increase | F159: 0 | G159: 0.69054 | H159: Assumes 2% increase | I159: $/lb
A160: Trace mineral premix | B160: 0.41 | C160: KSU ration (Apr 2015) | D160: 0.4141 | E160: Assumes 1% increase | F160: 0 | G160: 0.4182 | H160: Assumes 2% increase | I160: $/lb
A161: Sow add pack | B161: 1.7 | C161: KSU ration (Apr 2015) | D161: 1.717 | E161: Assumes 1% increase | F161: 0 | G161: 1.734 | H161: Assumes 2% increase | I161: $/lb
A162: Vitamin premix without phytase | B162: 0.9 | C162: KSU ration (Apr 2015) | D162: 0.909 | E162: Assumes 1% increase | F162: 0 | G162: 0.918 | H162: Assumes 2% increase | I162: $/lb
A163: GF DDGS Base Mix | B163: 0.25 | C163: KSU ration (Apr 2015) | D163: 0.2525 | E163: Assumes 1% increase | F163: 0 | G163: 0.255 | H163: Assumes 2% increase | I163: $/lb
A164: GF synthetics Base Mix | B164: 0.3 | C164: KSU ration (Apr 2015) | D164: 0.303 | E164: Assumes 1% increase | F164: 0 | G164: 0.306 | H164: Assumes 2% increase | I164: $/lb
A165: Choline chloride 60% | B165: 0.6 | C165: KSU ration (Apr 2015) | D165: 0.606 | E165: Assumes 1% increase | F165: 0 | G165: 0.612 | H165: Assumes 2% increase | I165: $/lb
A166: Natuphos 600 | B166: 0 | C166: KSU ration (Apr 2015) | D166: 0 | E166: Assumes 1% increase | F166: 0 | G166: 0 | H166: Assumes 2% increase | I166: $/lb
A167: Natuphos 1200 | B167: 0 | C167: KSU ration (Apr 2015) | D167: 0 | E167: Assumes 1% increase | F167: 0 | G167: 0 | H167: Assumes 2% increase | I167: $/lb
A168: Optiphos 2000 | B168: 0 | C168: KSU ration (Apr 2015) | D168: 0 | E168: Assumes 1% increase | F168: 0 | G168: 0 | H168: Assumes 2% increase | I168: $/lb
A169: Phyzyme 1200 | B169: 0 | C169: KSU ration (Apr 2015) | D169: 0 | E169: Assumes 1% increase | F169: 0 | G169: 0 | H169: Assumes 2% increase | I169: $/lb
A170: Phyzyme 5000 | B170: 0 | C170: KSU ration (Apr 2015) | D170: 0 | E170: Assumes 1% increase | F170: 0 | G170: 0 | H170: Assumes 2% increase | I170: $/lb
A171: Ronozyme CT (10,000) | B171: 0 | C171: KSU ration (Apr 2015) | D171: 0 | E171: Assumes 1% increase | F171: 0 | G171: 0 | H171: Assumes 2% increase | I171: $/lb
A172: Ronozyme M (50,000) | B172: 0 | C172: KSU ration (Apr 2015) | D172: 0 | E172: Assumes 1% increase | F172: 0 | G172: 0 | H172: Assumes 2% increase | I172: $/lb
A173: Ronozyme PMX PLT (4625 FYT/g) | B173: 0.8332 | C173: KSU ration (Apr 2015) | D173: 0.841532 | E173: Assumes 1% increase | F173: 0 | G173: 0.849864 | H173: Assumes 2% increase | I173: $/lb
A174: Zinc oxide | B174: 1.1 | C174: KSU ration (Apr 2015) | D174: 1.111 | E174: Assumes 1% increase | F174: 0 | G174: 1.122 | H174: Assumes 2% increase | I174: $/lb
A175: Copper sulfate | B175: 1.1 | C175: KSU ration (Apr 2015) | D175: 1.111 | E175: Assumes 1% increase | F175: 0 | G175: 1.122 | H175: Assumes 2% increase | I175: $/lb
A176: Potassium chloride | B176: 0.175 | C176: KSU ration (Apr 2015) | D176: 0.17675 | E176: Assumes 1% increase | F176: 0 | G176: 0.1785 | H176: Assumes 2% increase | I176: $/lb
A177: Calcium chloride | B177: 0.2 | C177: KSU ration (Apr 2015) | D177: 0.202 | E177: Assumes 1% increase | F177: 0 | G177: 0.204 | H177: Assumes 2% increase | I177: $/lb
A178: Acidifier | B178: 1 | C178: KSU ration (Apr 2015) | D178: 1.01 | E178: Assumes 1% increase | F178: 0 | G178: 1.02 | H178: Assumes 2% increase | I178: $/lb
A179: Vitamin E, 20,000 IU | B179: 0.4 | C179: KSU ration (Apr 2015) | D179: 0.404 | E179: Assumes 1% increase | F179: 0 | G179: 0.408 | H179: Assumes 2% increase | I179: $/lb
A180: Phase 2 supplement D | B180: 0.4 | C180: KSU ration (Apr 2015) | D180: 0.404 | E180: Assumes 1% increase | F180: 0 | G180: 0.408 | H180: Assumes 2% increase | I180: $/lb
A181: DPS 50 | B181: 0.5 | C181: KSU ration (Apr 2015) | D181: 0.505 | E181: Assumes 1% increase | F181: 0 | G181: 0.51 | H181: Assumes 2% increase | I181: $/lb
A182: PEP2+ | B182: 0.6 | C182: KSU ration (Apr 2015) | D182: 0.606 | E182: Assumes 1% increase | F182: 0 | G182: 0.612 | H182: Assumes 2% increase | I182: $/lb
A183: PEP NS | B183: 0.5 | C183: KSU ration (Apr 2015) | D183: 0.505 | E183: Assumes 1% increase | F183: 0 | G183: 0.51 | H183: Assumes 2% increase | I183: $/lb
A184: Natural vitamin E 20,000 IU/lb | B184: 9.4375 | C184: KSU ration (Apr 2015) | D184: 9.531875 | E184: Assumes 1% increase | F184: 0 | G184: 9.62625 | H184: Assumes 2% increase | I184: $/lb
A185: Other ingredient | B185: 0 | C185: 0 | D185: 0 | E185: 0 | F185: 0 | G185: 0 | H185: 0 | I185: $/lb
A186: Corn DDGS, 10.5% Oil | B186: 0.125 | C186: 0 | D186: 0.12625 | E186: 0 | F186: 0 | G186: 0.1275 | H186: 0 | I186: $/lb
A187: Corn DDGS, 7.5% Oil | B187: 0.105 | C187: USDA St. Joseph, MO NW_GR112 Report (http://www.ams.usda.gov/mnreports/nw_gr112.txt) | D187: 0.10605 | E187: 0 | F187: 0 | G187: 0.1071 | H187: Adjust off of Corn Price | I187: $/lb
A188: Corn DDGS, 4.5% Oil | B188: 0.125 | C188: 0 | D188: 0.12625 | E188: 0 | F188: 0 | G188: 0.1275 | H188: 0 | I188: $/lb
A189: Denegard | B189: 4.7286 | C189: KSU ration (Apr 2015) | D189: 4.775886 | E189: Assumes 1% increase | F189: 0 | G189: 4.823172 | H189: Assumes 2% increase | I189: $/lb
A190: CTC 50 | B190: 1.44 | C190: KSU ration (Apr 2015) | D190: 1.4544 | E190: Assumes 1% increase | F190: 0 | G190: 1.4688 | H190: Assumes 2% increase | I190: $/lb
A191: Bentonite | B191: 0.15 | C191: KSU ration (Apr 2015) | D191: 0.1515 | E191: Assumes 1% increase | F191: 0 | G191: 0.153 | H191: Assumes 2% increase | I191: $/lb
A192: Phase 2 supplement (Feb, 2014) | B192: 0.7362 | C192: KSU ration (Apr 2015) | D192: 0.743562 | E192: Assumes 1% increase | F192: 0 | G192: 0.750924 | H192: Assumes 2% increase | I192: $/lb
A193: Other ingredient | B193: 0 | C193: KSU ration (Apr 2015) | D193: 0 | E193: Assumes 1% increase | F193: 0 | G193: 0 | H193: Assumes 2% increase | I193: $/lb
A194: Other ingredient | B194: 0 | C194: KSU ration (Apr 2015) | D194: 0 | E194: Assumes 1% increase | F194: 0 | G194: 0 | H194: Assumes 2% increase | I194: $/lb
A195: Other ingredient | B195: 0 | C195: KSU ration (Apr 2015) | D195: 0 | E195: Assumes 1% increase | F195: 0 | G195: 0 | H195: Assumes 2% increase | I195: $/lb
A196: Other ingredient | B196: 0 | C196: KSU ration (Apr 2015) | D196: 0 | E196: Assumes 1% increase | F196: 0 | G196: 0 | H196: Assumes 2% increase | I196: $/lb
A197: Other ingredient | B197: 0 | C197: KSU ration (Apr 2015) | D197: 0 | E197: Assumes 1% increase | F197: 0 | G197: 0 | H197: Assumes 2% increase | I197: $/lb
A198: Other ingredient | B198: 0 | C198: KSU ration (Apr 2015) | D198: 0 | E198: Assumes 1% increase | F198: 0 | G198: 0 | H198: Assumes 2% increase | I198: $/lb
A199: Other ingredient | B199: 0 | C199: KSU ration (Apr 2015) | D199: 0 | E199: Assumes 1% increase | F199: 0 | G199: 0 | H199: Assumes 2% increase | I199: $/lb
A200: Other ingredient | B200: 0 | C200: KSU ration (Apr 2015) | D200: 0 | E200: Assumes 1% increase | F200: 0 | G200: 0 | H200: Assumes 2% increase | I200: $/lb
A201: Other ingredient | B201: 0 | C201: KSU ration (Apr 2015) | D201: 0 | E201: Assumes 1% increase | F201: 0 | G201: 0 | H201: Assumes 2% increase | I201: $/lb
A202: Other ingredient | B202: 0 | C202: KSU ration (Apr 2015) | D202: 0 | E202: Assumes 1% increase | F202: 0 | G202: 0 | H202: Assumes 2% increase | I202: $/lb
A203: Other ingredient | B203: 0 | C203: KSU ration (Apr 2015) | D203: 0 | E203: Assumes 1% increase | F203: 0 | G203: 0 | H203: Assumes 2% increase | I203: $/lb
A204: Other ingredient | B204: 0 | C204: KSU ration (Apr 2015) | D204: 0 | E204: Assumes 1% increase | F204: 0 | G204: 0 | H204: Assumes 2% increase | I204: $/lb
A205: 0 | B205: 0 | C205: KSU ration (Apr 2015) | D205: 0 | E205: Assumes 1% increase | F205: 0 | G205: 0 | H205: Assumes 2% increase | I205: $/lb
A206: Complete nursery pellet | B206: 0.35 | C206: KSU ration (Apr 2015) | D206: 0.3535 | E206: Assumes 1% increase | F206: 0 | G206: 0.357 | H206: Assumes 2% increase | I206: $/ton
A207: 0 | B207: 0 | C207: 0 | D207: 0 | E207: 0 | F207: 0 | G207: 0 | H207: 0 | I207: 0
A208: 0 | B208: 0 | C208: 0 | D208: 1.01 | E208: 0 | F208: 0 | G208: 1.02 | H208: 0 | I208: 0

Sheet Feed
A1: SWINE RATIONS TO SET FEED COSTS
A3: Ingredient | D3: Usage per pig, lb | G3: Total Useage (lbs per pig) by Production Phase/Type
B4: Price ($/lb) | D4: Sows | E4: Nursery | F4: GF | G4: Farrow-Finish | H4: Farrow-Wean | I4: Wean-Finish | J4: Nursery | K4: Finish | P4: Currently Used?
A5: Corn | D5: 96.90757083 | E5: 31.02462613 | F5: 506.0257035 | G5: =SUM(D5:F5) -> 633.9579005 | H5: =D5 -> 96.90757083 | I5: =E5+F5 -> 537.0503297 | J5: =E5 -> 31.02462613 | K5: =F5 -> 506.0257035 | P5: 0
A6: Soybean Meal, Dehull, Sol Extr | D6: 22.37742917 | E6: 16.29137387 | F6: 120.2952058 | G6: =SUM(D6:F6) -> 158.9640088 | H6: =D6 -> 22.37742917 | I6: =E6+F6 -> 136.5865797 | J6: =E6 -> 16.29137387 | K6: =F6 -> 120.2952058 | P6: 0
A7: Corn | D7: 0 | E7: 0 | F7: 0 | G7: 0 | H7: 0 | I7: 0 | J7: 0 | K7: 0 | P7: 0
A8: Milo | D8: 0 | E8: 0 | F8: 0 | G8: 0 | H8: 0 | I8: 0 | J8: 0 | K8: 0 | P8: 0
A9: Alfalfa Meal | D9: 0 | E9: 0 | F9: 0 | G9: 0 | H9: 0 | I9: 0 | J9: 0 | K9: 0 | P9: 0
A10: Bakery Meal | D10: 0 | E10: 0 | F10: 0 | G10: 0 | H10: 0 | I10: 0 | J10: 0 | K10: 0 | P10: 0
A11: Barley | D11: 0 | E11: 0 | F11: 0 | G11: 0 | H11: 0 | I11: 0 | J11: 0 | K11: 0 | P11: 0
A12: Barley, Hulless | D12: 0 | E12: 0 | F12: 0 | G12: 0 | H12: 0 | I12: 0 | J12: 0 | K12: 0 | P12: 0
A13: Beans, Faba | D13: 0 | E13: 0 | F13: 0 | G13: 0 | H13: 0 | I13: 0 | J13: 0 | K13: 0 | P13: 0
A14: Blood Meal | D14: 0 | E14: 0 | F14: 0 | G14: 0 | H14: 0 | I14: 0 | J14: 0 | K14: 0 | P14: 0
A15: Blood Plasma | D15: 0 | E15: 0 | F15: 0 | G15: 0 | H15: 0 | I15: 0 | J15: 0 | K15: 0 | P15: 0
A16: Brewers Grain | D16: 0 | E16: 0 | F16: 0 | G16: 0 | H16: 0 | I16: 0 | J16: 0 | K16: 0 | P16: 0
A17: Canola, Full Fat | D17: 0 | E17: 0 | F17: 0 | G17: 0 | H17: 0 | I17: 0 | J17: 0 | K17: 0 | P17: 0
A18: Canola Meal, Expelled | D18: 0 | E18: 0 | F18: 0 | G18: 0 | H18: 0 | I18: 0 | J18: 0 | K18: 0 | P18: 0
A19: Canola Meal, Solvent Extracted | D19: 0 | E19: 0 | F19: 0 | G19: 0 | H19: 0 | I19: 0 | J19: 0 | K19: 0 | P19: 0
A20: Casava Meal | D20: 0 | E20: 0 | F20: 0 | G20: 0 | H20: 0 | I20: 0 | J20: 0 | K20: 0 | P20: 0
A21: Citrus Pulp | D21: 0 | E21: 0 | F21: 0 | G21: 0 | H21: 0 | I21: 0 | J21: 0 | K21: 0 | P21: 0
A22: Copra Meal | D22: 0 | E22: 0 | F22: 0 | G22: 0 | H22: 0 | I22: 0 | J22: 0 | K22: 0 | P22: 0
A23: Corn, Yellow Dent | B23: =IF(R23="",$B$191,IF(R23=0,$B$191,R23)) -> 0.07589285714 | D23: 97.56385605 | E23: 29.32738261 | F23: 483.5011164 | G23: =SUM(D23:F23) -> 610.392355 | H23: =D23 -> 97.56385605 | I23: =E23+F23 -> 512.828499 | J23: =E23 -> 29.32738261 | K23: =F23 -> 483.5011164 | P23: =IF(SUM(D23:F222)=0,0,1) -> 1 | R23: 0.07589285714
A24: Corn, Nutridense | B24: =IF(R24="",$B$191,IF(R24=0,$B$191,R24)) -> 0.048 | D24: 0 | E24: 0 | F24: 0 | G24: 0 | H24: 0 | I24: 0 | J24: 0 | K24: 0 | P24: =IF(SUM(D24:F223)=0,0,1) -> 1 | R24: 0.048
A25: Corn Bran | B25: 2 | D25: 0 | E25: 0 | F25: 0 | G25: 0 | H25: 0 | I25: 0 | J25: 0 | K25: 0 | P25: 1 | R25: 0
A26: Corn DDG | B26: 2 | D26: 0 | E26: 0 | F26: 0 | G26: 0 | H26: 0 | I26: 0 | J26: 0 | K26: 0 | P26: 1 | R26: 0
A27: Corn DDGS, >10% Oil | B27: 0.125 | D27: 0 | E27: 0 | F27: 0 | G27: 0 | H27: 0 | I27: 0 | J27: 0 | K27: 0 | P27: 1 | R27: 0.125
A28: Corn DDGS, >6 and <9% Oil | B28: 0.078 | D28: 0 | E28: 0 | F28: 0 | G28: 0 | H28: 0 | I28: 0 | J28: 0 | K28: 0 | P28: 1 | R28: 0.078
A29: Corn DDGS, <4% Oil | B29: 2 | D29: 0 | E29: 0 | F29: 0 | G29: 0 | H29: 0 | I29: 0 | J29: 0 | K29: 0 | P29: 1 | R29: 0
A30: Corn HP DDG | B30: 0.06 | D30: 0 | E30: 0 | F30: 0 | G30: 0 | H30: 0 | I30: 0 | J30: 0 | K30: 0 | P30: 1 | R30: 0.06
A31: Soybean Meal, Dehull, Sol Extr | B31: 0.19 | D31: 0 | E31: 0 | F31: 0 | G31: 0 | H31: 0 | I31: 0 | J31: 0 | K31: 0 | P31: 1 | R31: 0.19
A32: Soybean Meal, Dehulled, Expelled | B32: 0.175 | D32: 0 | E32: 0 | F32: 0 | G32: 0 | H32: 0 | I32: 0 | J32: 0 | K32: 0 | P32: 1 | R32: 0.175
A33: Soybean Meal, Solvent Extracted | B33: 0.155 | D33: 0 | E33: 0 | F33: 0 | G33: 0 | H33: 0 | I33: 0 | J33: 0 | K33: 0 | P33: 1 | R33: 0.155
A34: Corn Gluten Meal | B34: 2 | D34: 0 | E34: 0 | F34: 0 | G34: 0 | H34: 0 | I34: 0 | J34: 0 | K34: 0 | P34: 1 | R34: 0
A35: Corn Grits, Hominy Feed | B35: 0.045 | D35: 0 | E35: 0 | F35: 0 | G35: 0 | H35: 0 | I35: 0 | J35: 0 | K35: 0 | P35: 1 | R35: 0.045
A36: Cotton Seeds, Fullfat | B36: 2 | D36: 0 | E36: 0 | F36: 0 | G36: 0 | H36: 0 | I36: 0 | J36: 0 | K36: 0 | P36: 1 | R36: 0
A37: Cotton Seed Meal | B37: 2 | D37: 0 | E37: 0 | F37: 0 | G37: 0 | H37: 0 | I37: 0 | J37: 0 | K37: 0 | P37: 1 | R37: 0
A38: Feather Meal | B38: 2 | D38: 0 | E38: 0 | F38: 0 | G38: 0 | H38: 0 | I38: 0 | J38: 0 | K38: 0 | P38: 1 | R38: 0
A39: Fish Meal Combined | B39: 0.7 | D39: 0 | E39: 0 | F39: 0 | G39: 0 | H39: 0 | I39: 0 | J39: 0 | K39: 0 | P39: 1 | R39: 0.7
A40: Flaxseed | B40: 2 | D40: 0 | E40: 0 | F40: 0 | G40: 0 | H40: 0 | I40: 0 | J40: 0 | K40: 0 | P40: 1 | R40: 0
A41: Flaxseed Meal | B41: 2 | D41: 0 | E41: 0 | F41: 0 | G41: 0 | H41: 0 | I41: 0 | J41: 0 | K41: 0 | P41: 1 | R41: 0
A42: Lupins | B42: 2 | D42: 0 | E42: 0 | F42: 0 | G42: 0 | H42: 0 | I42: 0 | J42: 0 | K42: 0 | P42: 1 | R42: 0
A43: Meat Meal | B43: 2 | D43: 0 | E43: 0 | F43: 0 | G43: 0 | H43: 0 | I43: 0 | J43: 0 | K43: 0 | P43: 1 | R43: 0
A44: Meat and Bone Meal, P >4% | B44: 0.15 | D44: 0 | E44: 0 | F44: 0 | G44: 0 | H44: 0 | I44: 0 | J44: 0 | K44: 0 | P44: 1 | R44: 0.15
A45: Milk, Casein | B45: 2 | D45: 0 | E45: 0 | F45: 0 | G45: 0 | H45: 0 | I45: 0 | J45: 0 | K45: 0 | P45: 1 | R45: 0
A46: Milk, Lactose | B46: 0.3 | D46: 0 | E46: 0 | F46: 0 | G46: 0 | H46: 0 | I46: 0 | J46: 0 | K46: 0 | P46: 1 | R46: 0.3
A47: Milk, Skim Milk Powder | B47: 1.2 | D47: 0 | E47: 0 | F47: 0 | G47: 0 | H47: 0 | I47: 0 | J47: 0 | K47: 0 | P47: 1 | R47: 1.2
A48: Milk, Whey Powder | B48: 0.55 | D48: 0 | E48: 0 | F48: 0 | G48: 0 | H48: 0 | I48: 0 | J48: 0 | K48: 0 | P48: 1 | R48: 0.55
A49: Milk, Whey Permeate, 85% lactose | B49: 0.45 | D49: 0 | E49: 0 | F49: 0 | G49: 0 | H49: 0 | I49: 0 | J49: 0 | K49: 0 | P49: 1 | R49: 0.45
A50: Milk, Whey Protein Concentrate | B50: 2 | D50: 0 | E50: 0 | F50: 0 | G50: 0 | H50: 0 | I50: 0 | J50: 0 | K50: 0 | P50: 1 | R50: 0
A51: Millet | B51: 2 | D51: 0 | E51: 0 | F51: 0 | G51: 0 | H51: 0 | I51: 0 | J51: 0 | K51: 0 | P51: 1 | R51: 0
A52: Molasses, Sugarbeet | B52: 2 | D52: 0 | E52: 0 | F52: 0 | G52: 0 | H52: 0 | I52: 0 | J52: 0 | K52: 0 | P52: 1 | R52: 0
A53: Molasses, Sugarcane | B53: 2 | D53: 0 | E53: 0 | F53: 0 | G53: 0 | H53: 0 | I53: 0 | J53: 0 | K53: 0 | P53: 1 | R53: 0
A54: Oats | B54: 2 | D54: 0 | E54: 0 | F54: 0 | G54: 0 | H54: 0 | I54: 0 | J54: 0 | K54: 0 | P54: 1 | R54: 0
A55: Oats, Naked | B55: 2 | D55: 0 | E55: 0 | F55: 0 | G55: 0 | H55: 0 | I55: 0 | J55: 0 | K55: 0 | P55: 1 | R55: 0
A56: Oat Groats | B56: 0.175 | D56: 0 | E56: 0 | F56: 0 | G56: 0 | H56: 0 | I56: 0 | J56: 0 | K56: 0 | P56: 1 | R56: 0.175
A57: Peanut Meal, Expelled | B57: 2 | D57: 0 | E57: 0 | F57: 0 | G57: 0 | H57: 0 | I57: 0 | J57: 0 | K57: 0 | P57: 1 | R57: 0
A58: Peanut Meal, Extracted | B58: 2 | D58: 0 | E58: 0 | F58: 0 | G58: 0 | H58: 0 | I58: 0 | J58: 0 | K58: 0 | P58: 1 | R58: 0
A59: Peas, Field Peas | B59: 0.08 | D59: 0 | E59: 0 | F59: 0 | G59: 0 | H59: 0 | I59: 0 | J59: 0 | K59: 0 | P59: 1 | R59: 0.08
A60: Pea Protein Concentrate | B60: 2 | D60: 0 | E60: 0 | F60: 0 | G60: 0 | H60: 0 | I60: 0 | J60: 0 | K60: 0 | P60: 1 | R60: 0
A61: Potato Protein Concentrate | B61: 2 | D61: 0 | E61: 0 | F61: 0 | G61: 0 | H61: 0 | I61: 0 | J61: 0 | K61: 0 | P61: 1 | R61: 0
A62: Poultry Byproduct | B62: 0.12 | D62: 0 | E62: 0 | F62: 0 | G62: 0 | H62: 0 | I62: 0 | J62: 0 | K62: 0 | P62: 1 | R62: 0.12
A63: Rice | B63: 2 | D63: 0 | E63: 0 | F63: 0 | G63: 0 | H63: 0 | I63: 0 | J63: 0 | K63: 0 | P63: 1 | R63: 0
A64: Rice Bran | B64: 2 | D64: 0 | E64: 0 | F64: 0 | G64: 0 | H64: 0 | I64: 0 | J64: 0 | K64: 0 | P64: 1 | R64: 0
A65: Rice Bran, Defatted | B65: 2 | D65: 0 | E65: 0 | F65: 0 | G65: 0 | H65: 0 | I65: 0 | J65: 0 | K65: 0 | P65: 1 | R65: 0
A66: Rice, Broken | B66: 2 | D66: 0 | E66: 0 | F66: 0 | G66: 0 | H66: 0 | I66: 0 | J66: 0 | K66: 0 | P66: 1 | R66: 0
A67: Rye | B67: 2 | D67: 0 | E67: 0 | F67: 0 | G67: 0 | H67: 0 | I67: 0 | J67: 0 | K67: 0 | P67: 1 | R67: 0
A68: Sesame Meal | B68: 2 | D68: 0 | E68: 0 | F68: 0 | G68: 0 | H68: 0 | I68: 0 | J68: 0 | K68: 0 | P68: 1 | R68: 0
A69: Sorghum | B69: 0.1 | D69: 0 | E69: 0 | F69: 0 | G69: 0 | H69: 0 | I69: 0 | J69: 0 | K69: 0 | P69: 1 | R69: 0.1
A70: Soybeans, Full Fat | B70: 0.2 | D70: 0 | E70: 0 | F70: 0 | G70: =SUM(D70:F70) -> 0 | H70: =D70 -> 0 | I70: =E70+F70 -> 0 | J70: =E70 -> 0 | K70: =F70 -> 0 | P70: 1 | R70: 0.2
A71: Soybeans, High Protein, Full Fat | B71: 2 | D71: 0 | E71: 0 | F71: 0 | G71: 0 | H71: 0 | I71: 0 | J71: 0 | K71: 0 | P71: 1 | R71: 0
A72: Soybeans, Low Oligosaccharide, Full Fat | B72: 2 | D72: 0 | E72: 0 | F72: 0 | G72: 0 | H72: 0 | I72: 0 | J72: 0 | K72: 0 | P72: 1 | R72: 0
A73: Soybean Meal, High Protein, Expelled | B73: 2 | D73: 0 | E73: 0 | F73: 0 | G73: 0 | H73: 0 | I73: 0 | J73: 0 | K73: 0 | P73: 1 | R73: 0
A74: Soybean Meal, Low Oligosacch, Expell | B74: 2 | D74: 0 | E74: 0 | F74: 0 | G74: 0 | H74: 0 | I74: 0 | J74: 0 | K74: 0 | P74: 1 | R74: 0
A75: Soybean Meal, Expelled | B75: 2 | D75: 0 | E75: 0 | F75: 0 | G75: 0 | H75: 0 | I75: 0 | J75: 0 | K75: 0 | P75: 1 | R75: 0
A76: Soybean Meal, Dehulled, Expelled | B76: 0.175 | D76: 0 | E76: 0 | F76: 0 | G76: 0 | H76: 0 | I76: 0 | J76: 0 | K76: 0 | P76: 1 | R76: 0.175
A77: Soybean Meal, Solvent Extracted | B77: 0.155 | D77: 0 | E77: 0 | F77: 0 | G77: 0 | H77: 0 | I77: 0 | J77: 0 | K77: 0 | P77: 1 | R77: 0.155
A78: Soybean Meal, Dehull, Sol Extr | B78: 0.19 | D78: 22.70239395 | E78: 16.96635339 | F78: 100.0257288 | G78: 139.6944761 | H78: 22.70239395 | I78: 116.9920822 | J78: 16.96635339 | K78: 100.0257288 | P78: 1 | R78: 0.19
A79: Soybean Meal, High Prot, Dehull, Solv Extr | B79: 0.32 | D79: 0 | E79: 0 | F79: 0 | G79: 0 | H79: 0 | I79: 0 | J79: 0 | K79: 0 | P79: 1 | R79: 0.32
A80: Soybean Meal, Enzyme Treated | B80: 0.02 | D80: 0 | E80: 0 | F80: 0 | G80: 0 | H80: 0 | I80: 0 | J80: 0 | K80: 0 | P80: 1 | R80: 0.02
A81: Soybean Meal, Fermented | B81: 0.035 | D81: 0 | E81: 0 | F81: 0 | G81: 0 | H81: 0 | I81: 0 | J81: 0 | K81: 0 | P81: 1 | R81: 0.035
A82: Soybean Hulls | B82: 0.048 | D82: 0 | E82: 0 | F82: 0 | G82: 0 | H82: 0 | I82: 0 | J82: 0 | K82: 0 | P82: 1 | R82: 0.048
A83: Soy Protein Concentrate | B83: 0.55 | D83: 0 | E83: 0 | F83: 0 | G83: 0 | H83: 0 | I83: 0 | J83: 0 | K83: 0 | P83: 1 | R83: 0.55
A84: Soy Protein Isolate | B84: 0.175 | D84: 0 | E84: 0 | F84: 0 | G84: 0 | H84: 0 | I84: 0 | J84: 0 | K84: 0 | P84: 1 | R84: 0.175
A85: Sugar Beet Pulp | B85: 0.2 | D85: 0 | E85: 0 | F85: 0 | G85: 0 | H85: 0 | I85: 0 | J85: 0 | K85: 0 | P85: 1 | R85: 0.2
A86: Sunflower, Full Fat | B86: 2 | D86: 0 | E86: 0 | F86: 0 | G86: 0 | H86: 0 | I86: 0 | J86: 0 | K86: 0 | P86: 1 | R86: 0
A87: Sunflower Meal, Solvent Extracted | B87: 2 | D87: 0 | E87: 0 | F87: 0 | G87: 0 | H87: 0 | I87: 0 | J87: 0 | K87: 0 | P87: 1 | R87: 0
A88: Sunflower Meal, Dehulled, Solvent Extr | B88: =IF(R88="",$B$191,IF(R88=0,$B$191,R88)) -> 2 | D88: 0 | E88: 0 | F88: 0 | G88: 0 | H88: 0 | I88: 0 | J88: 0 | K88: 0 | P88: =IF(SUM(D88:F287)=0,0,1) -> 1 | R88: 0
A89: Triticale | B89: 2 | D89: 0 | E89: 0 | F89: 0 | G89: 0 | H89: 0 | I89: 0 | J89: 0 | K89: 0 | P89: 1 | R89: 0
A90: Wheat, Hard Red | B90: 0.06 | D90: 0 | E90: 0 | F90: 0 | G90: 0 | H90: 0 | I90: 0 | J90: 0 | K90: 0 | P90: 1 | R90: 0.06
A91: Wheat, Soft Red | B91: 0.45 | D91: 0 | E91: 0 | F91: 0 | G91: 0 | H91: 0 | I91: 0 | J91: 0 | K91: 0 | P91: 1 | R91: 0.45
A92: Wheat Bran | B92: 0.05 | D92: 0 | E92: 0 | F92: 0 | G92: 0 | H92: 0 | I92: 0 | J92: 0 | K92: 0 | P92: 1 | R92: 0.05
A93: Wheat Middlings | B93: 0.12 | D93: 0 | E93: 0 | F93: 0 | G93: 0 | H93: 0 | I93: 0 | J93: 0 | K93: 0 | P93: 1 | R93: 0.12
A94: Wheat Shorts | B94: 2 | D94: 0 | E94: 0 | F94: 0 | G94: 0 | H94: 0 | I94: 0 | J94: 0 | K94: 0 | P94: 1 | R94: 0
A95: Wheat DDGS | B95: 2 | D95: 0 | E95: 0 | F95: 0 | G95: 0 | H95: 0 | I95: 0 | J95: 0 | K95: 0 | P95: 1 | R95: 0
A96: Yeast, Brewers' Yeast | B96: 2 | D96: 0 | E96: 0 | F96: 0 | G96: 0 | H96: 0 | I96: 0 | J96: 0 | K96: 0 | P96: 1 | R96: 0
A97: Yeast, Single Cell Protein | B97: 2 | D97: 0 | E97: 0 | F97: 0 | G97: 0 | H97: 0 | I97: 0 | J97: 0 | K97: 0 | P97: 1 | R97: 0
A98: Beef Tallow | B98: 0.4 | D98: 0 | E98: 0 | F98: 0 | G98: 0 | H98: 0 | I98: 0 | J98: 0 | K98: 0 | P98: 1 | R98: 0.4
A99: Choice White Grease | B99: 0.42 | D99: 0 | E99: 0 | F99: 0 | G99: 0 | H99: 0 | I99: 0 | J99: 0 | K99: 0 | P99: 1 | R99: 0.42
A100: Poultry Fat | B100: 2.7 | D100: 0 | E100: 0 | F100: 0 | G100: 0 | H100: 0 | I100: 0 | J100: 0 | K100: 0 | P100: 1 | R100: 2.7
A101: Lard | B101: 1.25 | D101: 0 | E101: 0 | F101: 0 | G101: 0 | H101: 0 | I101: 0 | J101: 0 | K101: 0 | P101: 1 | R101: 1.25
A102: Restaurant Grease | B102: 0.38 | D102: 0 | E102: 0 | F102: 0 | G102: 0 | H102: 0 | I102: 0 | J102: 0 | K102: 0 | P102: 1 | R102: 0.38
A103: Canola oil | B103: 1.2 | D103: 0 | E103: 0 | F103: 0 | G103: 0 | H103: 0 | I103: 0 | J103: 0 | K103: 0 | P103: 1 | R103: 1.2
A104: Coconut oil | B104: 7 | D104: 0 | E104: 0 | F104: 0 | G104: 0 | H104: 0 | I104: 0 | J104: 0 | K104: 0 | P104: 1 | R104: 7
A105: Corn oil | B105: 7 | D105: 0 | E105: 0 | F105: 0 | G105: 0 | H105: 0 | I105: 0 | J105: 0 | K105: 0 | P105: 1 | R105: 7
A106: Palm Kernel oil | B106: 2 | D106: 0 | E106: 0 | F106: 0 | G106: 0 | H106: 0 | I106: 0 | J106: 0 | K106: 0 | P106: 1 | R106: 0
A107: Soybean oil | B107: 0.38 | D107: 0 | E107: 0 | F107: 0 | G107: 0 | H107: 0 | I107: 0 | J107: 0 | K107: 0 | P107: 1 | R107: 0.38
A108: Soybean Lecithin | B108: 0.7 | D108: 0 | E108: 0 | F108: 0 | G108: 0 | H108: 0 | I108: 0 | J108: 0 | K108: 0 | P108: 1 | R108: 0.7
A109: Sunflower oil | B109: 0.6 | D109: 0 | E109: 0 | F109: 0 | G109: 0 | H109: 0 | I109: 0 | J109: 0 | K109: 0 | P109: 1 | R109: 0.6
A110: Fat, A/V blend | B110: 2.2 | D110: 0 | E110: 0 | F110: 0 | G110: 0 | H110: 0 | I110: 0 | J110: 0 | K110: 0 | P110: 1 | R110: 2.2
A111: Calcium carbonate | B111: 2 | D111: 0 | E111: 0 | F111: 0 | G111: 0 | H111: 0 | I111: 0 | J111: 0 | K111: 0 | P111: 1 | R111: 0
A112: Calcium phosphate (tricalcium) | B112: 2 | D112: 0 | E112: 0 | F112: 0 | G112: 0 | H112: 0 | I112: 0 | J112: 0 | K112: 0 | P112: 1 | R112: 0
A113: Calcium phosphate (dicalcium) | B113: 0.3 | D113: 0 | E113: 0 | F113: 0 | G113: 0 | H113: 0 | I113: 0 | J113: 0 | K113: 0 | P113: 1 | R113: 0.3
A114: Calcium phosphate (monocalcium) | B114: 0.328 | D114: 1.625 | E114: 0.34816 | F114: 2.520373106 | G114: 4.493533106 | H114: 1.625 | I114: 2.868533106 | J114: 0.34816 | K114: 2.520373106 | P114: 1 | R114: 0.328
A115: Calcium sulfate, dihydrate | B115: 2 | D115: 0 | E115: 0 | F115: 0 | G115: 0 | H115: 0 | I115: 0 | J115: 0 | K115: 0 | P115: 1 | R115: 0
A116: Limestone, ground | B116: 0.0176 | D116: 1.6025 | E116: 0.50048 | F116: 5.385312 | G116: 7.488292 | H116: 1.6025 | I116: 5.885792 | J116: 0.50048 | K116: 5.385312 | P116: 1 | R116: 0.0176
A117: Magnesium phosphate | B117: 2 | D117: 0 | E117: 0 | F117: 0 | G117: 0 | H117: 0 | I117: 0 | J117: 0 | K117: 0 | P117: 1 | R117: 0
A118: Sodium carbonate | B118: 2 | D118: 0 | E118: 0 | F118: 0 | G118: 0 | H118: 0 | I118: 0 | J118: 0 | K118: 0 | P118: 1 | R118: 0
A119: Sodium bicarbonate | B119: 2 | D119: 0 | E119: 0 | F119: 0 | G119: 0 | H119: 0 | I119: 0 | J119: 0 | K119: 0 | P119: 1 | R119: 0
A120: Sodium chloride | B120: 0.058 | D120: 0.58 | E120: 0.2176 | F120: 2.99184 | G120: 3.78944 | H120: 0.58 | I120: 3.20944 | J120: 0.2176 | K120: 2.99184 | P120: 1 | R120: 0.058
A121: Sodium phosphate, monobasic | B121: 2 | D121: 0 | E121: 0 | F121: 0 | G121: 0 | H121: 0 | I121: 0 | J121: 0 | K121: 0 | P121: 1 | R121: 0
A122: Sodium sulfate, decahydrate | B122: 0.016 | D122: 0 | E122: 0 | F122: 0 | G122: 0 | H122: 0 | I122: 0 | J122: 0 | K122: 0 | P122: 1 | R122: 0.016
A123: L-Lys-HCL | B123: 0.75 | D123: 0.08875 | E123: 0.18008 | F123: 1.795104 | G123: 2.063934 | H123: 0.08875 | I123: 1.975184 | J123: 0.18008 | K123: 1.795104 | P123: 1 | R123: 0.75
A124: DL-Met | B124: 2.3 | D124: 0.0125 | E124: 0.036992 | F124: 0.1369116335 | G124: 0.1864036335 | H124: 0.0125 | I124: 0.1739036335 | J124: 0.036992 | K124: 0.1369116335 | P124: 1 | R124: 2.3
A125: L-Thr | B125: 1.2 | D125: 0.0125 | E125: 0.047872 | F125: 0.4772691859 | G125: 0.5376411859 | H125: 0.0125 | I125: 0.5251411859 | J125: 0.047872 | K125: 0.4772691859 | P125: 1 | R125: 1.2
A126: L-Trp | B126: 2 | D126: 0 | E126: 0 | F126: 0.06829270357 | G126: 0.06829270357 | H126: 0 | I126: 0.06829270357 | J126: 0 | K126: 0.06829270357 | P126: 1 | R126: 0
A127: L-Val | B127: 7 | D127: 0 | E127: 0 | F127: 0 | G127: 0 | H127: 0 | I127: 0 | J127: 0 | K127: 0 | P127: 1 | R127: 7
A128: L-Ileu | B128: 7 | D128: 0 | E128: 0 | F128: 0 | G128: 0 | H128: 0 | I128: 0 | J128: 0 | K128: 0 | P128: 1 | R128: 7
A129: Methionine hydroxy analog | B129: 1.2 | D129: 0 | E129: 0 | F129: 0 | G129: 0 | H129: 0 | I129: 0 | J129: 0 | K129: 0 | P129: 1 | R129: 1.2
A130: Glutamine | B130: 2 | D130: 0 | E130: 0 | F130: 0 | G130: 0 | H130: 0 | I130: 0 | J130: 0 | K130: 0 | P130: 1 | R130: 0
A131: Glutamic acid | B131: 2 | D131: 0 | E131: 0 | F131: 0 | G131: 0 | H131: 0 | I131: 0 | J131: 0 | K131: 0 | P131: 1 | R131: 0
A132: Biolys | B132: 0.7 | D132: 0 | E132: 0 | F132: 0 | G132: 0 | H132: 0 | I132: 0 | J132: 0 | K132: 0 | P132: 1 | R132: 0.7
A133: Liquid lysine 60% | B133: 0.6 | D133: 0 | E133: 0 | F133: 0 | G133: 0 | H133: 0 | I133: 0 | J133: 0 | K133: 0 | P133: 1 | R133: 0.6
A134: MHA dry | B134: 2.2 | D134: 0 | E134: 0 | F134: 0 | G134: =SUM(D134:F134) -> 0 | H134: =D134 -> 0 | I134: =E134+F134 -> 0 | J134: =E134 -> 0 | K134: =F134 -> 0 | P134: 1 | R134: 2.2
A135: Ractopamine 9 g/lb | B135: 37 | D135: 0 | E135: 0 | F135: 0 | G135: 0 | H135: 0 | I135: 0 | J135: 0 | K135: 0 | P135: 1 | R135: 37
A136: Phase 2 supplement (PEP2) | B136: 0.45 | D136: 0 | E136: 0 | F136: 0 | G136: 0 | H136: 0 | I136: 0 | J136: 0 | K136: 0 | P136: 1 | R136: 0.45
A137: 2007 Starter base mix | B137: 0.36 | D137: 0 | E137: 0 | F137: 0 | G137: 0 | H137: 0 | I137: 0 | J137: 0 | K137: 0 | P137: 1 | R137: 0.36
A138: 2007 Grow-finish base mix | B138: 0.22 | D138: 0 | E138: 0 | F138: 0 | G138: 0 | H138: 0 | I138: 0 | J138: 0 | K138: 0 | P138: 1 | R138: 0.22
A139: Developer base mix | B139: 0.2 | D139: 0 | E139: 0 | F139: 0 | G139: 0 | H139: 0 | I139: 0 | J139: 0 | K139: 0 | P139: 1 | R139: 0.2
A140: 2007 Sow base mix | B140: 0.22 | D140: 0 | E140: 0 | F140: 0 | G140: 0 | H140: 0 | I140: 0 | J140: 0 | K140: 0 | P140: 1 | R140: 0.22
A141: Vitamin premix with phytase | B141: 0.677 | D141: 0.3125 | E141: 0.1088 | F141: 0.7040980706 | G141: 1.125398071 | H141: 0.3125 | I141: 0.8128980706 | J141: 0.1088 | K141: 0.7040980706 | P141: 1 | R141: 0.677
A142: Trace mineral premix | B142: 0.41 | D142: 0.1875 | E142: 0.06528 | F142: 0.7040980706 | G142: 0.9568780706 | H142: 0.1875 | I142: 0.7693780706 | J142: 0.06528 | K142: 0.7040980706 | P142: 1 | R142: 0.41
A143: Sow add pack | B143: 1.7 | D143: 0.3125 | E143: 0 | F143: 0 | G143: 0.3125 | H143: 0.3125 | I143: 0 | J143: 0 | K143: 0 | P143: 1 | R143: 1.7
A144: Vitamin premix without phytase | B144: 0.9 | D144: 0 | E144: 0 | F144: 0 | G144: 0 | H144: 0 | I144: 0 | J144: 0 | K144: 0 | P144: 1 | R144: 0.9
A145: GF DDGS Base Mix | B145: 0.25 | D145: 0 | E145: 0 | F145: 0 | G145: 0 | H145: 0 | I145: 0 | J145: 0 | K145: 0 | P145: 1 | R145: 0.25
A146: GF synthetics Base Mix | B146: 0.3 | D146: 0 | E146: 0 | F146: 0 | G146: 0 | H146: 0 | I146: 0 | J146: 0 | K146: 0 | P146: 1 | R146: 0.3
A147: Choline chloride 60% | B147: 0.6 | D147: 0 | E147: 0 | F147: 0 | G147: 0 | H147: 0 | I147: 0 | J147: 0 | K147: 0 | P147: 1 | R147: 0.6
A148: Natuphos 600 | B148: 2 | D148: 0 | E148: 0 | F148: 0 | G148: 0 | H148: 0 | I148: 0 | J148: 0 | K148: 0 | P148: 1 | R148: 0
A149: Natuphos 1200 | B149: 2 | D149: 0 | E149: 0 | F149: 0 | G149: 0 | H149: 0 | I149: 0 | J149: 0 | K149: 0 | P149: 1 | R149: 0
A150: Optiphos 2000 | B150: 2 | D150: 0 | E150: 0 | F150: 0 | G150: 0 | H150: 0 | I150: 0 | J150: 0 | K150: 0 | P150: 1 | R150: 0
A151: Phyzyme 1200 | B151: 2 | D151: 0 | E151: 0 | F151: 0 | G151: 0 | H151: 0 | I151: 0 | J151: 0 | K151: 0 | P151: 1 | R151: 0
A152: Phyzyme 5000 | B152: =IF(R152="",$B$191,IF(R152=0,$B$191,R152)) -> 2 | D152: 0 | E152: 0 | F152: 0 | G152: 0 | H152: 0 | I152: 0 | J152: 0 | K152: 0 | P152: =IF(SUM(D152:F351)=0,0,1) -> 1 | R152: 0
A153: Ronozyme CT (10,000) | B153: 2 | D153: 0 | E153: 0 | F153: 0 | G153: 0 | H153: 0 | I153: 0 | J153: 0 | K153: 0 | P153: 1 | R153: 0
A154: Ronozyme M (50,000) | B154: 2 | D154: 0 | E154: 0 | F154: 0 | G154: 0 | H154: 0 | I154: 0 | J154: 0 | K154: 0 | P154: 1 | R154: 0
A155: Ronozyme PMX PLT (4625 FYT/g) | B155: 0.8332 | D155: 0 | E155: 0 | F155: 0.05785606848 | G155: 0.05785606848 | H155: 0 | I155: 0.05785606848 | J155: 0 | K155: 0.05785606848 | P155: 1 | R155: 0.8332
A156: Zinc oxide | B156: 1.1 | D156: 0 | E156: 0 | F156: 0 | G156: 0 | H156: 0 | I156: 0 | J156: 0 | K156: 0 | P156: 1 | R156: 1.1
A157: Copper sulfate | B157: 1.1 | D157: 0 | E157: 0 | F157: 0 | G157: 0 | H157: 0 | I157: 0 | J157: 0 | K157: 0 | P157: 1 | R157: 1.1
A158: Potassium chloride | B158: 0.175 | D158: 0 | E158: 0 | F158: 0 | G158: 0 | H158: 0 | I158: 0 | J158: 0 | K158: 0 | P158: 1 | R158: 0.175
A159: Calcium chloride | B159: 0.2 | D159: 0 | E159: 0 | F159: 0 | G159: 0 | H159: 0 | I159: 0 | J159: 0 | K159: 0 | P159: 1 | R159: 0.2
A160: Acidifier | B160: 1 | D160: 0 | E160: 0 | F160: 0 | G160: 0 | H160: 0 | I160: 0 | J160: 0 | K160: 0 | P160: 1 | R160: 1
A161: Vitamin E, 20,000 IU | B161: 0.4 | D161: 0 | E161: 0 | F161: 0 | G161: 0 | H161: 0 | I161: 0 | J161: 0 | K161: 0 | P161: 1 | R161: 0.4
A162: Phase 2 supplement D | B162: 0.4 | D162: 0 | E162: 0 | F162: 0 | G162: 0 | H162: 0 | I162: 0 | J162: 0 | K162: 0 | P162: 1 | R162: 0.4
A163: DPS 50 | B163: 0.5 | D163: 0 | E163: 0 | F163: 0 | G163: 0 | H163: 0 | I163: 0 | J163: 0 | K163: 0 | P163: 1 | R163: 0.5
A164: PEP2+ | B164: 0.6 | D164: 0 | E164: 0 | F164: 0 | G164: 0 | H164: 0 | I164: 0 | J164: 0 | K164: 0 | P164: 1 | R164: 0.6
A165: PEP NS | B165: 0.5 | D165: 0 | E165: 0 | F165: 0 | G165: 0 | H165: 0 | I165: 0 | J165: 0 | K165: 0 | P165: 1 | R165: 0.5
A166: Natural vitamin E 20,000 IU/lb | B166: 9.4375 | D166: 0 | E166: 0 | F166: 0 | G166: 0 | H166: 0 | I166: 0 | J166: 0 | K166: 0 | P166: 1 | R166: 9.4375
A167: Other ingredient | B167: 2 | D167: 0 | E167: 0 | F167: 0 | G167: 0 | H167: 0 | I167: 0 | J167: 0 | K167: 0 | P167: 1 | R167: 0
A168: Corn DDGS, 10.5% Oil | B168: 0.125 | D168: 0 | E168: 0 | F168: 0 | G168: 0 | H168: 0 | I168: 0 | J168: 0 | K168: 0 | P168: 1 | R168: 0.125
A169: Corn DDGS, 7.5% Oil | B169: 0.105 | D169: 0 | E169: 5.552 | F169: 0 | G169: 5.552 | H169: 0 | I169: 5.552 | J169: 5.552 | K169: =F169 -> 0 | P169: 1 | R169: 0.105
A170: Corn DDGS, 4.5% Oil | B170: 0.125 | D170: 0 | E170: 0 | F170: 0 | G170: 0 | H170: 0 | I170: 0 | J170: 0 | K170: 0 | P170: 1 | R170: 0.125
A171: Denegard | B171: 4.7286 | D171: 0 | E171: 0.021 | F171: 0 | G171: 0.021 | H171: 0 | I171: 0.021 | J171: 0.021 | K171: 0 | P171: 1 | R171: 4.7286
A172: CTC 50 | B172: 1.44 | D172: 0 | E172: 0.048 | F172: 0 | G172: 0.048 | H172: 0 | I172: 0.048 | J172: 0.048 | K172: 0 | P172: 1 | R172: 1.44
A173: Bentonite | B173: 0.15 | D173: 0 | E173: 0 | F173: 0 | G173: 0 | H173: 0 | I173: 0 | J173: 0 | K173: 0 | P173: 1 | R173: 0.15
A174: Phase 2 supplement (Feb, 2014) | B174: 0.7362 | D174: 0 | E174: 2.1 | F174: 0 | G174: 2.1 | H174: 0 | I174: 2.1 | J174: 2.1 | K174: 0 | P174: 1 | R174: 0.7362
A175: Other ingredient | B175: 2 | D175: 0 | E175: 0 | F175: 0 | G175: 0 | H175: 0 | I175: 0 | J175: 0 | K175: 0 | P175: 1 | R175: 0
A176: Other ingredient | B176: 2 | D176: 0 | E176: 0 | F176: 0 | G176: 0 | H176: 0 | I176: 0 | J176: 0 | K176: 0 | P176: 1 | R176: 0
A177: Other ingredient | B177: 2 | D177: 0 | E177: 0 | F177: 0 | G177: 0 | H177: 0 | I177: 0 | J177: 0 | K177: 0 | P177: 1 | R177: 0
A178: Other ingredient | B178: 2 | D178: 0 | E178: 0 | F178: 0 | G178: 0 | H178: 0 | I178: 0 | J178: 0 | K178: 0 | P178: 1 | R178: 0
A179: Other ingredient | B179: 2 | D179: 0 | E179: 0 | F179: 0 | G179: 0 | H179: 0 | I179: 0 | J179: 0 | K179: 0 | P179: 1 | R179: 0
A180: Other ingredient | B180: 2 | D180: 0 | E180: 0 | F180: 0 | G180: 0 | H180: 0 | I180: 0 | J180: 0 | K180: 0 | P180: 1 | R180: 0
A181: Other ingredient | B181: 2 | D181: 0 | E181: 0 | F181: 0 | G181: 0 | H181: 0 | I181: 0 | J181: 0 | K181: 0 | P181: 1 | R181: 0
A182: Other ingredient | B182: 2 | D182: 0 | E182: 0 | F182: 0 | G182: 0 | H182: 0 | I182: 0 | J182: 0 | K182: 0 | P182: 1 | R182: 0
A183: Other ingredient | B183: 2 | D183: 0 | E183: 0 | F183: 0 | G183: 0 | H183: 0 | I183: 0 | J183: 0 | K183: 0 | P183: 1 | R183: 0
A184: Other ingredient | B184: 2 | D184: 0 | E184: 0 | F184: 0 | G184: 0 | H184: 0 | I184: 0 | J184: 0 | K184: 0 | P184: 1 | R184: 0
A185: Other ingredient | B185: 2 | D185: 0 | E185: 0 | F185: 0 | G185: 0 | H185: 0 | I185: 0 | J185: 0 | K185: 0 | P185: 1 | R185: 0
A186: Other ingredient | B186: 2 | D186: 0 | E186: 0 | F186: 0 | G186: =SUM(D186:F186) -> 0 | H186: 0 | I186: 0 | J186: 0 | K186: 0 | P186: 1 | R186: 0
B187: 2 | G187: =SUM(D187:F187) -> 0 | H187: =D187 -> 0 | I187: =E187+F187 -> 0 | J187: =E187 -> 0 | K187: =F187 -> 0 | P187: 1 | R187: 0
A188: Complete nursery pellet | B188: =IF(R188="",$B$191,IF(R188=0,$B$191,R188)) -> 0.35 | D188: 0 | E188: 3 | F188: 0 | G188: =SUM(D188:F188) -> 3 | H188: =D188 -> 0 | I188: =E188+F188 -> 3 | J188: =E188 -> 3 | K188: =F188 -> 0 | P188: 1 | R188: 0.35
D189: =SUM(D23:D188) -> 125 | E189: =SUM(E23:E188) -> 58.52 | F189: =SUM(F23:F188) -> 598.368 | G189: =SUM(G23:G188) -> 781.888 | H189: =SUM(H23:H188) -> 125 | I189: 656.888 | J189: 58.52 | K189: 598.368
C190: Total: | D190: =SUM(D23:D188) -> 125 | E190: =SUM(E23:E188) -> 58.52 | F190: 598.368
B191: 2 | C191: Total "Minor" Ingredients: | D191: =D190-(D23+D78+D169) -> 4.73375 | E191: =E190-(E23+E78+E169) -> 6.674264 | F191: 14.84115484
C192: % Diet Minor Ingredients: | D192: =D191/D190 -> 0.03787 | E192: =E191/E190 -> 0.1140509911 | F192: 0.02480272147

Sheet Farrow-Finish
A1: KSU Farrow-to-Finish Swine Budget | C1: Current Prices | G1: =IF(C1=Prices!B4,TEXT(Prices!B5,"MMM-YYYY"),IF(C1=Prices!D4,TEXT(Prices!D5,"MMM-YYYY"),TEXT(Prices!G5,"MMM-YYYY"))) -> (as of Dec. 7th, 2020)
L2: INTERNAL NOTES | M2: Click on "Current Prices" to change to "One Year Out Prices " or "Five Years Out Prices"
A3: Production Efficiency Information | L3: production data from NPB/Stadler "2014 U.S. Pork Industry Productivity Analysis"
A4: Weaned Pigs/Mated Sow/Year | B4: 23.9 | L4: production data from NPB/Stadler "2014 U.S. Pork Industry Productivity Analysis"
A5: Litters/Mated Sow/Year | B5: 2.3 | L5: production data from NPB/Stadler "2014 U.S. Pork Industry Productivity Analysis"
A6: Wean-Finish Mortality (%) | B6: 7.99 | D6: Nursery Feed to Gain | J6: 1.54 | L6: production data from NPB/Stadler "2014 U.S. Pork Industry Productivity Analysis"
A7: Market Hogs Sold/Mated Sow/Year | B7: =B4*((100-B6)/100) -> 21.99039 | D7: Grow/Finish Feed to Gain | J7: 2.54 | L7: production data from NPB/Stadler "2014 U.S. Pork Industry Productivity Analysis"
A8: Sow Replacement Rate | B8: 0.5 | D8: Weaned Pig Weight | J8: 14 | L8: Per April KSU team meeting
A9: Sow Mortality (%) | B9: 0.08 | D9: Nursery Exit Weight | J9: 52 | L9: Per April KSU team meeting
A11: Revenue | B11: Price | C11: Unit | E11: Qty | F11: Unit | J11: Total per Year per Sow | K11: Total per Year per Pig Sold
A12: Market Hogs | B12: =IF($C$1=Prices!$A$1, Prices!B14, IF($C$1=Prices!$A$2, Prices!D14, IF($C$1=Prices!$A$3, Prices!G14, ""))) -> 44.75 | C12: per cwt | D12: x | E12: 277 | F12: lbs | G12: x | H12: =B7 -> 21.99039 | I12: = | J12: =(B12/100)*E12*H12 -> 2725.873768 | K12: =J12/B7 -> 123.9575 | L12: 272 lbs is from NPB/Stadler 2014 report table 2
A13: Cull Sows | B13: =IF($C$1=Prices!$A$1, Prices!B17, IF($C$1=Prices!$A$2, Prices!D17, IF($C$1=Prices!$A$3, Prices!G17, ""))) -> 46.3 | C13: per cwt | D13: x | E13: 400 | F13: lbs | G13: x | H13: =B8-B9 -> 0.42 | I13: = | J13: =B13*(E13/100)*H13 -> 77.784 | K13: =J13/B7 -> 3.537181469 | L13: Per April KSU team meeting
A14: Manure Credit | J14: =K14*$B$7 -> 131.94234 | K14: 6 | L14: Per April KSU team meeting; also note ERS COP places $4.25/cwt gain here so our $5/hd is conservative
A15: Other revenue | J15: =K15*$B$7 -> 0 | K15: 0
A16: Gross Income | J16: =SUM(J12:J15) -> 2935.600108 | K16: =SUM(K12:K15) -> 133.4946815
A18: Variable Costs
A19: Sow Feed | B19: =IF($C$1=Prices!$A$1, SUMPRODUCT(Feed!$H$23:$H$188,Prices!$B$41:$B$206), IF($C$1=Prices!$A$2, SUMPRODUCT(Feed!$H$23:$H$188,Prices!$D$41:$D$206), IF($C$1=Prices!$A$3,SUMPRODUCT(Feed!$H$23:$H$188,Prices!$G$41:$G$206), "")))/Feed!H189 -> 0.1059415891 | C19: per lb | D19: x | E19: =Feed!H189 -> 125 | F19: lbs | I19: = | J19: =K19*B5 -> 30.45820687 | K19: =(B19*E19) -> 13.24269864 | L19: Worked from April 2015 KSU XL Ration, collapsing down to #s by phase here w/ details in Feed tab and notes below; Also scaling feed lbs given changes to # pigs and finished weight; Can cross-check w/ ERS COP data also
A20: Nursery Feed | B20: =IF($C$1=Prices!$A$1, SUMPRODUCT(Feed!$J$23:$J$188,Prices!$B$41:$B$206), IF($C$1=Prices!$A$2, SUMPRODUCT(Feed!$J$23:$J$188,Prices!$D$41:$D$206), IF($C$1=Prices!$A$3,SUMPRODUCT(Feed!$J$23:$J$188,Prices!$G$41:$G$206), "")))/Feed!J189 -> 0.1590974493 | C20: per lb | D20: x | E20: =IF(J6=1.54,(((J9-52)*0.011+J6)*(J9-J8)),(J6*(J9-J8))) -> 58.52 | F20: lbs | I20: = | J20: =K20*B4 -> 222.5181473 | K20: =(B20*E20) -> 9.310382731
A21: Grow-Finish Feed | B21: =IF($C$1=Prices!$A$1, SUMPRODUCT(Feed!$K$23:$K$188,Prices!$B$41:$B$206), IF($C$1=Prices!$A$2, SUMPRODUCT(Feed!$K$23:$K$188,Prices!$D$41:$D$206), IF($C$1=Prices!$A$3,SUMPRODUCT(Feed!$K$23:$K$188,Prices!$G$41:$G$206), "")))/Feed!K189 -> 0.1000081359 | C21: per lb | D21: x | E21: =IF(J7=2.54,(((E12-277)*0.005+J7)*(E12-J9)),(J7*(E12-J9))) -> 571.5 | F21: lbs | I21: = | J21: =K21*B7 -> 1256.853037 | K21: =(B21*E21) -> 57.15464968
A22: Feed Processing | B22: =IF($C$1=Prices!$A$1, Prices!B30, IF($C$1=Prices!$A$2, Prices!D30, IF($C$1=Prices!$A$3,Prices!G30, ""))) -> 17 | C22: per ton | D22: x | E22: =SUM(E19:E21)/2000 -> 0.37751 | F22: ton | I22: = | J22: =K22*$B$7 -> 141.1270662 | K22: =B22*E22 -> 6.41767
A23: Labor | B23: 15 | C23: per hour | D23: x | E23: 6 | F23: hours | I23: = | J23: =B23*E23*B5 -> 207 | K23: =J23/B7 -> 9.413202767 | L23: Note: Using Schulz's 3/31/15 Iowa St. values (http://www.extension.iastate.edu/agdm/livestock/pdf/b1-21.pdf)
A24: Vet Medicine/Drugs | J24: =K24*B7 -> 187.0040775 | K24: =3.07*E12/100 -> 8.5039 | L24: Note: Using ERS $1.94/cwt produced value
A25: Replacement Females | B25: =(IF(C1=Prices!A1, Prices!B18, IF(C1=Prices!A2, Prices!D18, IF(C1=Prices!A3,Prices!G18, "")))) -> 198.0625 | C25: per head | D25: x | E25: =B8 -> 0.5 | F25: hd | I25: = | J25: =B25*E25 -> 99.03125 | K25: =J25/B7 -> 4.503387616
A26: Semen Cost & Genetic Fee | J26: =13*B5 -> 29.9 | K26: =J26/B7 -> 1.359684844 | L26: Note: Schulz's 3/31/15 Iowa St. values are $13/litter
A27: Marketing, Bedding, and Misc | J27: =K27*B7 -> 62.13164791 | K27: =(0.04+0.22+0.76)*E12/100 -> 2.8254 | L27: Note: Using ERS $0.92/cwt produced value (Bed&Litter, Mkt,Custom Srv). Compares w/ Schulz's 3/31/15 $30/litter)
A28: Utilities, Gas, Fuel, Oil | J28: =K28*B7 -> 116.9536902 | K28: =1.92*E12/100 -> 5.3184 | L28: Note: Using ERS $2.22/cwt produced values (compares w/ Schulz's 3/31/15 $50/litter)
A29: Machinery, Facility/Equip. Repairs | J29: =K29*B7 -> 87.10613383 | K29: =1.43*E12/100 -> 3.9611 | L29: Note: Using ERS $0.88/cwt produced value (low compared to Schulz's 3/31/15 $130/litter)
A30: Other variable costs | J30: 0 | K30: =J30/B7 -> 0
A31: Total Variable Costs | J31: =SUM(J19:J30) -> 2440.083256 | K31: =SUM(K19:K30) -> 122.0104763
A33: Fixed Costs
A34: Machinery, Facilities, General Overhead | J34: =K34*B7 -> 907.0002327 | K34: =(13.54+0.07+1.28)*E12/100 -> 41.2453 | L34: Note: Using ERS $9.38/cwt produced value for capital recovery of mach. & equipment + $0.93 for general farm overhead
A35: Taxes and Insurance | J35: =K35*B7 -> 38.37542959 | K35: =0.63*E12/100 -> 1.7451 | L35: Note: Using ERS $0.49/cwt produced value
A36: Legal, Accounting, etc. | J36: =K36*B7 -> 32.985585 | K36: 1.5 | L36: no source
A37: Other fixed costs | J37: 0 | K37: =J37/B7 -> 0
A38: Total Fixed Costs | J38: =SUM(J34:J37) -> 978.3612473 | K38: =SUM(K34:K37) -> 44.4904 | L38: Schulz's 3/31/15 value is $195.42/litter
A40: Total Costs | J40: =J31+J38 -> 3418.444504 | K40: =K31+K38 -> 166.5008763 | L40: ERS COP is $58.66/cwt produced
A41: Income Over Variable Costs | J41: =J16-J31 -> 495.5168519 | K41: =K16-K31 -> 11.48420519 | L41: =58.66*(E12/100) -> 162.4882
A42: Income Over Total Costs | J42: =J16-J40 -> -482.8443953 | K42: =K16-K40 -> -33.00619481
A44: Kansas State University, Department of Agricultural Economics - www.agmanager.info
A45: Publication: AM-FMG-FarFin | J45: =Introduction!L8 -> Version- 12.7.2020
A47: =A1 -> KSU Farrow-to-Finish Swine Budget
A88: Kansas State University, Department of Agricultural Economics - www.agmanager.info
A89: =A45 -> Publication: AM-FMG-FarFin | J89: =J45 -> Version- 12.7.2020
A91: =A47 -> KSU Farrow-to-Finish Swine Budget
A92: Budget Assumptions
A94: Feed Ration
A95: Ingredient | B95: Qty | C95: Unit
A96: =Feed!A23 -> Corn, Yellow Dent | B96: =Feed!G23 -> 610.392355 | C96: lbs
A97: =Feed!A24 -> Corn, Nutridense | B97: =Feed!G24 -> 0 | C97: lbs
A98: =Feed!A25 -> Corn Bran | B98: =Feed!G25 -> 0 | C98: lbs
A99: =Feed!A26 -> Corn DDG | B99: =Feed!G26 -> 0 | C99: lbs
A100: =Feed!A27 -> Corn DDGS, >10% Oil | B100: =Feed!G27 -> 0 | C100: lbs
A101: =Feed!A28 -> Corn DDGS, >6 and <9% Oil | B101: =Feed!G28 -> 0 | C101: lbs
A102: =Feed!A29 -> Corn DDGS, <4% Oil | B102: =Feed!G29 -> 0 | C102: lbs
A103: =Feed!A30 -> Corn HP DDG | B103: =Feed!G30 -> 0 | C103: lbs
A104: =Feed!A31 -> Soybean Meal, Dehull, Sol Extr | B104: =Feed!G31 -> 0 | C104: lbs
A105: =Feed!A32 -> Soybean Meal, Dehulled, Expelled | B105: =Feed!G32 -> 0 | C105: lbs
A106: =Feed!A33 -> Soybean Meal, Solvent Extracted | B106: =Feed!G33 -> 0 | C106: lbs
A107: =Feed!A34 -> Corn Gluten Meal | B107: =Feed!G34 -> 0 | C107: lbs
A108: =Feed!A35 -> Corn Grits, Hominy Feed | B108: =Feed!G35 -> 0 | C108: lbs
A109: =Feed!A36 -> Cotton Seeds, Fullfat | B109: =Feed!G36 -> 0 | C109: lbs
A110: =Feed!A37 -> Cotton Seed Meal | B110: =Feed!G37 -> 0 | C110: lbs
A111: =Feed!A38 -> Feather Meal | B111: =Feed!G38 -> 0 | C111: lbs
A112: =Feed!A39 -> Fish Meal Combined | B112: =Feed!G39 -> 0 | C112: lbs
A113: =Feed!A40 -> Flaxseed | B113: =Feed!G40 -> 0 | C113: lbs
A114: =Feed!A41 -> Flaxseed Meal | B114: =Feed!G41 -> 0 | C114: lbs
A115: =Feed!A42 -> Lupins | B115: =Feed!G42 -> 0 | C115: lbs
A116: =Feed!A43 -> Meat Meal | B116: =Feed!G43 -> 0 | C116: lbs
A117: =Feed!A44 -> Meat and Bone Meal, P >4% | B117: =Feed!G44 -> 0 | C117: lbs
A118: =Feed!A45 -> Milk, Casein | B118: =Feed!G45 -> 0 | C118: lbs
A119: =Feed!A46 -> Milk, Lactose | B119: =Feed!G46 -> 0 | C119: lbs
A120: =Feed!A47 -> Milk, Skim Milk Powder | B120: =Feed!G47 -> 0 | C120: lbs
A121: =Feed!A48 -> Milk, Whey Powder | B121: =Feed!G48 -> 0 | C121: lbs
A122: =Feed!A49 -> Milk, Whey Permeate, 85% lactose | B122: =Feed!G49 -> 0 | C122: lbs
A123: =Feed!A50 -> Milk, Whey Protein Concentrate | B123: =Feed!G50 -> 0 | C123: lbs
A124: =Feed!A51 -> Millet | B124: =Feed!G51 -> 0 | C124: lbs
A125: =Feed!A52 -> Molasses, Sugarbeet | B125: =Feed!G52 -> 0 | C125: lbs
A126: =Feed!A53 -> Molasses, Sugarcane | B126: =Feed!G53 -> 0 | C126: lbs
A127: =Feed!A54 -> Oats | B127: =Feed!G54 -> 0 | C127: lbs
A128: =Feed!A55 -> Oats, Naked | B128: =Feed!G55 -> 0 | C128: lbs
A129: =Feed!A56 -> Oat Groats | B129: =Feed!G56 -> 0 | C129: lbs
A130: =Feed!A57 -> Peanut Meal, Expelled | B130: =Feed!G57 -> 0 | C130: lbs
A131: =Feed!A58 -> Peanut Meal, Extracted | B131: =Feed!G58 -> 0 | C131: lbs
A132: =Feed!A59 -> Peas, Field Peas | B132: =Feed!G59 -> 0 | C132: lbs
A133: =Feed!A60 -> Pea Protein Concentrate | B133: =Feed!G60 -> 0 | C133: lbs
A134: =Feed!A61 -> Potato Protein Concentrate | B134: =Feed!G61 -> 0 | C134: lbs
A135: =Feed!A62 -> Poultry Byproduct | B135: =Feed!G62 -> 0 | C135: lbs
A136: =Feed!A63 -> Rice | B136: =Feed!G63 -> 0 | C136: lbs
A137: =Feed!A64 -> Rice Bran | B137: =Feed!G64 -> 0 | C137: lbs
A138: =Feed!A65 -> Rice Bran, Defatted | B138: =Feed!G65 -> 0 | C138: lbs
A139: =Feed!A66 -> Rice, Broken | B139: =Feed!G66 -> 0 | C139: lbs
A140: =Feed!A67 -> Rye | B140: =Feed!G67 -> 0 | C140: lbs
A141: =Feed!A68 -> Sesame Meal | B141: =Feed!G68 -> 0 | C141: lbs
A142: =Feed!A69 -> Sorghum | B142: =Feed!G69 -> 0 | C142: lbs
A143: =Feed!A70 -> Soybeans, Full Fat | B143: =Feed!G70 -> 0 | C143: lbs
A144: =Feed!A71 -> Soybeans, High Protein, Full Fat | B144: =Feed!G71 -> 0 | C144: lbs
A145: =Feed!A72 -> Soybeans, Low Oligosaccharide, Full Fat | B145: =Feed!G72 -> 0 | C145: lbs
A146: =Feed!A73 -> Soybean Meal, High Protein, Expelled | B146: =Feed!G73 -> 0 | C146: lbs
A147: =Feed!A74 -> Soybean Meal, Low Oligosacch, Expell | B147: =Feed!G74 -> 0 | C147: lbs
A148: =Feed!A75 -> Soybean Meal, Expelled | B148: =Feed!G75 -> 0 | C148: lbs
A149: =Feed!A76 -> Soybean Meal, Dehulled, Expelled | B149: =Feed!G76 -> 0 | C149: lbs
A150: =Feed!A77 -> Soybean Meal, Solvent Extracted | B150: =Feed!G77 -> 0 | C150: lbs
A151: =Feed!A78 -> Soybean Meal, Dehull, Sol Extr | B151: =Feed!G78 -> 139.6944761 | C151: lbs
A152: =Feed!A79 -> Soybean Meal, High Prot, Dehull, Solv Extr | B152: =Feed!G79 -> 0 | C152: lbs
A153: =Feed!A80 -> Soybean Meal, Enzyme Treated | B153: =Feed!G80 -> 0 | C153: lbs
A154: =Feed!A81 -> Soybean Meal, Fermented | B154: =Feed!G81 -> 0 | C154: lbs
A155: =Feed!A82 -> Soybean Hulls | B155: =Feed!G82 -> 0 | C155: lbs
A156: =Feed!A83 -> Soy Protein Concentrate | B156: =Feed!G83 -> 0 | C156: lbs
A157: =Feed!A84 -> Soy Protein Isolate | B157: =Feed!G84 -> 0 | C157: lbs
A158: =Feed!A85 -> Sugar Beet Pulp | B158: =Feed!G85 -> 0 | C158: lbs
A159: =Feed!A86 -> Sunflower, Full Fat | B159: =Feed!G86 -> 0 | C159: lbs
A160: =Feed!A87 -> Sunflower Meal, Solvent Extracted | B160: =Feed!G87 -> 0 | C160: lbs
A161: =Feed!A88 -> Sunflower Meal, Dehulled, Solvent Extr | B161: =Feed!G88 -> 0 | C161: lbs
A162: =Feed!A89 -> Triticale | B162: =Feed!G89 -> 0 | C162: lbs
A163: =Feed!A90 -> Wheat, Hard Red | B163: =Feed!G90 -> 0 | C163: lbs
A164: =Feed!A91 -> Wheat, Soft Red | B164: =Feed!G91 -> 0 | C164: lbs
A165: =Feed!A92 -> Wheat Bran | B165: =Feed!G92 -> 0 | C165: lbs
A166: =Feed!A93 -> Wheat Middlings | B166: =Feed!G93 -> 0 | C166: lbs
A167: =Feed!A94 -> Wheat Shorts | B167: =Feed!G94 -> 0 | C167: lbs
A168: =Feed!A95 -> Wheat DDGS | B168: =Feed!G95 -> 0 | C168: lbs
A169: =Feed!A96 -> Yeast, Brewers' Yeast | B169: =Feed!G96 -> 0 | C169: lbs
A170: =Feed!A97 -> Yeast, Single Cell Protein | B170: =Feed!G97 -> 0 | C170: lbs
A171: =Feed!A98 -> Beef Tallow | B171: =Feed!G98 -> 0 | C171: lbs
A172: =Feed!A99 -> Choice White Grease | B172: =Feed!G99 -> 0 | C172: lbs
A173: =Feed!A100 -> Poultry Fat | B173: =Feed!G100 -> 0 | C173: lbs
A174: =Feed!A101 -> Lard | B174: =Feed!G101 -> 0 | C174: lbs
A175: =Feed!A102 -> Restaurant Grease | B175: =Feed!G102 -> 0 | C175: lbs
A176: =Feed!A103 -> Canola oil | B176: =Feed!G103 -> 0 | C176: lbs
A177: =Feed!A104 -> Coconut oil | B177: =Feed!G104 -> 0 | C177: lbs
A178: =Feed!A105 -> Corn oil | B178: =Feed!G105 -> 0 | C178: lbs
A179: =Feed!A106 -> Palm Kernel oil | B179: =Feed!G106 -> 0 | C179: lbs
A180: =Feed!A107 -> Soybean oil | B180: =Feed!G107 -> 0 | C180: lbs
A181: =Feed!A108 -> Soybean Lecithin | B181: =Feed!G108 -> 0 | C181: lbs
A182: =Feed!A109 -> Sunflower oil | B182: =Feed!G109 -> 0 | C182: lbs
A183: =Feed!A110 -> Fat, A/V blend | B183: =Feed!G110 -> 0 | C183: lbs
A184: =Feed!A111 -> Calcium carbonate | B184: =Feed!G111 -> 0 | C184: lbs
A185: =Feed!A112 -> Calcium phosphate (tricalcium) | B185: =Feed!G112 -> 0 | C185: lbs
A186: =Feed!A113 -> Calcium phosphate (dicalcium) | B186: =Feed!G113 -> 0 | C186: lbs
A187: =Feed!A114 -> Calcium phosphate (monocalcium) | B187: =Feed!G114 -> 4.493533106 | C187: lbs
A188: =Feed!A115 -> Calcium sulfate, dihydrate | B188: =Feed!G115 -> 0 | C188: lbs
A189: =Feed!A116 -> Limestone, ground | B189: =Feed!G116 -> 7.488292 | C189: lbs
A190: =Feed!A117 -> Magnesium phosphate | B190: =Feed!G117 -> 0 | C190: lbs
A191: =Feed!A118 -> Sodium carbonate | B191: =Feed!G118 -> 0 | C191: lbs
A192: =Feed!A119 -> Sodium bicarbonate | B192: =Feed!G119 -> 0 | C192: lbs
A193: =Feed!A120 -> Sodium chloride | B193: =Feed!G120 -> 3.78944 | C193: lbs
A194: =Feed!A121 -> Sodium phosphate, monobasic | B194: =Feed!G121 -> 0 | C194: lbs
A195: =Feed!A122 -> Sodium sulfate, decahydrate | B195: =Feed!G122 -> 0 | C195: lbs
A196: =Feed!A123 -> L-Lys-HCL | B196: =Feed!G123 -> 2.063934 | C196: lbs
A197: =Feed!A124 -> DL-Met | B197: =Feed!G124 -> 0.1864036335 | C197: lbs
A198: =Feed!A125 -> L-Thr | B198: =Feed!G125 -> 0.5376411859 | C198: lbs
A199: =Feed!A126 -> L-Trp | B199: =Feed!G126 -> 0.06829270357 | C199: lbs
A200: =Feed!A127 -> L-Val | B200: =Feed!G127 -> 0 | C200: lbs
A201: =Feed!A128 -> L-Ileu | B201: =Feed!G128 -> 0 | C201: lbs
A202: =Feed!A129 -> Methionine hydroxy analog | B202: =Feed!G129 -> 0 | C202: lbs
A203: =Feed!A130 -> Glutamine | B203: =Feed!G130 -> 0 | C203: lbs
A204: =Feed!A131 -> Glutamic acid | B204: =Feed!G131 -> 0 | C204: lbs
A205: =Feed!A132 -> Biolys | B205: =Feed!G132 -> 0 | C205: lbs
A206: =Feed!A133 -> Liquid lysine 60% | B206: =Feed!G133 -> 0 | C206: lbs
A207: =Feed!A134 -> MHA dry | B207: =Feed!G134 -> 0 | C207: lbs
A208: =Feed!A135 -> Ractopamine 9 g/lb | B208: =Feed!G135 -> 0 | C208: lbs
A209: =Feed!A136 -> Phase 2 supplement (PEP2) | B209: =Feed!G136 -> 0 | C209: lbs
A210: =Feed!A137 -> 2007 Starter base mix | B210: =Feed!G137 -> 0 | C210: lbs
A211: =Feed!A138 -> 2007 Grow-finish base mix | B211: =Feed!G138 -> 0 | C211: lbs
A212: =Feed!A139 -> Developer base mix | B212: =Feed!G139 -> 0 | C212: lbs
A213: =Feed!A140 -> 2007 Sow base mix | B213: =Feed!G140 -> 0 | C213: lbs
A214: =Feed!A141 -> Vitamin premix with phytase | B214: =Feed!G141 -> 1.125398071 | C214: lbs
A215: =Feed!A142 -> Trace mineral premix | B215: =Feed!G142 -> 0.9568780706 | C215: lbs
A216: =Feed!A143 -> Sow add pack | B216: =Feed!G143 -> 0.3125 | C216: lbs
A217: =Feed!A144 -> Vitamin premix without phytase | B217: =Feed!G144 -> 0 | C217: lbs
A218: =Feed!A145 -> GF DDGS Base Mix | B218: =Feed!G145 -> 0 | C218: lbs
A219: =Feed!A146 -> GF synthetics Base Mix | B219: =Feed!G146 -> 0 | C219: lbs
A220: =Feed!A147 -> Choline chloride 60% | B220: =Feed!G147 -> 0 | C220: lbs
A221: =Feed!A148 -> Natuphos 600 | B221: =Feed!G148 -> 0 | C221: lbs
A222: =Feed!A149 -> Natuphos 1200 | B222: =Feed!G149 -> 0 | C222: lbs
A223: =Feed!A150 -> Optiphos 2000 | B223: =Feed!G150 -> 0 | C223: lbs
A224: =Feed!A151 -> Phyzyme 1200 | B224: =Feed!G151 -> 0 | C224: lbs
A225: =Feed!A152 -> Phyzyme 5000 | B225: =Feed!G152 -> 0 | C225: lbs
A226: =Feed!A153 -> Ronozyme CT (10,000) | B226: =Feed!G153 -> 0 | C226: lbs
A227: =Feed!A154 -> Ronozyme M (50,000) | B227: =Feed!G154 -> 0 | C227: lbs
A228: =Feed!A155 -> Ronozyme PMX PLT (4625 FYT/g) | B228: =Feed!G155 -> 0.05785606848 | C228: lbs
A229: =Feed!A156 -> Zinc oxide | B229: =Feed!G156 -> 0 | C229: lbs
A230: =Feed!A157 -> Copper sulfate | B230: =Feed!G157 -> 0 | C230: lbs
A231: =Feed!A158 -> Potassium chloride | B231: =Feed!G158 -> 0 | C231: lbs
A232: =Feed!A159 -> Calcium chloride | B232: =Feed!G159 -> 0 | C232: lbs
A233: =Feed!A160 -> Acidifier | B233: =Feed!G160 -> 0 | C233: lbs
A234: =Feed!A161 -> Vitamin E, 20,000 IU | B234: =Feed!G161 -> 0 | C234: lbs
A235: =Feed!A162 -> Phase 2 supplement D | B235: =Feed!G162 -> 0 | C235: lbs
A236: =Feed!A163 -> DPS 50 | B236: =Feed!G163 -> 0 | C236: lbs
A237: =Feed!A164 -> PEP2+ | B237: =Feed!G164 -> 0 | C237: lbs
A238: =Feed!A165 -> PEP NS | B238: =Feed!G165 -> 0 | C238: lbs
A239: =Feed!A166 -> Natural vitamin E 20,000 IU/lb | B239: =Feed!G166 -> 0 | C239: lbs
A240: =Feed!A167 -> Other ingredient | B240: =Feed!G167 -> 0 | C240: lbs
A241: =Feed!A168 -> Corn DDGS, 10.5% Oil | B241: =Feed!G168 -> 0 | C241: lbs
A242: =Feed!A169 -> Corn DDGS, 7.5% Oil | B242: =Feed!G169 -> 5.552 | C242: lbs
A243: =Feed!A170 -> Corn DDGS, 4.5% Oil | B243: =Feed!G170 -> 0 | C243: lbs
A244: =Feed!A171 -> Denegard | B244: =Feed!G171 -> 0.021 | C244: lbs
A245: =Feed!A172 -> CTC 50 | B245: =Feed!G172 -> 0.048 | C245: lbs
A246: =Feed!A173 -> Bentonite | B246: =Feed!G173 -> 0 | C246: lbs
A247: =Feed!A174 -> Phase 2 supplement (Feb, 2014) | B247: =Feed!G174 -> 2.1 | C247: lbs
A248: =Feed!A175 -> Other ingredient | B248: =Feed!G175 -> 0
... 26 more rows

Sheet Farrow-Wean
A1: KSU Farrow-to-Wean Swine Budget | C1: Current Prices | G1: =IF(C1=Prices!B4,TEXT(Prices!B5,"MMM-YYYY"),IF(C1=Prices!D4,TEXT(Prices!D5,"MMM-YYYY"),TEXT(Prices!G5,"MMM-YYYY"))) -> (as of Dec. 7th, 2020)
L2: INTERNAL NOTES | M2: Click on "Current Prices" to change to "One Year Out Prices " or "Five Years Out Prices"
A3: Production Efficiency Information
A4: Weaned Pigs/Mated Sow/Year | B4: ='Farrow-Finish'!B4 -> 23.9 | L4: production data from NPB/Stadler "2014 U.S. Pork Industry Productivity Analysis"
A5: Litters/Mated Sow/Year | B5: ='Farrow-Finish'!B5 -> 2.3 | L5: production data from NPB/Stadler "2014 U.S. Pork Industry Productivity Analysis"
A6: Weaning Weight (lbs) | B6: ='Farrow-Finish'!J8 -> 14 | L6: production data from NPB/Stadler "2014 U.S. Pork Industry Productivity Analysis"
A7: Sow Replacement Rate | B7: 0.5 | L7: Per April KSU team meeting
A8: Sow Mortality (%) | B8: 0.08 | L8: Per April KSU team meeting
A10: Revenue | B10: Price | C10: Unit | E10: Qty | F10: Unit | J10: Total per Year per Sow | K10: Total per Year per Pig Sold
A11: Weaned Pig | B11: =IF($C$1=Prices!$A$1, Prices!B15, IF($C$1=Prices!$A$2, Prices!D15, IF($C$1=Prices!$A$3, Prices!G15, ""))) -> 43.23 | C11: per hd | D11: x | E11: 1 | F11: hd | I11: = | J11: =K11*B4 -> 1033.197 | K11: =(B11)*E11 -> 43.23
A12: Cull Sows | B12: =IF($C$1=Prices!$A$1, Prices!B17, IF($C$1=Prices!$A$2, Prices!D17, IF($C$1=Prices!$A$3, Prices!G17, ""))) -> 46.3 | C12: per cwt | D12: x | E12: ='Farrow-Finish'!E13 -> 400 | F12: lbs | G12: x | H12: =B7-B8 -> 0.42 | I12: = | J12: =B12*(E12/100)*H12 -> 77.784 | K12: =J12/B4 -> 3.254560669 | L12: Per April KSU team meeting
A13: Manure Credit | J13: =K13*B4 -> 11.95 | K13: 0.5 | L13: Per April KSU team meeting; also note ERS COP places $6.95/cwt gain ($0.90/hd for 13 lb pigs) so our $0.50/hd is reasonable
A14: Other revenue | J14: =K14*B4 -> 0 | K14: 0
A15: Gross Income | J15: =SUM(J11:J14) -> 1122.931 | K15: =SUM(K11:K14) -> 46.98456067
A17: Variable Costs
A18: Sow Feed | B18: =IF($C$1=Prices!$A$1, SUMPRODUCT(Feed!$H$23:$H$188,Prices!$B$41:$B$206), IF($C$1=Prices!$A$2, SUMPRODUCT(Feed!$H$23:$H$188,Prices!$D$41:$D$206), IF($C$1=Prices!$A$3,SUMPRODUCT(Feed!$H$23:$H$188,Prices!$G$41:$G$206), "")))/Feed!H189 -> 0.1059415891 | C18: per lb | D18: x | E18: =Feed!H189 -> 125 | F18: lbs | I18: = | J18: =K18*B4 -> 316.5004975 | K18: =(B18*E18) -> 13.24269864 | L18: Worked from April 2015 KSU XL Ration, collapsing down to #s by phase here w/ details in Feed tab and notes below
A19: Feed Processing | B19: =IF($C$1=Prices!$A$1, Prices!B30, IF($C$1=Prices!$A$2, Prices!D30, IF($C$1=Prices!$A$3,Prices!G30, ""))) -> 17 | C19: per ton | D19: x | E19: =SUM(E18:E18)/2000 -> 0.0625 | F19: ton | I19: = | J19: =K19*B4 -> 25.39375 | K19: =B19*E19 -> 1.0625
A20: Labor | B20: 15 | C20: per hour | D20: x | E20: =3*B5 -> 6.9 | F20: hours | I20: = | J20: =B20*E20 -> 103.5 | K20: =J20/B4 -> 4.330543933 | L20: Note: Using Schulz's 3/31/15 Iowa St. values (http://www.extension.iastate.edu/agdm/livestock/pdf/b1-21.pdf) of 3 hrs/litter & 2.30 litters/year in NPB/Stadler. Compares to $4.32/pig from ERS COP.
A21: Vet Medicine/Drugs | J21: =K21*B4 -> 60.03377309 | K21: =(4.76/0.2653)*($B$6/100) -> 2.511873351 | L21: Note: Using ERS $10.14/cwt produced value
A22: Replacement Females | B22: =(IF(C1=Prices!A1, Prices!B18, IF(C1=Prices!A2, Prices!D18, IF(C1=Prices!A3,Prices!G18, "")))) -> 198.0625 | C22: per head | D22: x | E22: =B7 -> 0.5 | F22: hd | I22: = | J22: =B22*E22 -> 99.03125 | K22: =J22/B4 -> 4.143566946
A23: Semen Cost & Genetic Fee | J23: =13*B5 -> 29.9 | K23: =J23/B4 -> 1.251046025 | L23: Note: Schulz's 3/31/15 Iowa St. values are $13/litter
A24: Marketing, Bedding, and Misc | J24: =K24*B4 -> 3.422928299 | K24: =(0.17/1.4+0.01/0.4324+0.31/0.3529)*($B$6/100) -> 0.1432187573 | L24: Note: Using ERS $0.76/cwt produced value (Bed&Litter, Mkt,Custom Srv)
A25: Utilities, Gas, Fuel, Oil | J25: =K25*B4 -> 18.594792 | K25: =(1.75/0.3149)*(B6/100) -> 0.7780247698 | L25: Note: Using ERS $10.67/cwt produced values (compares w/ Schulz's 3/31/15 $7.5/litter)
A26: Machinery, Facility/Equip. Repairs | J26: =K26*B4 -> 11.27466171 | K26: =(1.27/0.3769)*(B6/100) -> 0.4717431679 | L26: Note: Using ERS $3.28/cwt produced value (low compared to Schulz's 3/31/15 $130/litter)
A27: Other variable costs | J27: 0 | K27: =J27/B4 -> 0
A28: Total Variable Costs | J28: =SUM(J18:J27) -> 667.6516526 | K28: =SUM(K18:K27) -> 27.93521559
A30: Fixed Costs
A31: Machinery, Facilities, General Overhead | J31: =K31*B4 -> 178.3704373 | K31: =(13.1/0.2627+1.83/0.5317)*($B$6/100) -> 7.463198212 | L31: Note: Using ERS $37.08/cwt produced value for capital recovery of mach. & equipment + $4.42/cwt prod value for General Overhead
A32: Taxes and Insurance | J32: =K32*B4 -> 6.078724263 | K32: =(0.9/0.4954)*($B$6/100) -> 0.2543399273 | L32: Note: Using ERS $2.18/cwt produced value
A33: Legal, Accounting, etc. | J33: =K33*B4 -> 11.95 | K33: 0.5 | L33: no source
A34: Other fixed costs | J34: 0 | K34: =J34/B4 -> 0
A35: Total Fixed Costs | J35: =SUM(J31:J34) -> 196.3991615 | K35: =SUM(K31:K34) -> 8.21753814
A37: Total Costs | J37: =J28+J35 -> 864.0508141 | K37: =K28+K35 -> 36.15275373 | L37: Compares to ERS COP of $32.73/pig ($251.76/cwt produced)
A38: Income Over Variable Costs | J38: =J15-J28 -> 455.2793474 | K38: =K15-K28 -> 19.04934508
A39: Income Over Total Costs | J39: =J15-J37 -> 258.8801859 | K39: =K15-K37 -> 10.83180694
A41: Kansas State University, Department of Agricultural Economics - www.agmanager.info
A42: Publication: AM-FMG-FarWean | J42: =Introduction!L8 -> Version- 12.7.2020
A44: =A1 -> KSU Farrow-to-Wean Swine Budget
A85: Kansas State University, Department of Agricultural Economics - www.agmanager.info
A86: =A42 -> Publication: AM-FMG-FarWean | J86: =J42 -> Version- 12.7.2020
A88: =A44 -> KSU Farrow-to-Wean Swine Budget
A89: Budget Assumptions
A91: Feed Ration
A92: Ingredient | B92: Qty | C92: Unit
A93: =Feed!A23 -> Corn, Yellow Dent | B93: =Feed!H23 -> 97.56385605 | C93: lbs
A94: =Feed!A24 -> Corn, Nutridense | B94: =Feed!H24 -> 0 | C94: lbs
A95: =Feed!A25 -> Corn Bran | B95: =Feed!H25 -> 0 | C95: lbs
A96: =Feed!A26 -> Corn DDG | B96: =Feed!H26 -> 0 | C96: lbs
A97: =Feed!A27 -> Corn DDGS, >10% Oil | B97: =Feed!H27 -> 0 | C97: lbs
A98: =Feed!A28 -> Corn DDGS, >6 and <9% Oil | B98: =Feed!H28 -> 0 | C98: lbs
A99: =Feed!A29 -> Corn DDGS, <4% Oil | B99: =Feed!H29 -> 0 | C99: lbs
A100: =Feed!A30 -> Corn HP DDG | B100: =Feed!H30 -> 0 | C100: lbs
A101: =Feed!A31 -> Soybean Meal, Dehull, Sol Extr | B101: =Feed!H31 -> 0 | C101: lbs
A102: =Feed!A32 -> Soybean Meal, Dehulled, Expelled | B102: =Feed!H32 -> 0 | C102: lbs
A103: =Feed!A33 -> Soybean Meal, Solvent Extracted | B103: =Feed!H33 -> 0 | C103: lbs
A104: =Feed!A34 -> Corn Gluten Meal | B104: =Feed!H34 -> 0 | C104: lbs
A105: =Feed!A35 -> Corn Grits, Hominy Feed | B105: =Feed!H35 -> 0 | C105: lbs
A106: =Feed!A36 -> Cotton Seeds, Fullfat | B106: =Feed!H36 -> 0 | C106: lbs
A107: =Feed!A37 -> Cotton Seed Meal | B107: =Feed!H37 -> 0 | C107: lbs
A108: =Feed!A38 -> Feather Meal | B108: =Feed!H38 -> 0 | C108: lbs
A109: =Feed!A39 -> Fish Meal Combined | B109: =Feed!H39 -> 0 | C109: lbs
A110: =Feed!A41 -> Flaxseed Meal | B110: =Feed!H41 -> 0 | C110: lbs
A111: =Feed!A41 -> Flaxseed Meal | B111: =Feed!H41 -> 0 | C111: lbs
A112: =Feed!A42 -> Lupins | B112: =Feed!H42 -> 0 | C112: lbs
A113: =Feed!A43 -> Meat Meal | B113: =Feed!H43 -> 0 | C113: lbs
A114: =Feed!A44 -> Meat and Bone Meal, P >4% | B114: =Feed!H44 -> 0 | C114: lbs
A115: =Feed!A45 -> Milk, Casein | B115: =Feed!H45 -> 0 | C115: lbs
A116: =Feed!A46 -> Milk, Lactose | B116: =Feed!H46 -> 0 | C116: lbs
A117: =Feed!A47 -> Milk, Skim Milk Powder | B117: =Feed!H47 -> 0 | C117: lbs
A118: =Feed!A48 -> Milk, Whey Powder | B118: =Feed!H48 -> 0 | C118: lbs
A119: =Feed!A49 -> Milk, Whey Permeate, 85% lactose | B119: =Feed!H49 -> 0 | C119: lbs
A120: =Feed!A50 -> Milk, Whey Protein Concentrate | B120: =Feed!H50 -> 0 | C120: lbs
A121: =Feed!A51 -> Millet | B121: =Feed!H51 -> 0 | C121: lbs
A122: =Feed!A52 -> Molasses, Sugarbeet | B122: =Feed!H52 -> 0 | C122: lbs
A123: =Feed!A53 -> Molasses, Sugarcane | B123: =Feed!H53 -> 0 | C123: lbs
A124: =Feed!A54 -> Oats | B124: =Feed!H54 -> 0 | C124: lbs
A125: =Feed!A55 -> Oats, Naked | B125: =Feed!H55 -> 0 | C125: lbs
A126: =Feed!A56 -> Oat Groats | B126: =Feed!H56 -> 0 | C126: lbs
A127: =Feed!A57 -> Peanut Meal, Expelled | B127: =Feed!H57 -> 0 | C127: lbs
A128: =Feed!A58 -> Peanut Meal, Extracted | B128: =Feed!H58 -> 0 | C128: lbs
A129: =Feed!A59 -> Peas, Field Peas | B129: =Feed!H59 -> 0 | C129: lbs
A130: =Feed!A60 -> Pea Protein Concentrate | B130: =Feed!H60 -> 0 | C130: lbs
A131: =Feed!A61 -> Potato Protein Concentrate | B131: =Feed!H61 -> 0 | C131: lbs
A132: =Feed!A62 -> Poultry Byproduct | B132: =Feed!H62 -> 0 | C132: lbs
A133: =Feed!A63 -> Rice | B133: =Feed!H63 -> 0 | C133: lbs
A134: =Feed!A64 -> Rice Bran | B134: =Feed!H64 -> 0 | C134: lbs
A135: =Feed!A65 -> Rice Bran, Defatted | B135: =Feed!H65 -> 0 | C135: lbs
A136: =Feed!A66 -> Rice, Broken | B136: =Feed!H66 -> 0 | C136: lbs
A137: =Feed!A67 -> Rye | B137: =Feed!H67 -> 0 | C137: lbs
A138: =Feed!A68 -> Sesame Meal | B138: =Feed!H68 -> 0 | C138: lbs
A139: =Feed!A69 -> Sorghum | B139: =Feed!H69 -> 0 | C139: lbs
A140: =Feed!A70 -> Soybeans, Full Fat | B140: =Feed!H70 -> 0 | C140: lbs
A141: =Feed!A71 -> Soybeans, High Protein, Full Fat | B141: =Feed!H71 -> 0 | C141: lbs
A142: =Feed!A72 -> Soybeans, Low Oligosaccharide, Full Fat | B142: =Feed!H72 -> 0 | C142: lbs
A143: =Feed!A73 -> Soybean Meal, High Protein, Expelled | B143: =Feed!H73 -> 0 | C143: lbs
A144: =Feed!A74 -> Soybean Meal, Low Oligosacch, Expell | B144: =Feed!H74 -> 0 | C144: lbs
A145: =Feed!A75 -> Soybean Meal, Expelled | B145: =Feed!H75 -> 0 | C145: lbs
A146: =Feed!A76 -> Soybean Meal, Dehulled, Expelled | B146: =Feed!H76 -> 0 | C146: lbs
A147: =Feed!A77 -> Soybean Meal, Solvent Extracted | B147: =Feed!H77 -> 0 | C147: lbs
A148: =Feed!A78 -> Soybean Meal, Dehull, Sol Extr | B148: =Feed!H78 -> 22.70239395 | C148: lbs
A149: =Feed!A79 -> Soybean Meal, High Prot, Dehull, Solv Extr | B149: =Feed!H79 -> 0 | C149: lbs
A150: =Feed!A80 -> Soybean Meal, Enzyme Treated | B150: =Feed!H80 -> 0 | C150: lbs
A151: =Feed!A81 -> Soybean Meal, Fermented | B151: =Feed!H81 -> 0 | C151: lbs
A152: =Feed!A82 -> Soybean Hulls | B152: =Feed!H82 -> 0 | C152: lbs
A153: =Feed!A83 -> Soy Protein Concentrate | B153: =Feed!H83 -> 0 | C153: lbs
A154: =Feed!A84 -> Soy Protein Isolate | B154: =Feed!H84 -> 0 | C154: lbs
A155: =Feed!A85 -> Sugar Beet Pulp | B155: =Feed!H85 -> 0 | C155: lbs
A156: =Feed!A86 -> Sunflower, Full Fat | B156: =Feed!H86 -> 0 | C156: lbs
A157: =Feed!A87 -> Sunflower Meal, Solvent Extracted | B157: =Feed!H87 -> 0 | C157: lbs
A158: =Feed!A88 -> Sunflower Meal, Dehulled, Solvent Extr | B158: =Feed!H88 -> 0 | C158: lbs
A159: =Feed!A89 -> Triticale | B159: =Feed!H89 -> 0 | C159: lbs
A160: =Feed!A90 -> Wheat, Hard Red | B160: =Feed!H90 -> 0 | C160: lbs
A161: =Feed!A91 -> Wheat, Soft Red | B161: =Feed!H91 -> 0 | C161: lbs
A162: =Feed!A92 -> Wheat Bran | B162: =Feed!H92 -> 0 | C162: lbs
A163: =Feed!A93 -> Wheat Middlings | B163: =Feed!H93 -> 0 | C163: lbs
A164: =Feed!A94 -> Wheat Shorts | B164: =Feed!H94 -> 0 | C164: lbs
A165: =Feed!A95 -> Wheat DDGS | B165: =Feed!H95 -> 0 | C165: lbs
A166: =Feed!A96 -> Yeast, Brewers' Yeast | B166: =Feed!H96 -> 0 | C166: lbs
A167: =Feed!A97 -> Yeast, Single Cell Protein | B167: =Feed!H97 -> 0 | C167: lbs
A168: =Feed!A98 -> Beef Tallow | B168: =Feed!H98 -> 0 | C168: lbs
A169: =Feed!A99 -> Choice White Grease | B169: =Feed!H99 -> 0 | C169: lbs
A170: =Feed!A100 -> Poultry Fat | B170: =Feed!H100 -> 0 | C170: lbs
A171: =Feed!A101 -> Lard | B171: =Feed!H101 -> 0 | C171: lbs
A172: =Feed!A102 -> Restaurant Grease | B172: =Feed!H102 -> 0 | C172: lbs
A173: =Feed!A103 -> Canola oil | B173: =Feed!H103 -> 0 | C173: lbs
A174: =Feed!A104 -> Coconut oil | B174: =Feed!H104 -> 0 | C174: lbs
A175: =Feed!A105 -> Corn oil | B175: =Feed!H105 -> 0 | C175: lbs
A176: =Feed!A106 -> Palm Kernel oil | B176: =Feed!H106 -> 0 | C176: lbs
A177: =Feed!A107 -> Soybean oil | B177: =Feed!H107 -> 0 | C177: lbs
A178: =Feed!A108 -> Soybean Lecithin | B178: =Feed!H108 -> 0 | C178: lbs
A179: =Feed!A109 -> Sunflower oil | B179: =Feed!H109 -> 0 | C179: lbs
A180: =Feed!A110 -> Fat, A/V blend | B180: =Feed!H110 -> 0 | C180: lbs
A181: =Feed!A111 -> Calcium carbonate | B181: =Feed!H111 -> 0 | C181: lbs
A182: =Feed!A112 -> Calcium phosphate (tricalcium) | B182: =Feed!H112 -> 0 | C182: lbs
A183: =Feed!A113 -> Calcium phosphate (dicalcium) | B183: =Feed!H113 -> 0 | C183: lbs
A184: =Feed!A114 -> Calcium phosphate (monocalcium) | B184: =Feed!H114 -> 1.625 | C184: lbs
A185: =Feed!A115 -> Calcium sulfate, dihydrate | B185: =Feed!H115 -> 0 | C185: lbs
A186: =Feed!A116 -> Limestone, ground | B186: =Feed!H116 -> 1.6025 | C186: lbs
A187: =Feed!A117 -> Magnesium phosphate | B187: =Feed!H117 -> 0 | C187: lbs
A188: =Feed!A118 -> Sodium carbonate | B188: =Feed!H118 -> 0 | C188: lbs
A189: =Feed!A119 -> Sodium bicarbonate | B189: =Feed!H119 -> 0 | C189: lbs
A190: =Feed!A120 -> Sodium chloride | B190: =Feed!H120 -> 0.58 | C190: lbs
A191: =Feed!A121 -> Sodium phosphate, monobasic | B191: =Feed!H121 -> 0 | C191: lbs
A192: =Feed!A122 -> Sodium sulfate, decahydrate | B192: =Feed!H122 -> 0 | C192: lbs
A193: =Feed!A123 -> L-Lys-HCL | B193: =Feed!H123 -> 0.08875 | C193: lbs
A194: =Feed!A124 -> DL-Met | B194: =Feed!H124 -> 0.0125 | C194: lbs
A195: =Feed!A125 -> L-Thr | B195: =Feed!H125 -> 0.0125 | C195: lbs
A196: =Feed!A126 -> L-Trp | B196: =Feed!H126 -> 0 | C196: lbs
A197: =Feed!A127 -> L-Val | B197: =Feed!H127 -> 0 | C197: lbs
A198: =Feed!A128 -> L-Ileu | B198: =Feed!H128 -> 0 | C198: lbs
A199: =Feed!A129 -> Methionine hydroxy analog | B199: =Feed!H129 -> 0 | C199: lbs
A200: =Feed!A130 -> Glutamine | B200: =Feed!H130 -> 0 | C200: lbs
A201: =Feed!A131 -> Glutamic acid | B201: =Feed!H131 -> 0 | C201: lbs
A202: =Feed!A132 -> Biolys | B202: =Feed!H132 -> 0 | C202: lbs
A203: =Feed!A133 -> Liquid lysine 60% | B203: =Feed!H133 -> 0 | C203: lbs
A204: =Feed!A134 -> MHA dry | B204: =Feed!H134 -> 0 | C204: lbs
A205: =Feed!A135 -> Ractopamine 9 g/lb | B205: =Feed!H135 -> 0 | C205: lbs
A206: =Feed!A136 -> Phase 2 supplement (PEP2) | B206: =Feed!H136 -> 0 | C206: lbs
A207: =Feed!A137 -> 2007 Starter base mix | B207: =Feed!H137 -> 0 | C207: lbs
A208: =Feed!A138 -> 2007 Grow-finish base mix | B208: =Feed!H138 -> 0 | C208: lbs
A209: =Feed!A139 -> Developer base mix | B209: =Feed!H139 -> 0 | C209: lbs
A210: =Feed!A141 -> Vitamin premix with phytase | B210: =Feed!H141 -> 0.3125 | C210: lbs
A211: =Feed!A141 -> Vitamin premix with phytase | B211: =Feed!H141 -> 0.3125 | C211: lbs
A212: =Feed!A142 -> Trace mineral premix | B212: =Feed!H142 -> 0.1875 | C212: lbs
A213: =Feed!A143 -> Sow add pack | B213: =Feed!H143 -> 0.3125 | C213: lbs
A214: =Feed!A144 -> Vitamin premix without phytase | B214: =Feed!H144 -> 0 | C214: lbs
A215: =Feed!A145 -> GF DDGS Base Mix | B215: =Feed!H145 -> 0 | C215: lbs
A216: =Feed!A146 -> GF synthetics Base Mix | B216: =Feed!H146 -> 0 | C216: lbs
A217: =Feed!A147 -> Choline chloride 60% | B217: =Feed!H147 -> 0 | C217: lbs
A218: =Feed!A148 -> Natuphos 600 | B218: =Feed!H148 -> 0 | C218: lbs
A219: =Feed!A149 -> Natuphos 1200 | B219: =Feed!H149 -> 0 | C219: lbs
A220: =Feed!A150 -> Optiphos 2000 | B220: =Feed!H150 -> 0 | C220: lbs
A221: =Feed!A151 -> Phyzyme 1200 | B221: =Feed!H151 -> 0 | C221: lbs
A222: =Feed!A152 -> Phyzyme 5000 | B222: =Feed!H152 -> 0 | C222: lbs
A223: =Feed!A153 -> Ronozyme CT (10,000) | B223: =Feed!H153 -> 0 | C223: lbs
A224: =Feed!A154 -> Ronozyme M (50,000) | B224: =Feed!H154 -> 0 | C224: lbs
A225: =Feed!A155 -> Ronozyme PMX PLT (4625 FYT/g) | B225: =Feed!H155 -> 0 | C225: lbs
A226: =Feed!A156 -> Zinc oxide | B226: =Feed!H156 -> 0 | C226: lbs
A227: =Feed!A157 -> Copper sulfate | B227: =Feed!H157 -> 0 | C227: lbs
A228: =Feed!A158 -> Potassium chloride | B228: =Feed!H158 -> 0 | C228: lbs
A229: =Feed!A159 -> Calcium chloride | B229: =Feed!H159 -> 0 | C229: lbs
A230: =Feed!A160 -> Acidifier | B230: =Feed!H160 -> 0 | C230: lbs
A231: =Feed!A161 -> Vitamin E, 20,000 IU | B231: =Feed!H161 -> 0 | C231: lbs
A232: =Feed!A162 -> Phase 2 supplement D | B232: =Feed!H162 -> 0 | C232: lbs
A233: =Feed!A163 -> DPS 50 | B233: =Feed!H163 -> 0 | C233: lbs
A234: =Feed!A164 -> PEP2+ | B234: =Feed!H164 -> 0 | C234: lbs
A235: =Feed!A165 -> PEP NS | B235: =Feed!H165 -> 0 | C235: lbs
A236: =Feed!A166 -> Natural vitamin E 20,000 IU/lb | B236: =Feed!H166 -> 0 | C236: lbs
A237: =Feed!A167 -> Other ingredient | B237: =Feed!H167 -> 0 | C237: lbs
A238: =Feed!A168 -> Corn DDGS, 10.5% Oil | B238: =Feed!H168 -> 0 | C238: lbs
A239: =Feed!A169 -> Corn DDGS, 7.5% Oil | B239: =Feed!H169 -> 0 | C239: lbs
A240: =Feed!A170 -> Corn DDGS, 4.5% Oil | B240: =Feed!H170 -> 0 | C240: lbs
A241: =Feed!A171 -> Denegard | B241: =Feed!H171 -> 0 | C241: lbs
A242: =Feed!A172 -> CTC 50 | B242: =Feed!H172 -> 0 | C242: lbs
A243: =Feed!A173 -> Bentonite | B243: =Feed!H173 -> 0 | C243: lbs
A244: =Feed!A188 -> Complete nursery pellet | B244: =Feed!H188 -> 0 | C244: lbs
A245: =Feed!A175 -> Other ingredient | B245: =Feed!H175 -> 0
A246: =Feed!A176 -> Other ingredient | B246: =Feed!H176 -> 0
A247: =Feed!A177 -> Other ingredient | B247: =Feed!H177 -> 0
A248: =Feed!A178 -> Other ingredient | B248: =Feed!H178 -> 0
... 21 more rows

Sheet Wean-Finish
A1: KSU Wean-to-Finish Swine Budget | C1: Current Prices | G1: =IF(C1=Prices!B4,TEXT(Prices!B5,"MMM-YYYY"),IF(C1=Prices!D4,TEXT(Prices!D5,"MMM-YYYY"),TEXT(Prices!G5,"MMM-YYYY"))) -> (as of Dec. 7th, 2020)
K2: INTERNAL NOTES | L2: Click on "Current Prices" to change to "One Year Out Prices " or "Five Years Out Prices"
A3: Production Efficiency Information | K3: - note ERS COP are not posted for wean-fin (working from BOTH wean-feeder & feeder-fin info to get $/pig values)
A4: Wean-Finish Mortality (%) | B4: 7.99 | K4: production data from NPB/Stadler "2014 U.S. Pork Industry Productivity Analysis"
A5: Wean-Finish Feed to Gain | B5: 2.54 | K5: production data from NPB/Stadler "2014 U.S. Pork Industry Productivity Analysis"
A6: Placement Weight (lbs) | B6: ='Farrow-Finish'!J8 -> 14 | K6: production data from NPB/Stadler "2014 U.S. Pork Industry Productivity Analysis"
A8: Revenue | B8: Price | C8: Unit | E8: Qty | F8: Unit | J8: Total per Year per Pig Sold
A9: Market Hogs | B9: =IF($C$1=Prices!$A$1, Prices!B14, IF($C$1=Prices!$A$2, Prices!D14, IF($C$1=Prices!$A$3, Prices!G14, ""))) -> 44.75 | C9: per cwt | D9: x | E9: ='Farrow-Finish'!E12 -> 277 | F9: lbs | G9: x | H9: =1-B4/100 -> 0.9201 | I9: = | J9: =B9*(E9/100)*H9 -> 114.0532958 | K9: 274 lbs is from NPB/Stadler 2014 report table 3
A10: Less cost of Weaned Pigs | B10: =IF($C$1=Prices!$A$1, Prices!B15, IF($C$1=Prices!$A$2, Prices!D15, IF($C$1=Prices!$A$3, Prices!G15, ""))) -> 43.23 | C10: per hd | D10: x | E10: 1 | F10: hd | I10: = | J10: =-1*(B10)*E10 -> -43.23
A11: Manure Credit | J11: 5.5 | K11: Per April KSU team meeting; also note ERS COP implies $15.63/pig gain here so our $4.50/hd is conservative
A12: Other revenue | J12: 0
A13: Gross Income | J13: =SUM(J9:J12) -> 76.32329575
A15: Variable Costs
A16: Nursery Feed | B16: =IF($C$1=Prices!$A$1, SUMPRODUCT(Feed!$J$23:$J$188,Prices!$B$41:$B$206), IF($C$1=Prices!$A$2, SUMPRODUCT(Feed!$J$23:$J$188,Prices!$D$41:$D$206), IF($C$1=Prices!$A$3,SUMPRODUCT(Feed!$J$23:$J$188,Prices!$G$41:$G$206), "")))/Feed!J189 -> 0.1590974493 | C16: per lb | D16: x | E16: =1.51*(52-B6) -> 57.38 | F16: lbs | I16: = | J16: =(B16*E16) -> 9.129011639 | K16: Worked from April 2015 KSU XL Ration, collapsing down to #s by phase here w/ details in Feed tab and notes below; Also scaling feed lbs given changes to Feed Conversion; Deriving adjusted F/G per Mike on May 6, 2015 to get updated lbs consumed. Schulz' 3/31/15 values are $80.51/pig.
A17: Grow-Finish Feed | B17: =IF($C$1=Prices!$A$1, SUMPRODUCT(Feed!$K$23:$K$188,Prices!$B$41:$B$206), IF($C$1=Prices!$A$2, SUMPRODUCT(Feed!$K$23:$K$188,Prices!$D$41:$D$206), IF($C$1=Prices!$A$3,SUMPRODUCT(Feed!$K$23:$K$188,Prices!$G$41:$G$206), "")))/Feed!K189 -> 0.1000081359 | C17: per lb | D17: x | E17: =IF(B5=2.54,((((E9-277)*0.005+B5)*(E9-B6))-E16),((B5*(E9-B6))-E16)) -> 610.64 | F17: lbs | I17: = | J17: =(B17*E17) -> 61.06896812
A18: Feed Processing | B18: =IF($C$1=Prices!$A$1, Prices!B30, IF($C$1=Prices!$A$2, Prices!D30, IF($C$1=Prices!$A$3,Prices!G30, ""))) -> 17 | C18: per ton | D18: x | E18: =SUM(E16:E17)/2000 -> 0.33401 | F18: ton | I18: = | J18: =B18*E18 -> 5.67817
A19: Labor | B19: 15 | C19: per hour | D19: x | E19: 0.7 | F19: hours | I19: = | J19: =B19*E19 -> 10.5 | K19: Note: Using Schulz's 3/31/15 Iowa St. values (http://www.extension.iastate.edu/agdm/livestock/pdf/b1-21.pdf) of 0.7 hrs/pig
A20: Vet Medicine/Drugs | J20: =1.87*($E$9-Nursery!$E$10)/100+4.76*(Nursery!$E$10-$B$6)/100 -> 6.0163 | K20: Note: Using ERS Wean-Feeder & Feeder-Fin values
A21: Marketing, Bedding, and Misc | J21: =(0.25)*($E$9-Nursery!$E$10)/100+(0.17+0.01+0.31)*(Nursery!$E$10-$B$6)/100 -> 0.7487 | K21: Note: Using ERS Wean-Feeder & Feeder-Fin values
A22: Utilities, Gas, Fuel, Oil | J22: =1.41*($E$9-Nursery!$E$10)/100+1.75*(Nursery!$E$10-$B$6)/100 -> 3.8375 | K22: Note: Using ERS Wean-Feeder & Feeder-Fin values
A23: Machinery, Facility/Equip. Repairs | J23: =0.85*($E$9-Nursery!$E$10)/100+1.27*(Nursery!$E$10-$B$6)/100 -> 2.3951 | K23: Note: Using ERS Wean-Feeder & Feeder-Fin values
A24: Other variable costs | J24: 0
A25: Total Variable Costs | J25: =SUM(J16:J24) -> 99.37374976
A27: Fixed Costs
A28: Machinery, Facilities, General Overhead | J28: =(8.78)*($E$9-Nursery!$E$10)/100+(13.1+1.83)*(Nursery!$E$10-$B$6)/100 -> 25.4284 | K28: Note: Using ERS Wean-Feeder & Feeder-Fin values
A29: Taxes and Insurance | J29: =0.8*($E$9-Nursery!$E$10)/100+0.9*(Nursery!$E$10-$B$6)/100 -> 2.142 | K29: Note: Using ERS Wean-Feeder & Feeder-Fin values
A30: Legal, Accounting, etc. | J30: 1 | K30: no source
A31: Other fixed costs | J31: 0
A32: Total Fixed Costs | J32: =SUM(J28:J31) -> 28.5704 | K32: Schulz's 3/31/15 value is $195.42/litter
A34: Total Costs | J34: =J25+J32 -> 127.9441498 | K34: Cross-check total costs across Far-Fin vs. Far-Wean+Wean-Fin
A35: Income Over Variable Costs | J35: =J13-J25 -> -23.05045401 | K35: =J34+'Farrow-Wean'!K37-'Farrow-Finish'!K40 -> -2.40397279
A36: Income Over Total Costs | J36: =J13-J34 -> -51.62085401
A38: Kansas State University, Department of Agricultural Economics - www.agmanager.info
A39: Publication: AM-FMG-WeanFin | I39: =Introduction!L8 -> Version- 12.7.2020
A41: =A1 -> KSU Wean-to-Finish Swine Budget
A82: Kansas State University, Department of Agricultural Economics - www.agmanager.info
A83: =A39 -> Publication: AM-FMG-WeanFin | I83: =I39 -> Version- 12.7.2020
A85: =A41 -> KSU Wean-to-Finish Swine Budget
A86: Budget Assumptions
A88: Feed Ration
A89: Ingredient | B89: Qty | C89: Unit
A90: =Feed!A23 -> Corn, Yellow Dent | B90: =Feed!I23 -> 512.828499 | C90: lbs
A91: =Feed!A24 -> Corn, Nutridense | B91: =Feed!I24 -> 0 | C91: lbs
A92: =Feed!A25 -> Corn Bran | B92: =Feed!I25 -> 0 | C92: lbs
A93: =Feed!A26 -> Corn DDG | B93: =Feed!I26 -> 0 | C93: lbs
A94: =Feed!A27 -> Corn DDGS, >10% Oil | B94: =Feed!I27 -> 0 | C94: lbs
A95: =Feed!A28 -> Corn DDGS, >6 and <9% Oil | B95: =Feed!I28 -> 0 | C95: lbs
A96: =Feed!A29 -> Corn DDGS, <4% Oil | B96: =Feed!I29 -> 0 | C96: lbs
A97: =Feed!A30 -> Corn HP DDG | B97: =Feed!I30 -> 0 | C97: lbs
A98: =Feed!A31 -> Soybean Meal, Dehull, Sol Extr | B98: =Feed!I31 -> 0 | C98: lbs
A99: =Feed!A32 -> Soybean Meal, Dehulled, Expelled | B99: =Feed!I32 -> 0 | C99: lbs
A100: =Feed!A33 -> Soybean Meal, Solvent Extracted | B100: =Feed!I33 -> 0 | C100: lbs
A101: =Feed!A34 -> Corn Gluten Meal | B101: =Feed!I34 -> 0 | C101: lbs
A102: =Feed!A35 -> Corn Grits, Hominy Feed | B102: =Feed!I35 -> 0 | C102: lbs
A103: =Feed!A36 -> Cotton Seeds, Fullfat | B103: =Feed!I36 -> 0 | C103: lbs
A104: =Feed!A37 -> Cotton Seed Meal | B104: =Feed!I37 -> 0 | C104: lbs
A105: =Feed!A38 -> Feather Meal | B105: =Feed!I38 -> 0 | C105: lbs
A106: =Feed!A39 -> Fish Meal Combined | B106: =Feed!I39 -> 0 | C106: lbs
A107: =Feed!A40 -> Flaxseed | B107: =Feed!I40 -> 0 | C107: lbs
A108: =Feed!A41 -> Flaxseed Meal | B108: =Feed!I41 -> 0 | C108: lbs
A109: =Feed!A42 -> Lupins | B109: =Feed!I42 -> 0 | C109: lbs
A110: =Feed!A43 -> Meat Meal | B110: =Feed!I43 -> 0 | C110: lbs
A111: =Feed!A44 -> Meat and Bone Meal, P >4% | B111: =Feed!I44 -> 0 | C111: lbs
A112: =Feed!A45 -> Milk, Casein | B112: =Feed!I45 -> 0 | C112: lbs
A113: =Feed!A46 -> Milk, Lactose | B113: =Feed!I46 -> 0 | C113: lbs
A114: =Feed!A47 -> Milk, Skim Milk Powder | B114: =Feed!I47 -> 0 | C114: lbs
A115: =Feed!A48 -> Milk, Whey Powder | B115: =Feed!I48 -> 0 | C115: lbs
A116: =Feed!A49 -> Milk, Whey Permeate, 85% lactose | B116: =Feed!I49 -> 0 | C116: lbs
A117: =Feed!A50 -> Milk, Whey Protein Concentrate | B117: =Feed!I50 -> 0 | C117: lbs
A118: =Feed!A51 -> Millet | B118: =Feed!I51 -> 0 | C118: lbs
A119: =Feed!A52 -> Molasses, Sugarbeet | B119: =Feed!I52 -> 0 | C119: lbs
A120: =Feed!A53 -> Molasses, Sugarcane | B120: =Feed!I53 -> 0 | C120: lbs
A121: =Feed!A54 -> Oats | B121: =Feed!I54 -> 0 | C121: lbs
A122: =Feed!A55 -> Oats, Naked | B122: =Feed!I55 -> 0 | C122: lbs
A123: =Feed!A56 -> Oat Groats | B123: =Feed!I56 -> 0 | C123: lbs
A124: =Feed!A57 -> Peanut Meal, Expelled | B124: =Feed!I57 -> 0 | C124: lbs
A125: =Feed!A58 -> Peanut Meal, Extracted | B125: =Feed!I58 -> 0 | C125: lbs
A126: =Feed!A59 -> Peas, Field Peas | B126: =Feed!I59 -> 0 | C126: lbs
A127: =Feed!A60 -> Pea Protein Concentrate | B127: =Feed!I60 -> 0 | C127: lbs
A128: =Feed!A61 -> Potato Protein Concentrate | B128: =Feed!I61 -> 0 | C128: lbs
A129: =Feed!A62 -> Poultry Byproduct | B129: =Feed!I62 -> 0 | C129: lbs
A130: =Feed!A63 -> Rice | B130: =Feed!I63 -> 0 | C130: lbs
A131: =Feed!A64 -> Rice Bran | B131: =Feed!I64 -> 0 | C131: lbs
A132: =Feed!A65 -> Rice Bran, Defatted | B132: =Feed!I65 -> 0 | C132: lbs
A133: =Feed!A66 -> Rice, Broken | B133: =Feed!I66 -> 0 | C133: lbs
A134: =Feed!A67 -> Rye | B134: =Feed!I67 -> 0 | C134: lbs
A135: =Feed!A68 -> Sesame Meal | B135: =Feed!I68 -> 0 | C135: lbs
A136: =Feed!A69 -> Sorghum | B136: =Feed!I69 -> 0 | C136: lbs
A137: =Feed!A70 -> Soybeans, Full Fat | B137: =Feed!I70 -> 0 | C137: lbs
A138: =Feed!A71 -> Soybeans, High Protein, Full Fat | B138: =Feed!I71 -> 0 | C138: lbs
A139: =Feed!A72 -> Soybeans, Low Oligosaccharide, Full Fat | B139: =Feed!I72 -> 0 | C139: lbs
A140: =Feed!A73 -> Soybean Meal, High Protein, Expelled | B140: =Feed!I73 -> 0 | C140: lbs
A141: =Feed!A74 -> Soybean Meal, Low Oligosacch, Expell | B141: =Feed!I74 -> 0 | C141: lbs
A142: =Feed!A75 -> Soybean Meal, Expelled | B142: =Feed!I75 -> 0 | C142: lbs
A143: =Feed!A76 -> Soybean Meal, Dehulled, Expelled | B143: =Feed!I76 -> 0 | C143: lbs
A144: =Feed!A77 -> Soybean Meal, Solvent Extracted | B144: =Feed!I77 -> 0 | C144: lbs
A145: =Feed!A78 -> Soybean Meal, Dehull, Sol Extr | B145: =Feed!I78 -> 116.9920822 | C145: lbs
A146: =Feed!A79 -> Soybean Meal, High Prot, Dehull, Solv Extr | B146: =Feed!I79 -> 0 | C146: lbs
A147: =Feed!A80 -> Soybean Meal, Enzyme Treated | B147: =Feed!I80 -> 0 | C147: lbs
A148: =Feed!A81 -> Soybean Meal, Fermented | B148: =Feed!I81 -> 0 | C148: lbs
A149: =Feed!A82 -> Soybean Hulls | B149: =Feed!I82 -> 0 | C149: lbs
A150: =Feed!A83 -> Soy Protein Concentrate | B150: =Feed!I83 -> 0 | C150: lbs
A151: =Feed!A84 -> Soy Protein Isolate | B151: =Feed!I84 -> 0 | C151: lbs
A152: =Feed!A85 -> Sugar Beet Pulp | B152: =Feed!I85 -> 0 | C152: lbs
A153: =Feed!A86 -> Sunflower, Full Fat | B153: =Feed!I86 -> 0 | C153: lbs
A154: =Feed!A87 -> Sunflower Meal, Solvent Extracted | B154: =Feed!I87 -> 0 | C154: lbs
A155: =Feed!A88 -> Sunflower Meal, Dehulled, Solvent Extr | B155: =Feed!I88 -> 0 | C155: lbs
A156: =Feed!A89 -> Triticale | B156: =Feed!I89 -> 0 | C156: lbs
A157: =Feed!A90 -> Wheat, Hard Red | B157: =Feed!I90 -> 0 | C157: lbs
A158: =Feed!A91 -> Wheat, Soft Red | B158: =Feed!I91 -> 0 | C158: lbs
A159: =Feed!A92 -> Wheat Bran | B159: =Feed!I92 -> 0 | C159: lbs
A160: =Feed!A93 -> Wheat Middlings | B160: =Feed!I93 -> 0 | C160: lbs
A161: =Feed!A94 -> Wheat Shorts | B161: =Feed!I94 -> 0 | C161: lbs
A162: =Feed!A95 -> Wheat DDGS | B162: =Feed!I95 -> 0 | C162: lbs
A163: =Feed!A96 -> Yeast, Brewers' Yeast | B163: =Feed!I96 -> 0 | C163: lbs
A164: =Feed!A97 -> Yeast, Single Cell Protein | B164: =Feed!I97 -> 0 | C164: lbs
A165: =Feed!A98 -> Beef Tallow | B165: =Feed!I98 -> 0 | C165: lbs
A166: =Feed!A99 -> Choice White Grease | B166: =Feed!I99 -> 0 | C166: lbs
A167: =Feed!A100 -> Poultry Fat | B167: =Feed!I100 -> 0 | C167: lbs
A168: =Feed!A101 -> Lard | B168: =Feed!I101 -> 0 | C168: lbs
A169: =Feed!A102 -> Restaurant Grease | B169: =Feed!I102 -> 0 | C169: lbs
A170: =Feed!A103 -> Canola oil | B170: =Feed!I103 -> 0 | C170: lbs
A171: =Feed!A104 -> Coconut oil | B171: =Feed!I104 -> 0 | C171: lbs
A172: =Feed!A105 -> Corn oil | B172: =Feed!I105 -> 0 | C172: lbs
A173: =Feed!A106 -> Palm Kernel oil | B173: =Feed!I106 -> 0 | C173: lbs
A174: =Feed!A107 -> Soybean oil | B174: =Feed!I107 -> 0 | C174: lbs
A175: =Feed!A108 -> Soybean Lecithin | B175: =Feed!I108 -> 0 | C175: lbs
A176: =Feed!A109 -> Sunflower oil | B176: =Feed!I109 -> 0 | C176: lbs
A177: =Feed!A110 -> Fat, A/V blend | B177: =Feed!I110 -> 0 | C177: lbs
A178: =Feed!A111 -> Calcium carbonate | B178: =Feed!I111 -> 0 | C178: lbs
A179: =Feed!A112 -> Calcium phosphate (tricalcium) | B179: =Feed!I112 -> 0 | C179: lbs
A180: =Feed!A113 -> Calcium phosphate (dicalcium) | B180: =Feed!I113 -> 0 | C180: lbs
A181: =Feed!A114 -> Calcium phosphate (monocalcium) | B181: =Feed!I114 -> 2.868533106 | C181: lbs
A182: =Feed!A115 -> Calcium sulfate, dihydrate | B182: =Feed!I115 -> 0 | C182: lbs
A183: =Feed!A116 -> Limestone, ground | B183: =Feed!I116 -> 5.885792 | C183: lbs
A184: =Feed!A117 -> Magnesium phosphate | B184: =Feed!I117 -> 0 | C184: lbs
A185: =Feed!A118 -> Sodium carbonate | B185: =Feed!I118 -> 0 | C185: lbs
A186: =Feed!A119 -> Sodium bicarbonate | B186: =Feed!I119 -> 0 | C186: lbs
A187: =Feed!A120 -> Sodium chloride | B187: =Feed!I120 -> 3.20944 | C187: lbs
A188: =Feed!A121 -> Sodium phosphate, monobasic | B188: =Feed!I121 -> 0 | C188: lbs
A189: =Feed!A122 -> Sodium sulfate, decahydrate | B189: =Feed!I122 -> 0 | C189: lbs
A190: =Feed!A123 -> L-Lys-HCL | B190: =Feed!I123 -> 1.975184 | C190: lbs
A191: =Feed!A124 -> DL-Met | B191: =Feed!I124 -> 0.1739036335 | C191: lbs
A192: =Feed!A125 -> L-Thr | B192: =Feed!I125 -> 0.5251411859 | C192: lbs
A193: =Feed!A126 -> L-Trp | B193: =Feed!I126 -> 0.06829270357 | C193: lbs
A194: =Feed!A127 -> L-Val | B194: =Feed!I127 -> 0 | C194: lbs
A195: =Feed!A128 -> L-Ileu | B195: =Feed!I128 -> 0 | C195: lbs
A196: =Feed!A129 -> Methionine hydroxy analog | B196: =Feed!I129 -> 0 | C196: lbs
A197: =Feed!A130 -> Glutamine | B197: =Feed!I130 -> 0 | C197: lbs
A198: =Feed!A131 -> Glutamic acid | B198: =Feed!I131 -> 0 | C198: lbs
A199: =Feed!A132 -> Biolys | B199: =Feed!I132 -> 0 | C199: lbs
A200: =Feed!A133 -> Liquid lysine 60% | B200: =Feed!I133 -> 0 | C200: lbs
A201: =Feed!A134 -> MHA dry | B201: =Feed!I134 -> 0 | C201: lbs
A202: =Feed!A135 -> Ractopamine 9 g/lb | B202: =Feed!I135 -> 0 | C202: lbs
A203: =Feed!A136 -> Phase 2 supplement (PEP2) | B203: =Feed!I136 -> 0 | C203: lbs
A204: =Feed!A137 -> 2007 Starter base mix | B204: =Feed!I137 -> 0 | C204: lbs
A205: =Feed!A138 -> 2007 Grow-finish base mix | B205: =Feed!I138 -> 0 | C205: lbs
A206: =Feed!A139 -> Developer base mix | B206: =Feed!I139 -> 0 | C206: lbs
A207: =Feed!A140 -> 2007 Sow base mix | B207: =Feed!I140 -> 0 | C207: lbs
A208: =Feed!A141 -> Vitamin premix with phytase | B208: =Feed!I141 -> 0.8128980706 | C208: lbs
A209: =Feed!A142 -> Trace mineral premix | B209: =Feed!I142 -> 0.7693780706 | C209: lbs
A210: =Feed!A143 -> Sow add pack | B210: =Feed!I143 -> 0 | C210: lbs
A211: =Feed!A144 -> Vitamin premix without phytase | B211: =Feed!I144 -> 0 | C211: lbs
A212: =Feed!A145 -> GF DDGS Base Mix | B212: =Feed!I145 -> 0 | C212: lbs
A213: =Feed!A146 -> GF synthetics Base Mix | B213: =Feed!I146 -> 0 | C213: lbs
A214: =Feed!A147 -> Choline chloride 60% | B214: =Feed!I147 -> 0 | C214: lbs
A215: =Feed!A148 -> Natuphos 600 | B215: =Feed!I148 -> 0 | C215: lbs
A216: =Feed!A149 -> Natuphos 1200 | B216: =Feed!I149 -> 0 | C216: lbs
A217: =Feed!A150 -> Optiphos 2000 | B217: =Feed!I150 -> 0 | C217: lbs
A218: =Feed!A151 -> Phyzyme 1200 | B218: =Feed!I151 -> 0 | C218: lbs
A219: =Feed!A152 -> Phyzyme 5000 | B219: =Feed!I152 -> 0 | C219: lbs
A220: =Feed!A153 -> Ronozyme CT (10,000) | B220: =Feed!I153 -> 0 | C220: lbs
A221: =Feed!A154 -> Ronozyme M (50,000) | B221: =Feed!I154 -> 0 | C221: lbs
A222: =Feed!A155 -> Ronozyme PMX PLT (4625 FYT/g) | B222: =Feed!I155 -> 0.05785606848 | C222: lbs
A223: =Feed!A156 -> Zinc oxide | B223: =Feed!I156 -> 0 | C223: lbs
A224: =Feed!A157 -> Copper sulfate | B224: =Feed!I157 -> 0 | C224: lbs
A225: =Feed!A158 -> Potassium chloride | B225: =Feed!I158 -> 0 | C225: lbs
A226: =Feed!A159 -> Calcium chloride | B226: =Feed!I159 -> 0 | C226: lbs
A227: =Feed!A160 -> Acidifier | B227: =Feed!I160 -> 0 | C227: lbs
A228: =Feed!A161 -> Vitamin E, 20,000 IU | B228: =Feed!I161 -> 0 | C228: lbs
A229: =Feed!A162 -> Phase 2 supplement D | B229: =Feed!I162 -> 0 | C229: lbs
A230: =Feed!A163 -> DPS 50 | B230: =Feed!I163 -> 0 | C230: lbs
A231: =Feed!A164 -> PEP2+ | B231: =Feed!I164 -> 0 | C231: lbs
A232: =Feed!A165 -> PEP NS | B232: =Feed!I165 -> 0 | C232: lbs
A233: =Feed!A166 -> Natural vitamin E 20,000 IU/lb | B233: =Feed!I166 -> 0 | C233: lbs
A234: =Feed!A167 -> Other ingredient | B234: =Feed!I167 -> 0 | C234: lbs
A235: =Feed!A168 -> Corn DDGS, 10.5% Oil | B235: =Feed!I168 -> 0 | C235: lbs
A236: =Feed!A169 -> Corn DDGS, 7.5% Oil | B236: =Feed!I169 -> 5.552 | C236: lbs
A237: =Feed!A170 -> Corn DDGS, 4.5% Oil | B237: =Feed!I170 -> 0 | C237: lbs
A238: =Feed!A171 -> Denegard | B238: =Feed!I171 -> 0.021 | C238: lbs
A239: =Feed!A172 -> CTC 50 | B239: =Feed!I172 -> 0.048 | C239: lbs
A240: =Feed!A173 -> Bentonite | B240: =Feed!I173 -> 0 | C240: lbs
A241: =Feed!A174 -> Phase 2 supplement (Feb, 2014) | B241: =Feed!I174 -> 2.1 | C241: lbs
A242: =Feed!A175 -> Other ingredient | B242: =Feed!I175 -> 0
A243: =Feed!A176 -> Other ingredient | B243: =Feed!I176 -> 0
A244: =Feed!A177 -> Other ingredient | B244: =Feed!I177 -> 0
A245: =Feed!A178 -> Other ingredient | B245: =Feed!I178 -> 0
A246: =Feed!A179 -> Other ingredient | B246: =Feed!I179 -> 0
A247: =Feed!A180 -> Other ingredient | B247: =Feed!I180 -> 0
A248: =Feed!A181 -> Other ingredient | B248: =Feed!I181 -> 0
... 18 more rows

Sheet Nursery
A1: KSU Nursery Swine Budget | C1: Current Prices | G1: =IF(C1=Prices!B4,TEXT(Prices!B5,"MMM-YYYY"),IF(C1=Prices!D4,TEXT(Prices!D5,"MMM-YYYY"),TEXT(Prices!G5,"MMM-YYYY"))) -> (as of Dec. 7th, 2020)
K2: INTERNAL NOTES | L2: Click on "Current Prices" to change to "One Year Out Prices " or "Five Years Out Prices"
A3: Production Efficiency Information
A4: Nursery Mortality (%) | B4: 4.77 | K4: production data from NPB/Stadler "2014 U.S. Pork Industry Productivity Analysis"
A5: Feed to Gain Conversion | B5: ='Farrow-Finish'!J6 -> 1.54 | K5: production data from NPB/Stadler "2014 U.S. Pork Industry Productivity Analysis"
A6: Entry Weight (lbs) | B6: ='Farrow-Finish'!J8 -> 14 | K6: production data from NPB/Stadler "2014 U.S. Pork Industry Productivity Analysis"
A7: Exit Weight (lbs) | B7: ='Farrow-Finish'!J9 -> 52 | K7: production data from NPB/Stadler "2014 U.S. Pork Industry Productivity Analysis"
A9: Revenue | B9: Price | C9: Unit | E9: Qty | F9: Unit | J9: Total per Year per Pig Sold
A10: Feeder Pigs | B10: =IF($C$1=Prices!$A$1, Prices!B16, IF($C$1=Prices!$A$2, Prices!D16, IF($C$1=Prices!$A$3, Prices!G16, ""))) -> 54.43 | C10: per hd | D10: x | E10: =B7 -> 52 | F10: lbs | G10: x | H10: =1-B4/100 -> 0.9523 | I10: = | J10: =B10*H10 -> 51.833689 | K10: 50.9 lbs is from NPB/Stadler 2014 report table 4
A11: Less cost of Weaned Pigs | B11: =IF($C$1=Prices!$A$1, Prices!B15, IF($C$1=Prices!$A$2, Prices!D15, IF($C$1=Prices!$A$3, Prices!G15, ""))) -> 43.23 | C11: per hd | D11: x | E11: 1 | F11: hd | I11: = | J11: =-1*(B11)*E11 -> -43.23
A12: Manure Credit | J12: ='Wean-Finish'!J11-Finishing!J12 -> 0.5 | K12: Per April KSU team meeting; also note ERS COP places $4.44/cwt gain ($1.70/pig) so we are conservative
A13: Other revenue | J13: 0
A14: Gross Income | J14: =SUM(J10:J13) -> 9.103689
A16: Variable Costs
A17: Nursery Feed | B17: =IF($C$1=Prices!$A$1, SUMPRODUCT(Feed!$J$23:$J$188,Prices!$B$41:$B$206), IF($C$1=Prices!$A$2, SUMPRODUCT(Feed!$J$23:$J$188,Prices!$D$41:$D$206), IF($C$1=Prices!$A$3,SUMPRODUCT(Feed!$J$23:$J$188,Prices!$G$41:$G$206), "")))/Feed!J189 -> 0.1590974493 | C17: per lb | D17: x | E17: =IF(B5=1.54,(((B7-55)*0.011+B5)*(B7-B6)),(B5*(B7-B6))) -> 57.266 | F17: lbs | I17: = | J17: =(B17*E17) -> 9.11087453 | K17: Worked from April 2015 KSU XL Ration, collapsing down to #s by phase here w/ details in Feed tab and notes below; Also scaling feed lbs given changes to Feed Conversion; Can cross-check w/ ERS COP data also. Schulz' 3/31/15 values are $80.51/pig
A18: Feed Processing | B18: =IF($C$1=Prices!$A$1, Prices!B30, IF($C$1=Prices!$A$2, Prices!D30, IF($C$1=Prices!$A$3,Prices!G30, ""))) -> 17 | C18: per ton | D18: x | E18: =SUM(E17:E17)/2000 -> 0.028633 | F18: ton | I18: = | J18: =B18*E18 -> 0.486761
A19: Labor | B19: 15 | C19: per hour | D19: x | E19: 0.2 | F19: hours | I19: = | J19: =B19*E19 -> 3 | K19: Note: Using Schulz's 3/31/15 Iowa St. values (http://www.extension.iastate.edu/agdm/livestock/pdf/b1-21.pdf) of 0.7 hrs/pig for wean-fin & Stadler has 19% (45) of days in Nursery of 165 wean-finish.
A20: Vet Medicine/Drugs | J20: =4.64*(($B$7-$B$6)/100) -> 1.7632 | K20: Note: Using ERS $2.69/cwt produced value
A21: Marketing, Bedding, and Misc | J21: =(0.16+0.01+0.3)*(($B$7-$B$6)/100) -> 0.1786 | K21: Note: Using ERS $0.35/cwt produced value (Bed&Litter, Mkt,Custom Srv).
A22: Utilities, Gas, Fuel, Oil | J22: =1.98*(($B$7-$B$6)/100) -> 0.7524 | K22: Note: Using ERS $3.36/cwt produced values
A23: Machinery, Facility/Equip. Repairs | J23: =1.3*(($B$7-$B$6)/100) -> 0.494 | K23: Note: Using ERS $1.24/cwt produced value
A24: Other variable costs | J24: 0
A25: Total Variable Costs | J25: =SUM(J17:J24) -> 15.78583553
A27: Fixed Costs
A28: Machinery, Facilities, General Overhead | J28: =(13.4+1.85)*(($B$7-$B$6)/100) -> 5.795 | K28: Note: Using ERS $9.74/cwt produced value for capital recovery of mach. & equipment + $2.35/cwt prod for general farm overhead
A29: Taxes and Insurance | J29: =0.88*(($B$7-$B$6)/100) -> 0.3344 | K29: Note: Using ERS $1.08/cwt produced value
A30: Legal, Accounting, etc. | J30: 0.5 | K30: no source
A31: Other fixed costs | J31: 0
A32: Total Fixed Costs | J32: =SUM(J28:J31) -> 6.6294
A34: Total Costs | J34: =J25+J32 -> 22.41523553
A35: Income Over Variable Costs | J35: =J14-J25 -> -6.68214653
A36: Income Over Total Costs | J36: =J14-J34 -> -13.31154653
A38: Kansas State University, Department of Agricultural Economics - www.agmanager.info
A39: Publication: AM-FMG-Nursery | I39: =Introduction!L8 -> Version- 12.7.2020
A41: =A1 -> KSU Nursery Swine Budget
A82: Kansas State University, Department of Agricultural Economics - www.agmanager.info
A83: =A39 -> Publication: AM-FMG-Nursery | I83: =I39 -> Version- 12.7.2020
A85: =A41 -> KSU Nursery Swine Budget
A86: Budget Assumptions
A88: Feed Ration
A89: Ingredient | B89: Qty | C89: Unit
A90: =Feed!A23 -> Corn, Yellow Dent | B90: =Feed!E23 -> 29.32738261 | C90: lbs
A91: =Feed!A24 -> Corn, Nutridense | B91: =Feed!E24 -> 0 | C91: lbs
A92: =Feed!A25 -> Corn Bran | B92: =Feed!E25 -> 0 | C92: lbs
A93: =Feed!A26 -> Corn DDG | B93: =Feed!E26 -> 0 | C93: lbs
A94: =Feed!A27 -> Corn DDGS, >10% Oil | B94: =Feed!E27 -> 0 | C94: lbs
A95: =Feed!A28 -> Corn DDGS, >6 and <9% Oil | B95: =Feed!E28 -> 0 | C95: lbs
A96: =Feed!A29 -> Corn DDGS, <4% Oil | B96: =Feed!E29 -> 0 | C96: lbs
A97: =Feed!A30 -> Corn HP DDG | B97: =Feed!E30 -> 0 | C97: lbs
A98: =Feed!A31 -> Soybean Meal, Dehull, Sol Extr | B98: =Feed!E31 -> 0 | C98: lbs
A99: =Feed!A32 -> Soybean Meal, Dehulled, Expelled | B99: =Feed!E32 -> 0 | C99: lbs
A100: =Feed!A33 -> Soybean Meal, Solvent Extracted | B100: =Feed!E33 -> 0 | C100: lbs
A101: =Feed!A34 -> Corn Gluten Meal | B101: =Feed!E34 -> 0 | C101: lbs
A102: =Feed!A35 -> Corn Grits, Hominy Feed | B102: =Feed!E35 -> 0 | C102: lbs
A103: =Feed!A36 -> Cotton Seeds, Fullfat | B103: =Feed!E36 -> 0 | C103: lbs
A104: =Feed!A37 -> Cotton Seed Meal | B104: =Feed!E37 -> 0 | C104: lbs
A105: =Feed!A38 -> Feather Meal | B105: =Feed!E38 -> 0 | C105: lbs
A106: =Feed!A39 -> Fish Meal Combined | B106: =Feed!E39 -> 0 | C106: lbs
A107: =Feed!A41 -> Flaxseed Meal | B107: =Feed!E41 -> 0 | C107: lbs
A108: =Feed!A41 -> Flaxseed Meal | B108: =Feed!E41 -> 0 | C108: lbs
A109: =Feed!A42 -> Lupins | B109: =Feed!E42 -> 0 | C109: lbs
A110: =Feed!A43 -> Meat Meal | B110: =Feed!E43 -> 0 | C110: lbs
A111: =Feed!A44 -> Meat and Bone Meal, P >4% | B111: =Feed!E44 -> 0 | C111: lbs
A112: =Feed!A45 -> Milk, Casein | B112: =Feed!E45 -> 0 | C112: lbs
A113: =Feed!A46 -> Milk, Lactose | B113: =Feed!E46 -> 0 | C113: lbs
A114: =Feed!A47 -> Milk, Skim Milk Powder | B114: =Feed!E47 -> 0 | C114: lbs
A115: =Feed!A48 -> Milk, Whey Powder | B115: =Feed!E48 -> 0 | C115: lbs
A116: =Feed!A49 -> Milk, Whey Permeate, 85% lactose | B116: =Feed!E49 -> 0 | C116: lbs
A117: =Feed!A50 -> Milk, Whey Protein Concentrate | B117: =Feed!E50 -> 0 | C117: lbs
A118: =Feed!A51 -> Millet | B118: =Feed!E51 -> 0 | C118: lbs
A119: =Feed!A52 -> Molasses, Sugarbeet | B119: =Feed!E52 -> 0 | C119: lbs
A120: =Feed!A53 -> Molasses, Sugarcane | B120: =Feed!E53 -> 0 | C120: lbs
A121: =Feed!A54 -> Oats | B121: =Feed!E54 -> 0 | C121: lbs
A122: =Feed!A55 -> Oats, Naked | B122: =Feed!E55 -> 0 | C122: lbs
A123: =Feed!A56 -> Oat Groats | B123: =Feed!E56 -> 0 | C123: lbs
A124: =Feed!A57 -> Peanut Meal, Expelled | B124: =Feed!E57 -> 0 | C124: lbs
A125: =Feed!A58 -> Peanut Meal, Extracted | B125: =Feed!E58 -> 0 | C125: lbs
A126: =Feed!A59 -> Peas, Field Peas | B126: =Feed!E59 -> 0 | C126: lbs
A127: =Feed!A60 -> Pea Protein Concentrate | B127: =Feed!E60 -> 0 | C127: lbs
A128: =Feed!A61 -> Potato Protein Concentrate | B128: =Feed!E61 -> 0 | C128: lbs
A129: =Feed!A62 -> Poultry Byproduct | B129: =Feed!E62 -> 0 | C129: lbs
A130: =Feed!A63 -> Rice | B130: =Feed!E63 -> 0 | C130: lbs
A131: =Feed!A64 -> Rice Bran | B131: =Feed!E64 -> 0 | C131: lbs
A132: =Feed!A65 -> Rice Bran, Defatted | B132: =Feed!E65 -> 0 | C132: lbs
A133: =Feed!A66 -> Rice, Broken | B133: =Feed!E66 -> 0 | C133: lbs
A134: =Feed!A67 -> Rye | B134: =Feed!E67 -> 0 | C134: lbs
A135: =Feed!A68 -> Sesame Meal | B135: =Feed!E68 -> 0 | C135: lbs
A136: =Feed!A69 -> Sorghum | B136: =Feed!E69 -> 0 | C136: lbs
A137: =Feed!A70 -> Soybeans, Full Fat | B137: =Feed!E70 -> 0 | C137: lbs
A138: =Feed!A71 -> Soybeans, High Protein, Full Fat | B138: =Feed!E71 -> 0 | C138: lbs
A139: =Feed!A72 -> Soybeans, Low Oligosaccharide, Full Fat | B139: =Feed!E72 -> 0 | C139: lbs
A140: =Feed!A73 -> Soybean Meal, High Protein, Expelled | B140: =Feed!E73 -> 0 | C140: lbs
A141: =Feed!A74 -> Soybean Meal, Low Oligosacch, Expell | B141: =Feed!E74 -> 0 | C141: lbs
A142: =Feed!A75 -> Soybean Meal, Expelled | B142: =Feed!E75 -> 0 | C142: lbs
A143: =Feed!A76 -> Soybean Meal, Dehulled, Expelled | B143: =Feed!E76 -> 0 | C143: lbs
A144: =Feed!A77 -> Soybean Meal, Solvent Extracted | B144: =Feed!E77 -> 0 | C144: lbs
A145: =Feed!A78 -> Soybean Meal, Dehull, Sol Extr | B145: =Feed!E78 -> 16.96635339 | C145: lbs
A146: =Feed!A79 -> Soybean Meal, High Prot, Dehull, Solv Extr | B146: =Feed!E79 -> 0 | C146: lbs
A147: =Feed!A80 -> Soybean Meal, Enzyme Treated | B147: =Feed!E80 -> 0 | C147: lbs
A148: =Feed!A81 -> Soybean Meal, Fermented | B148: =Feed!E81 -> 0 | C148: lbs
A149: =Feed!A82 -> Soybean Hulls | B149: =Feed!E82 -> 0 | C149: lbs
A150: =Feed!A83 -> Soy Protein Concentrate | B150: =Feed!E83 -> 0 | C150: lbs
A151: =Feed!A84 -> Soy Protein Isolate | B151: =Feed!E84 -> 0 | C151: lbs
A152: =Feed!A85 -> Sugar Beet Pulp | B152: =Feed!E85 -> 0 | C152: lbs
A153: =Feed!A86 -> Sunflower, Full Fat | B153: =Feed!E86 -> 0 | C153: lbs
A154: =Feed!A87 -> Sunflower Meal, Solvent Extracted | B154: =Feed!E87 -> 0 | C154: lbs
A155: =Feed!A88 -> Sunflower Meal, Dehulled, Solvent Extr | B155: =Feed!E88 -> 0 | C155: lbs
A156: =Feed!A89 -> Triticale | B156: =Feed!E89 -> 0 | C156: lbs
A157: =Feed!A90 -> Wheat, Hard Red | B157: =Feed!E90 -> 0 | C157: lbs
A158: =Feed!A91 -> Wheat, Soft Red | B158: =Feed!E91 -> 0 | C158: lbs
A159: =Feed!A92 -> Wheat Bran | B159: =Feed!E92 -> 0 | C159: lbs
A160: =Feed!A93 -> Wheat Middlings | B160: =Feed!E93 -> 0 | C160: lbs
A161: =Feed!A94 -> Wheat Shorts | B161: =Feed!E94 -> 0 | C161: lbs
A162: =Feed!A95 -> Wheat DDGS | B162: =Feed!E95 -> 0 | C162: lbs
A163: =Feed!A96 -> Yeast, Brewers' Yeast | B163: =Feed!E96 -> 0 | C163: lbs
A164: =Feed!A97 -> Yeast, Single Cell Protein | B164: =Feed!E97 -> 0 | C164: lbs
A165: =Feed!A98 -> Beef Tallow | B165: =Feed!E98 -> 0 | C165: lbs
A166: =Feed!A99 -> Choice White Grease | B166: =Feed!E99 -> 0 | C166: lbs
A167: =Feed!A100 -> Poultry Fat | B167: =Feed!E100 -> 0 | C167: lbs
A168: =Feed!A101 -> Lard | B168: =Feed!E101 -> 0 | C168: lbs
A169: =Feed!A102 -> Restaurant Grease | B169: =Feed!E102 -> 0 | C169: lbs
A170: =Feed!A103 -> Canola oil | B170: =Feed!E103 -> 0 | C170: lbs
A171: =Feed!A104 -> Coconut oil | B171: =Feed!E104 -> 0 | C171: lbs
A172: =Feed!A105 -> Corn oil | B172: =Feed!E105 -> 0 | C172: lbs
A173: =Feed!A106 -> Palm Kernel oil | B173: =Feed!E106 -> 0 | C173: lbs
A174: =Feed!A107 -> Soybean oil | B174: =Feed!E107 -> 0 | C174: lbs
A175: =Feed!A108 -> Soybean Lecithin | B175: =Feed!E108 -> 0 | C175: lbs
A176: =Feed!A109 -> Sunflower oil | B176: =Feed!E109 -> 0 | C176: lbs
A177: =Feed!A110 -> Fat, A/V blend | B177: =Feed!E110 -> 0 | C177: lbs
A178: =Feed!A111 -> Calcium carbonate | B178: =Feed!E111 -> 0 | C178: lbs
A179: =Feed!A112 -> Calcium phosphate (tricalcium) | B179: =Feed!E112 -> 0 | C179: lbs
A180: =Feed!A113 -> Calcium phosphate (dicalcium) | B180: =Feed!E113 -> 0 | C180: lbs
A181: =Feed!A114 -> Calcium phosphate (monocalcium) | B181: =Feed!E114 -> 0.34816 | C181: lbs
A182: =Feed!A115 -> Calcium sulfate, dihydrate | B182: =Feed!E115 -> 0 | C182: lbs
A183: =Feed!A116 -> Limestone, ground | B183: =Feed!E116 -> 0.50048 | C183: lbs
A184: =Feed!A117 -> Magnesium phosphate | B184: =Feed!E117 -> 0 | C184: lbs
A185: =Feed!A118 -> Sodium carbonate | B185: =Feed!E118 -> 0 | C185: lbs
A186: =Feed!A119 -> Sodium bicarbonate | B186: =Feed!E119 -> 0 | C186: lbs
A187: =Feed!A120 -> Sodium chloride | B187: =Feed!E120 -> 0.2176 | C187: lbs
A188: =Feed!A121 -> Sodium phosphate, monobasic | B188: =Feed!E121 -> 0 | C188: lbs
A189: =Feed!A122 -> Sodium sulfate, decahydrate | B189: =Feed!E122 -> 0 | C189: lbs
A190: =Feed!A123 -> L-Lys-HCL | B190: =Feed!E123 -> 0.18008 | C190: lbs
A191: =Feed!A124 -> DL-Met | B191: =Feed!E124 -> 0.036992 | C191: lbs
A192: =Feed!A125 -> L-Thr | B192: =Feed!E125 -> 0.047872 | C192: lbs
A193: =Feed!A126 -> L-Trp | B193: =Feed!E126 -> 0 | C193: lbs
A194: =Feed!A127 -> L-Val | B194: =Feed!E127 -> 0 | C194: lbs
A195: =Feed!A128 -> L-Ileu | B195: =Feed!E128 -> 0 | C195: lbs
A196: =Feed!A129 -> Methionine hydroxy analog | B196: =Feed!E129 -> 0 | C196: lbs
A197: =Feed!A130 -> Glutamine | B197: =Feed!E130 -> 0 | C197: lbs
A198: =Feed!A131 -> Glutamic acid | B198: =Feed!E131 -> 0 | C198: lbs
A199: =Feed!A132 -> Biolys | B199: =Feed!E132 -> 0 | C199: lbs
A200: =Feed!A133 -> Liquid lysine 60% | B200: =Feed!E133 -> 0 | C200: lbs
A201: =Feed!A134 -> MHA dry | B201: =Feed!E134 -> 0 | C201: lbs
A202: =Feed!A135 -> Ractopamine 9 g/lb | B202: =Feed!E135 -> 0 | C202: lbs
A203: =Feed!A136 -> Phase 2 supplement (PEP2) | B203: =Feed!E136 -> 0 | C203: lbs
A204: =Feed!A137 -> 2007 Starter base mix | B204: =Feed!E137 -> 0 | C204: lbs
A205: =Feed!A138 -> 2007 Grow-finish base mix | B205: =Feed!E138 -> 0 | C205: lbs
A206: =Feed!A139 -> Developer base mix | B206: =Feed!E139 -> 0 | C206: lbs
A207: =Feed!A141 -> Vitamin premix with phytase | B207: =Feed!E141 -> 0.1088 | C207: lbs
A208: =Feed!A141 -> Vitamin premix with phytase | B208: =Feed!E141 -> 0.1088 | C208: lbs
A209: =Feed!A142 -> Trace mineral premix | B209: =Feed!E142 -> 0.06528 | C209: lbs
A210: =Feed!A143 -> Sow add pack | B210: =Feed!E143 -> 0 | C210: lbs
A211: =Feed!A144 -> Vitamin premix without phytase | B211: =Feed!E144 -> 0 | C211: lbs
A212: =Feed!A145 -> GF DDGS Base Mix | B212: =Feed!E145 -> 0 | C212: lbs
A213: =Feed!A146 -> GF synthetics Base Mix | B213: =Feed!E146 -> 0 | C213: lbs
A214: =Feed!A147 -> Choline chloride 60% | B214: =Feed!E147 -> 0 | C214: lbs
A215: =Feed!A148 -> Natuphos 600 | B215: =Feed!E148 -> 0 | C215: lbs
A216: =Feed!A149 -> Natuphos 1200 | B216: =Feed!E149 -> 0 | C216: lbs
A217: =Feed!A150 -> Optiphos 2000 | B217: =Feed!E150 -> 0 | C217: lbs
A218: =Feed!A151 -> Phyzyme 1200 | B218: =Feed!E151 -> 0 | C218: lbs
A219: =Feed!A152 -> Phyzyme 5000 | B219: =Feed!E152 -> 0 | C219: lbs
A220: =Feed!A153 -> Ronozyme CT (10,000) | B220: =Feed!E153 -> 0 | C220: lbs
A221: =Feed!A154 -> Ronozyme M (50,000) | B221: =Feed!E154 -> 0 | C221: lbs
A222: =Feed!A155 -> Ronozyme PMX PLT (4625 FYT/g) | B222: =Feed!E155 -> 0 | C222: lbs
A223: =Feed!A156 -> Zinc oxide | B223: =Feed!E156 -> 0 | C223: lbs
A224: =Feed!A157 -> Copper sulfate | B224: =Feed!E157 -> 0 | C224: lbs
A225: =Feed!A158 -> Potassium chloride | B225: =Feed!E158 -> 0 | C225: lbs
A226: =Feed!A159 -> Calcium chloride | B226: =Feed!E159 -> 0 | C226: lbs
A227: =Feed!A160 -> Acidifier | B227: =Feed!E160 -> 0 | C227: lbs
A228: =Feed!A161 -> Vitamin E, 20,000 IU | B228: =Feed!E161 -> 0 | C228: lbs
A229: =Feed!A162 -> Phase 2 supplement D | B229: =Feed!E162 -> 0 | C229: lbs
A230: =Feed!A163 -> DPS 50 | B230: =Feed!E163 -> 0 | C230: lbs
A231: =Feed!A164 -> PEP2+ | B231: =Feed!E164 -> 0 | C231: lbs
A232: =Feed!A165 -> PEP NS | B232: =Feed!E165 -> 0 | C232: lbs
A233: =Feed!A166 -> Natural vitamin E 20,000 IU/lb | B233: =Feed!E166 -> 0 | C233: lbs
A234: =Feed!A167 -> Other ingredient | B234: =Feed!E167 -> 0 | C234: lbs
A235: =Feed!A168 -> Corn DDGS, 10.5% Oil | B235: =Feed!E168 -> 0 | C235: lbs
A236: =Feed!A169 -> Corn DDGS, 7.5% Oil | B236: =Feed!E169 -> 5.552 | C236: lbs
A237: =Feed!A170 -> Corn DDGS, 4.5% Oil | B237: =Feed!E170 -> 0 | C237: lbs
A238: =Feed!A171 -> Denegard | B238: =Feed!E171 -> 0.021 | C238: lbs
A239: =Feed!A172 -> CTC 50 | B239: =Feed!E172 -> 0.048 | C239: lbs
A240: =Feed!A173 -> Bentonite | B240: =Feed!E173 -> 0 | C240: lbs
A241: =Feed!A188 -> Complete nursery pellet | B241: =Feed!E188 -> 3 | C241: lbs
A242: =Feed!A175 -> Other ingredient | B242: =Feed!E175 -> 0
A243: =Feed!A176 -> Other ingredient | B243: =Feed!E176 -> 0
A244: =Feed!A177 -> Other ingredient | B244: =Feed!E177 -> 0
A245: =Feed!A178 -> Other ingredient | B245: =Feed!E178 -> 0
A246: =Feed!A179 -> Other ingredient | B246: =Feed!E179 -> 0
A247: =Feed!A180 -> Other ingredient | B247: =Feed!E180 -> 0
A248: =Feed!A181 -> Other ingredient | B248: =Feed!E181 -> 0
... 17 more rows

Sheet Finishing
A1: KSU Finishing Swine Budget | C1: Current Prices | G1: =IF(C1=Prices!B4,TEXT(Prices!B5,"MMM-YYYY"),IF(C1=Prices!D4,TEXT(Prices!D5,"MMM-YYYY"),TEXT(Prices!G5,"MMM-YYYY"))) -> (as of Dec. 7th, 2020)
K2: INTERNAL NOTES | L2: Click on "Current Prices" to change to "One Year Out Prices " or "Five Years Out Prices"
A3: Production Efficiency Information
A4: Finisher Mortality (%) | B4: 5.19 | K4: production data from NPB/Stadler "2014 U.S. Pork Industry Productivity Analysis"
A5: Feed to Gain Conversion | B5: 2.71 | K5: production data from NPB/Stadler "2014 U.S. Pork Industry Productivity Analysis"
A6: Entry Weight (lbs) | B6: =Nursery!B7 -> 52 | K6: production data from NPB/Stadler "2014 U.S. Pork Industry Productivity Analysis"
A7: Exit Weight (lbs) | B7: 272.8 | K7: production data from NPB/Stadler "2014 U.S. Pork Industry Productivity Analysis"
A9: Revenue | B9: Price | C9: Unit | E9: Qty | F9: Unit | J9: Total per Year per Pig Sold
A10: Market Hogs | B10: =IF($C$1=Prices!$A$1, Prices!B14, IF($C$1=Prices!$A$2, Prices!D14, IF($C$1=Prices!$A$3, Prices!G14, ""))) -> 44.75 | C10: per cwt | D10: x | E10: =B7 -> 272.8 | F10: lbs | G10: x | H10: =1-B4/100 -> 0.9481 | I10: = | J10: =B10*(E10/100)*H10 -> 115.7421518
A11: Less cost of Feeder Pigs | B11: =IF($C$1=Prices!$A$1, Prices!B16, IF($C$1=Prices!$A$2, Prices!D16, IF($C$1=Prices!$A$3, Prices!G16, ""))) -> 54.43 | C11: per hd | I11: = | J11: =-1*B11 -> -54.43
A12: Manure Credit | J12: 5 | K12: Per April KSU team meeting; also note ERS COP places $6.30/cwt gain ($15.70/pig) so we are conservative
A13: Other revenue | J13: 0
A14: Gross Income | J14: =SUM(J10:J13) -> 66.3121518
A16: Variable Costs
A17: Grow-Finish Feed | B17: =IF($C$1=Prices!$A$1, SUMPRODUCT(Feed!$K$23:$K$188,Prices!$B$41:$B$206), IF($C$1=Prices!$A$2, SUMPRODUCT(Feed!$K$23:$K$188,Prices!$D$41:$D$206), IF($C$1=Prices!$A$3,SUMPRODUCT(Feed!$K$23:$K$188,Prices!$G$41:$G$206), "")))/Feed!K189 -> 0.1000081359 | C17: per lb | D17: x | E17: =IF(B5=2.71,(((E10-272.8)*0.005+B5)*(E10-B6)),(B5*(E10-B6))) -> 598.368 | F17: lbs | I17: = | J17: =(B17*E17) -> 59.84166827 | K17: Worked from April 2015 KSU XL Ration, collapsing down to #s by phase here w/ details in Feed tab and notes below; Also scaling feed lbs given changes to Feed Conversion and Mkt Wt; Deriving adjusted F/G per Mike on May 6, 2015 to get updated lbs consumed. Schulz' 3/31/15 values are $67/pig
A18: Feed Processing | B18: =IF($C$1=Prices!$A$1, Prices!B30, IF($C$1=Prices!$A$2, Prices!D30, IF($C$1=Prices!$A$3,Prices!G30, ""))) -> 17 | C18: per ton | D18: x | E18: =SUM(E17:E17)/2000 -> 0.299184 | F18: ton | I18: = | J18: =B18*E18 -> 5.086128
A19: Labor | B19: 15 | C19: per hour | D19: x | E19: 0.2 | F19: hours | I19: = | J19: =B19*E19 -> 3 | K19: Note: Using Schulz's 3/31/15 Iowa St. values (http://www.extension.iastate.edu/agdm/livestock/pdf/b1-21.pdf) of 0.2 hrs/pig
A20: Vet Medicine/Drugs | J20: =1.87*(($B$7-$B$6)/100) -> 4.12896 | K20: Note: Using ERS $1.19/cwt produced value
A21: Marketing, Bedding, and Misc | J21: =(0.01+0.05+0.19)*(($B$7-$B$6)/100) -> 0.552 | K21: Note: Using ERS $0.44/cwt produced value (Bed&Litter, Mkt,Custom Srv).
A22: Utilities, Gas, Fuel, Oil | J22: =1.41*(($B$7-$B$6)/100) -> 3.11328 | K22: Note: Using ERS $1.27/cwt produced values
A23: Machinery, Facility/Equip. Repairs | J23: =0.85*(($B$7-$B$6)/100) -> 1.8768 | K23: Note: Using ERS $0.58/cwt produced value
A24: Other variable costs | J24: 0
A25: Total Variable Costs | J25: =SUM(J17:J24) -> 77.59883627 | K25: =J25-J11 -> 132.0288363
A27: Fixed Costs
A28: Machinery, Facilities, General Overhead | J28: =(7.52+1.26)*(($B$7-$B$6)/100) -> 19.38624 | K28: Note: Using ERS $5.97/cwt produced value for capital recovery of mach. & equipment + $0.79/cwt prod for general farm overhead
A29: Taxes and Insurance | J29: =0.8*(($B$7-$B$6)/100) -> 1.7664 | K29: Note: Using ERS $0.41/cwt produced value
A30: Legal, Accounting, etc. | J30: 1 | K30: no source
A31: Other fixed costs | J31: 0
A32: Total Fixed Costs | J32: =SUM(J28:J31) -> 22.15264 | K32: Compares to ERS COP data of $9.77/cwt produced (includes labor);
A34: Total Costs | J34: =J25+J32 -> 99.75147627 | K34: =J34-J11 -> 154.1814763
A35: Income Over Variable Costs | J35: =J14-J25 -> -11.28668447
A36: Income Over Total Costs | J36: =J14-J34 -> -33.43932447
A38: Kansas State University, Department of Agricultural Economics - www.agmanager.info
A39: Publication: AM-FMG-FinishingSwine | I39: =Introduction!L8 -> Version- 12.7.2020
A41: =A1 -> KSU Finishing Swine Budget
A82: Kansas State University, Department of Agricultural Economics - www.agmanager.info
A83: =A39 -> Publication: AM-FMG-FinishingSwine | I83: =I39 -> Version- 12.7.2020
A85: =A41 -> KSU Finishing Swine Budget
A86: Budget Assumptions
A88: Feed Ration
A89: Ingredient | B89: Qty | C89: Unit
A90: =Feed!A23 -> Corn, Yellow Dent | B90: =Feed!K23 -> 483.5011164 | C90: lbs
A91: =Feed!A24 -> Corn, Nutridense | B91: =Feed!K24 -> 0 | C91: lbs
A92: =Feed!A25 -> Corn Bran | B92: =Feed!K25 -> 0 | C92: lbs
A93: =Feed!A26 -> Corn DDG | B93: =Feed!K26 -> 0 | C93: lbs
A94: =Feed!A27 -> Corn DDGS, >10% Oil | B94: =Feed!K27 -> 0 | C94: lbs
A95: =Feed!A28 -> Corn DDGS, >6 and <9% Oil | B95: =Feed!K28 -> 0 | C95: lbs
A96: =Feed!A29 -> Corn DDGS, <4% Oil | B96: =Feed!K29 -> 0 | C96: lbs
A97: =Feed!A30 -> Corn HP DDG | B97: =Feed!K30 -> 0 | C97: lbs
A98: =Feed!A31 -> Soybean Meal, Dehull, Sol Extr | B98: =Feed!K31 -> 0 | C98: lbs
A99: =Feed!A32 -> Soybean Meal, Dehulled, Expelled | B99: =Feed!K32 -> 0 | C99: lbs
A100: =Feed!A33 -> Soybean Meal, Solvent Extracted | B100: =Feed!K33 -> 0 | C100: lbs
A101: =Feed!A34 -> Corn Gluten Meal | B101: =Feed!K34 -> 0 | C101: lbs
A102: =Feed!A35 -> Corn Grits, Hominy Feed | B102: =Feed!K35 -> 0 | C102: lbs
A103: =Feed!A36 -> Cotton Seeds, Fullfat | B103: =Feed!K36 -> 0 | C103: lbs
A104: =Feed!A37 -> Cotton Seed Meal | B104: =Feed!K37 -> 0 | C104: lbs
A105: =Feed!A38 -> Feather Meal | B105: =Feed!K38 -> 0 | C105: lbs
A106: =Feed!A39 -> Fish Meal Combined | B106: =Feed!K39 -> 0 | C106: lbs
A107: =Feed!A41 -> Flaxseed Meal | B107: =Feed!K41 -> 0 | C107: lbs
A108: =Feed!A41 -> Flaxseed Meal | B108: =Feed!K41 -> 0 | C108: lbs
A109: =Feed!A42 -> Lupins | B109: =Feed!K42 -> 0 | C109: lbs
A110: =Feed!A43 -> Meat Meal | B110: =Feed!K43 -> 0 | C110: lbs
A111: =Feed!A44 -> Meat and Bone Meal, P >4% | B111: =Feed!K44 -> 0 | C111: lbs
A112: =Feed!A45 -> Milk, Casein | B112: =Feed!K45 -> 0 | C112: lbs
A113: =Feed!A46 -> Milk, Lactose | B113: =Feed!K46 -> 0 | C113: lbs
A114: =Feed!A47 -> Milk, Skim Milk Powder | B114: =Feed!K47 -> 0 | C114: lbs
A115: =Feed!A48 -> Milk, Whey Powder | B115: =Feed!K48 -> 0 | C115: lbs
A116: =Feed!A49 -> Milk, Whey Permeate, 85% lactose | B116: =Feed!K49 -> 0 | C116: lbs
A117: =Feed!A50 -> Milk, Whey Protein Concentrate | B117: =Feed!K50 -> 0 | C117: lbs
A118: =Feed!A51 -> Millet | B118: =Feed!K51 -> 0 | C118: lbs
A119: =Feed!A52 -> Molasses, Sugarbeet | B119: =Feed!K52 -> 0 | C119: lbs
A120: =Feed!A53 -> Molasses, Sugarcane | B120: =Feed!K53 -> 0 | C120: lbs
A121: =Feed!A54 -> Oats | B121: =Feed!K54 -> 0 | C121: lbs
A122: =Feed!A55 -> Oats, Naked | B122: =Feed!K55 -> 0 | C122: lbs
A123: =Feed!A56 -> Oat Groats | B123: =Feed!K56 -> 0 | C123: lbs
A124: =Feed!A57 -> Peanut Meal, Expelled | B124: =Feed!K57 -> 0 | C124: lbs
A125: =Feed!A58 -> Peanut Meal, Extracted | B125: =Feed!K58 -> 0 | C125: lbs
A126: =Feed!A59 -> Peas, Field Peas | B126: =Feed!K59 -> 0 | C126: lbs
A127: =Feed!A60 -> Pea Protein Concentrate | B127: =Feed!K60 -> 0 | C127: lbs
A128: =Feed!A61 -> Potato Protein Concentrate | B128: =Feed!K61 -> 0 | C128: lbs
A129: =Feed!A62 -> Poultry Byproduct | B129: =Feed!K62 -> 0 | C129: lbs
A130: =Feed!A63 -> Rice | B130: =Feed!K63 -> 0 | C130: lbs
A131: =Feed!A64 -> Rice Bran | B131: =Feed!K64 -> 0 | C131: lbs
A132: =Feed!A65 -> Rice Bran, Defatted | B132: =Feed!K65 -> 0 | C132: lbs
A133: =Feed!A66 -> Rice, Broken | B133: =Feed!K66 -> 0 | C133: lbs
A134: =Feed!A67 -> Rye | B134: =Feed!K67 -> 0 | C134: lbs
A135: =Feed!A68 -> Sesame Meal | B135: =Feed!K68 -> 0 | C135: lbs
A136: =Feed!A69 -> Sorghum | B136: =Feed!K69 -> 0 | C136: lbs
A137: =Feed!A70 -> Soybeans, Full Fat | B137: =Feed!K70 -> 0 | C137: lbs
A138: =Feed!A71 -> Soybeans, High Protein, Full Fat | B138: =Feed!K71 -> 0 | C138: lbs
A139: =Feed!A72 -> Soybeans, Low Oligosaccharide, Full Fat | B139: =Feed!K72 -> 0 | C139: lbs
A140: =Feed!A73 -> Soybean Meal, High Protein, Expelled | B140: =Feed!K73 -> 0 | C140: lbs
A141: =Feed!A74 -> Soybean Meal, Low Oligosacch, Expell | B141: =Feed!K74 -> 0 | C141: lbs
A142: =Feed!A75 -> Soybean Meal, Expelled | B142: =Feed!K75 -> 0 | C142: lbs
A143: =Feed!A76 -> Soybean Meal, Dehulled, Expelled | B143: =Feed!K76 -> 0 | C143: lbs
A144: =Feed!A77 -> Soybean Meal, Solvent Extracted | B144: =Feed!K77 -> 0 | C144: lbs
A145: =Feed!A78 -> Soybean Meal, Dehull, Sol Extr | B145: =Feed!K78 -> 100.0257288 | C145: lbs
A146: =Feed!A79 -> Soybean Meal, High Prot, Dehull, Solv Extr | B146: =Feed!K79 -> 0 | C146: lbs
A147: =Feed!A80 -> Soybean Meal, Enzyme Treated | B147: =Feed!K80 -> 0 | C147: lbs
A148: =Feed!A81 -> Soybean Meal, Fermented | B148: =Feed!K81 -> 0 | C148: lbs
A149: =Feed!A82 -> Soybean Hulls | B149: =Feed!K82 -> 0 | C149: lbs
A150: =Feed!A83 -> Soy Protein Concentrate | B150: =Feed!K83 -> 0 | C150: lbs
A151: =Feed!A84 -> Soy Protein Isolate | B151: =Feed!K84 -> 0 | C151: lbs
A152: =Feed!A85 -> Sugar Beet Pulp | B152: =Feed!K85 -> 0 | C152: lbs
A153: =Feed!A86 -> Sunflower, Full Fat | B153: =Feed!K86 -> 0 | C153: lbs
A154: =Feed!A87 -> Sunflower Meal, Solvent Extracted | B154: =Feed!K87 -> 0 | C154: lbs
A155: =Feed!A88 -> Sunflower Meal, Dehulled, Solvent Extr | B155: =Feed!K88 -> 0 | C155: lbs
A156: =Feed!A89 -> Triticale | B156: =Feed!K89 -> 0 | C156: lbs
A157: =Feed!A90 -> Wheat, Hard Red | B157: =Feed!K90 -> 0 | C157: lbs
A158: =Feed!A91 -> Wheat, Soft Red | B158: =Feed!K91 -> 0 | C158: lbs
A159: =Feed!A92 -> Wheat Bran | B159: =Feed!K92 -> 0 | C159: lbs
A160: =Feed!A93 -> Wheat Middlings | B160: =Feed!K93 -> 0 | C160: lbs
A161: =Feed!A94 -> Wheat Shorts | B161: =Feed!K94 -> 0 | C161: lbs
A162: =Feed!A95 -> Wheat DDGS | B162: =Feed!K95 -> 0 | C162: lbs
A163: =Feed!A96 -> Yeast, Brewers' Yeast | B163: =Feed!K96 -> 0 | C163: lbs
A164: =Feed!A97 -> Yeast, Single Cell Protein | B164: =Feed!K97 -> 0 | C164: lbs
A165: =Feed!A98 -> Beef Tallow | B165: =Feed!K98 -> 0 | C165: lbs
A166: =Feed!A99 -> Choice White Grease | B166: =Feed!K99 -> 0 | C166: lbs
A167: =Feed!A100 -> Poultry Fat | B167: =Feed!K100 -> 0 | C167: lbs
A168: =Feed!A101 -> Lard | B168: =Feed!K101 -> 0 | C168: lbs
A169: =Feed!A102 -> Restaurant Grease | B169: =Feed!K102 -> 0 | C169: lbs
A170: =Feed!A103 -> Canola oil | B170: =Feed!K103 -> 0 | C170: lbs
A171: =Feed!A104 -> Coconut oil | B171: =Feed!K104 -> 0 | C171: lbs
A172: =Feed!A105 -> Corn oil | B172: =Feed!K105 -> 0 | C172: lbs
A173: =Feed!A106 -> Palm Kernel oil | B173: =Feed!K106 -> 0 | C173: lbs
A174: =Feed!A107 -> Soybean oil | B174: =Feed!K107 -> 0 | C174: lbs
A175: =Feed!A108 -> Soybean Lecithin | B175: =Feed!K108 -> 0 | C175: lbs
A176: =Feed!A109 -> Sunflower oil | B176: =Feed!K109 -> 0 | C176: lbs
A177: =Feed!A110 -> Fat, A/V blend | B177: =Feed!K110 -> 0 | C177: lbs
A178: =Feed!A111 -> Calcium carbonate | B178: =Feed!K111 -> 0 | C178: lbs
A179: =Feed!A112 -> Calcium phosphate (tricalcium) | B179: =Feed!K112 -> 0 | C179: lbs
A180: =Feed!A113 -> Calcium phosphate (dicalcium) | B180: =Feed!K113 -> 0 | C180: lbs
A181: =Feed!A114 -> Calcium phosphate (monocalcium) | B181: =Feed!K114 -> 2.520373106 | C181: lbs
A182: =Feed!A115 -> Calcium sulfate, dihydrate | B182: =Feed!K115 -> 0 | C182: lbs
A183: =Feed!A116 -> Limestone, ground | B183: =Feed!K116 -> 5.385312 | C183: lbs
A184: =Feed!A117 -> Magnesium phosphate | B184: =Feed!K117 -> 0 | C184: lbs
A185: =Feed!A118 -> Sodium carbonate | B185: =Feed!K118 -> 0 | C185: lbs
A186: =Feed!A119 -> Sodium bicarbonate | B186: =Feed!K119 -> 0 | C186: lbs
A187: =Feed!A120 -> Sodium chloride | B187: =Feed!K120 -> 2.99184 | C187: lbs
A188: =Feed!A121 -> Sodium phosphate, monobasic | B188: =Feed!K121 -> 0 | C188: lbs
A189: =Feed!A122 -> Sodium sulfate, decahydrate | B189: =Feed!K122 -> 0 | C189: lbs
A190: =Feed!A123 -> L-Lys-HCL | B190: =Feed!K123 -> 1.795104 | C190: lbs
A191: =Feed!A124 -> DL-Met | B191: =Feed!K124 -> 0.1369116335 | C191: lbs
A192: =Feed!A125 -> L-Thr | B192: =Feed!K125 -> 0.4772691859 | C192: lbs
A193: =Feed!A126 -> L-Trp | B193: =Feed!K126 -> 0.06829270357 | C193: lbs
A194: =Feed!A127 -> L-Val | B194: =Feed!K127 -> 0 | C194: lbs
A195: =Feed!A128 -> L-Ileu | B195: =Feed!K128 -> 0 | C195: lbs
A196: =Feed!A129 -> Methionine hydroxy analog | B196: =Feed!K129 -> 0 | C196: lbs
A197: =Feed!A130 -> Glutamine | B197: =Feed!K130 -> 0 | C197: lbs
A198: =Feed!A131 -> Glutamic acid | B198: =Feed!K131 -> 0 | C198: lbs
A199: =Feed!A132 -> Biolys | B199: =Feed!K132 -> 0 | C199: lbs
A200: =Feed!A133 -> Liquid lysine 60% | B200: =Feed!K133 -> 0 | C200: lbs
A201: =Feed!A134 -> MHA dry | B201: =Feed!K134 -> 0 | C201: lbs
A202: =Feed!A135 -> Ractopamine 9 g/lb | B202: =Feed!K135 -> 0 | C202: lbs
A203: =Feed!A136 -> Phase 2 supplement (PEP2) | B203: =Feed!K136 -> 0 | C203: lbs
A204: =Feed!A137 -> 2007 Starter base mix | B204: =Feed!K137 -> 0 | C204: lbs
A205: =Feed!A138 -> 2007 Grow-finish base mix | B205: =Feed!K138 -> 0 | C205: lbs
A206: =Feed!A139 -> Developer base mix | B206: =Feed!K139 -> 0 | C206: lbs
A207: =Feed!A141 -> Vitamin premix with phytase | B207: =Feed!K141 -> 0.7040980706 | C207: lbs
A208: =Feed!A141 -> Vitamin premix with phytase | B208: =Feed!K141 -> 0.7040980706 | C208: lbs
A209: =Feed!A142 -> Trace mineral premix | B209: =Feed!K142 -> 0.7040980706 | C209: lbs
A210: =Feed!A143 -> Sow add pack | B210: =Feed!K143 -> 0 | C210: lbs
A211: =Feed!A144 -> Vitamin premix without phytase | B211: =Feed!K144 -> 0 | C211: lbs
A212: =Feed!A145 -> GF DDGS Base Mix | B212: =Feed!K145 -> 0 | C212: lbs
A213: =Feed!A146 -> GF synthetics Base Mix | B213: =Feed!K146 -> 0 | C213: lbs
A214: =Feed!A147 -> Choline chloride 60% | B214: =Feed!K147 -> 0 | C214: lbs
A215: =Feed!A148 -> Natuphos 600 | B215: =Feed!K148 -> 0 | C215: lbs
A216: =Feed!A149 -> Natuphos 1200 | B216: =Feed!K149 -> 0 | C216: lbs
A217: =Feed!A150 -> Optiphos 2000 | B217: =Feed!K150 -> 0 | C217: lbs
A218: =Feed!A151 -> Phyzyme 1200 | B218: =Feed!K151 -> 0 | C218: lbs
A219: =Feed!A152 -> Phyzyme 5000 | B219: =Feed!K152 -> 0 | C219: lbs
A220: =Feed!A153 -> Ronozyme CT (10,000) | B220: =Feed!K153 -> 0 | C220: lbs
A221: =Feed!A154 -> Ronozyme M (50,000) | B221: =Feed!K154 -> 0 | C221: lbs
A222: =Feed!A155 -> Ronozyme PMX PLT (4625 FYT/g) | B222: =Feed!K155 -> 0.05785606848 | C222: lbs
A223: =Feed!A156 -> Zinc oxide | B223: =Feed!K156 -> 0 | C223: lbs
A224: =Feed!A157 -> Copper sulfate | B224: =Feed!K157 -> 0 | C224: lbs
A225: =Feed!A158 -> Potassium chloride | B225: =Feed!K158 -> 0 | C225: lbs
A226: =Feed!A159 -> Calcium chloride | B226: =Feed!K159 -> 0 | C226: lbs
A227: =Feed!A160 -> Acidifier | B227: =Feed!K160 -> 0 | C227: lbs
A228: =Feed!A161 -> Vitamin E, 20,000 IU | B228: =Feed!K161 -> 0 | C228: lbs
A229: =Feed!A162 -> Phase 2 supplement D | B229: =Feed!K162 -> 0 | C229: lbs
A230: =Feed!A163 -> DPS 50 | B230: =Feed!K163 -> 0 | C230: lbs
A231: =Feed!A164 -> PEP2+ | B231: =Feed!K164 -> 0 | C231: lbs
A232: =Feed!A165 -> PEP NS | B232: =Feed!K165 -> 0 | C232: lbs
A233: =Feed!A166 -> Natural vitamin E 20,000 IU/lb | B233: =Feed!K166 -> 0 | C233: lbs
A234: =Feed!A167 -> Other ingredient | B234: =Feed!K167 -> 0 | C234: lbs
A235: =Feed!A168 -> Corn DDGS, 10.5% Oil | B235: =Feed!K168 -> 0 | C235: lbs
A236: =Feed!A169 -> Corn DDGS, 7.5% Oil | B236: =Feed!K169 -> 0 | C236: lbs
A237: =Feed!A170 -> Corn DDGS, 4.5% Oil | B237: =Feed!K170 -> 0 | C237: lbs
A238: =Feed!A171 -> Denegard | B238: =Feed!K171 -> 0 | C238: lbs
A239: =Feed!A172 -> CTC 50 | B239: =Feed!K172 -> 0 | C239: lbs
A240: =Feed!A173 -> Bentonite | B240: =Feed!K173 -> 0 | C240: lbs
A241: =Feed!A188 -> Complete nursery pellet | B241: =Feed!K188 -> 0 | C241: lbs
A242: =Feed!A175 -> Other ingredient | B242: =Feed!K175 -> 0
A243: =Feed!A176 -> Other ingredient | B243: =Feed!K176 -> 0
A244: =Feed!A177 -> Other ingredient | B244: =Feed!K177 -> 0
A245: =Feed!A178 -> Other ingredient | B245: =Feed!K178 -> 0
A246: =Feed!A179 -> Other ingredient | B246: =Feed!K179 -> 0
A247: =Feed!A180 -> Other ingredient | B247: =Feed!K180 -> 0
A248: =Feed!A181 -> Other ingredient | B248: =Feed!K181 -> 0
... 17 more rows

Sheet Feed (2)_IDOtherIngValues (hidden)
A1: SWINE RATIONS TO SET FEED COSTS
A3: Ingredient | E3: Usage per pig, lb | H3: Total Useage (lbs per pig) by Production Phase/Type
B4: Price | C4: Unit | E4: Sows | F4: Nursery | G4: GF | H4: Farrow-Finish | I4: Farrow-Wean | J4: Wean-Finish | K4: Nursery | L4: Finish | P4: Currently Used?
A5: Corn | H5: =SUM(E5:G5) -> 0 | I5: =E5 -> 0 | J5: =F5+G5 -> 0 | K5: =F5 -> 0 | L5: =G5 -> 0 | P5: 0
A6: Soybean Meal, Dehull, Sol Extr | H6: 0 | I6: 0 | J6: 0 | K6: 0 | L6: 0 | P6: 0
A7: Corn | H7: 0 | I7: 0 | J7: 0 | K7: 0 | L7: 0 | P7: 0
A8: Milo | H8: 0 | I8: 0 | J8: 0 | K8: 0 | L8: 0 | P8: 0
A9: Alfalfa Meal | H9: 0 | I9: 0 | J9: 0 | K9: 0 | L9: 0 | P9: 0
A10: Bakery Meal | H10: 0 | I10: 0 | J10: 0 | K10: 0 | L10: 0 | P10: 0
A11: Barley | H11: 0 | I11: 0 | J11: 0 | K11: 0 | L11: 0 | P11: 0
A12: Barley, Hulless | H12: 0 | I12: 0 | J12: 0 | K12: 0 | L12: 0 | P12: 0
A13: Beans, Faba | H13: 0 | I13: 0 | J13: 0 | K13: 0 | L13: 0 | P13: 0
A14: Blood Meal | H14: 0 | I14: 0 | J14: 0 | K14: 0 | L14: 0 | P14: 0
A15: Blood Plasma | H15: 0 | I15: 0 | J15: 0 | K15: 0 | L15: 0 | P15: 0
A16: Brewers Grain | H16: 0 | I16: 0 | J16: 0 | K16: 0 | L16: 0 | P16: 0
A17: Canola, Full Fat | H17: 0 | I17: 0 | J17: 0 | K17: 0 | L17: 0 | P17: 0
A18: Canola Meal, Expelled | H18: 0 | I18: 0 | J18: 0 | K18: 0 | L18: 0 | P18: 0
A19: Canola Meal, Solvent Extracted | H19: 0 | I19: 0 | J19: 0 | K19: 0 | L19: 0 | P19: 0
A20: Casava Meal | H20: 0 | I20: 0 | J20: 0 | K20: 0 | L20: 0 | P20: 0
A21: Citrus Pulp | H21: 0 | I21: 0 | J21: 0 | K21: 0 | L21: 0 | P21: 0
A22: Copra Meal | H22: 0 | I22: 0 | J22: 0 | K22: 0 | L22: 0 | P22: 0
A23: Corn, Yellow Dent | B23: 3.73 | C23: $/bu | E23: 97.9293231 | F23: 28.49171889 | G23: 464.3919634 | H23: 590.8130054 | I23: 97.9293231 | J23: 492.8836823 | K23: 28.49171889 | L23: 464.3919634 | P23: =IF(SUM(E23:G222)=0,0,1) -> 1
A24: L-Lys-HCL | B24: 0.909 | C24: $/lb | E24: 0.1075 | F24: 0.168 | G24: 1.588352634 | H24: 1.863852634 | I24: 0.1075 | J24: 1.756352634 | K24: 0.168 | L24: 1.588352634 | P24: 1
A25: Vitamin premix with phytase | B25: 0.677 | C25: $/lb | E25: 0.3125 | F25: 0.10125 | G25: 0.6264763299 | H25: 1.04022633 | I25: 0.3125 | J25: 0.7277263299 | K25: 0.10125 | L25: 0.6264763299 | P25: 1
A26: Trace mineral premix | B26: 0.41 | C26: $/lb | E26: 0.1875 | F26: 0.06075 | G26: 0.6264763299 | H26: 0.8747263299 | I26: 0.1875 | J26: 0.6872263299 | K26: 0.06075 | L26: 0.6264763299 | P26: 1
A27: L-Thr | B27: 3.5102 | C27: $/lb | E27: 0.01875 | F27: 0.04455 | G27: 0.3744400224 | H27: 0.4377400224 | I27: 0.01875 | J27: 0.4189900224 | K27: 0.04455 | L27: 0.3744400224 | P27: 1
A28: DL-Met | B28: 4.359 | C28: $/lb | E28: 0.01875 | F28: 0.034425 | G28: 0.1034758814 | H28: 0.1566508814 | I28: 0.01875 | J28: 0.1379008814 | K28: 0.034425 | L28: 0.1034758814 | P28: 1
A29: Ronozyme PMX PLT (4625 FYT/g) | B29: 0.8332 | C29: $/lb | E29: 0 | F29: 0 | G29: 0.07115495961 | H29: 0.07115495961 | I29: 0 | J29: 0.07115495961 | K29: 0 | L29: 0.07115495961 | P29: 1
A30: Ractopamine 9 g/lb | B30: 37 | C30: $/lb | E30: 0 | F30: 0 | G30: 0.02178565512 | H30: 0.02178565512 | I30: 0 | J30: 0.02178565512 | K30: 0 | L30: 0.02178565512 | P30: 1
A31: Sow add pack | B31: 1.7 | C31: $/lb | E31: 0.3125 | F31: 0 | G31: 0 | H31: 0.3125 | I31: 0.3125 | J31: 0 | K31: 0 | L31: 0 | P31: 1
A32: L-Trp | C32: $/lb | E32: 0 | F32: 0 | G32: 0 | H32: 0 | I32: 0 | J32: 0 | K32: 0 | L32: 0 | P32: 1
A33: L-Val | B33: 7 | C33: $/lb | E33: 0 | F33: 0 | G33: 0 | H33: 0 | I33: 0 | J33: 0 | K33: 0 | L33: 0 | P33: 1
A34: L-Ileu | B34: 7 | C34: $/lb | E34: 0 | F34: 0 | G34: 0 | H34: 0 | I34: 0 | J34: 0 | K34: 0 | L34: 0 | P34: 1
A35: Methionine hydroxy analog | B35: 1.2 | C35: $/lb | E35: 0 | F35: 0 | G35: 0 | H35: 0 | I35: 0 | J35: 0 | K35: 0 | L35: 0 | P35: 1
A36: Glutamine | B36: 0 | C36: $/lb | E36: 0 | F36: 0 | G36: 0 | H36: 0 | I36: 0 | J36: 0 | K36: 0 | L36: 0 | P36: 1
A37: Glutamic acid | B37: 0 | C37: $/lb | E37: 0 | F37: 0 | G37: 0 | H37: =SUM(E37:G37) -> 0 | I37: =E37 -> 0 | J37: =F37+G37 -> 0 | K37: =F37 -> 0 | L37: =G37 -> 0 | P37: 1
A38: Biolys | B38: 0.7 | C38: $/lb | E38: 0 | F38: 0 | G38: 0 | H38: 0 | I38: 0 | J38: 0 | K38: 0 | L38: 0 | P38: 1
A39: Liquid lysine 60% | B39: 0.6 | C39: $/lb | E39: 0 | F39: 0 | G39: 0 | H39: 0 | I39: 0 | J39: 0 | K39: 0 | L39: 0 | P39: 1
A40: MHA dry | B40: 2.2 | C40: $/lb | E40: 0 | F40: 0 | G40: 0 | H40: 0 | I40: 0 | J40: 0 | K40: 0 | L40: 0 | P40: 1
A41: Phase 2 supplement (PEP2) | B41: 0.45 | C41: $/lb | E41: 0 | F41: 0 | G41: 0 | H41: 0 | I41: 0 | J41: 0 | K41: 0 | L41: 0 | P41: 1
A42: 2007 Starter base mix | B42: 0.36 | C42: $/lb | E42: 0 | F42: 0 | G42: 0 | H42: 0 | I42: 0 | J42: 0 | K42: 0 | L42: 0 | P42: 1
A43: 2007 Grow-finish base mix | B43: 0.22 | C43: $/lb | E43: 0 | F43: 0 | G43: 0 | H43: 0 | I43: 0 | J43: 0 | K43: 0 | L43: 0 | P43: 1
A44: Developer base mix | B44: 0.2 | C44: $/lb | E44: 0 | F44: 0 | G44: 0 | H44: 0 | I44: 0 | J44: 0 | K44: 0 | L44: 0 | P44: 1
A45: 2007 Sow base mix | B45: 0.22 | C45: $/lb | E45: 0 | F45: 0 | G45: 0 | H45: 0 | I45: 0 | J45: 0 | K45: 0 | L45: 0 | P45: 1
A46: Natural vitamin E 20,000 IU/lb | B46: 9.4375 | C46: $/lb | E46: 0 | F46: 0 | G46: 0 | H46: 0 | I46: 0 | J46: 0 | K46: 0 | L46: 0 | P46: 1
A47: Denegard | B47: 4.7286 | C47: $/lb | E47: 0 | F47: 0.091875 | G47: 0 | H47: 0.091875 | I47: 0 | J47: 0.091875 | K47: 0.091875 | L47: 0 | P47: 1
A48: CTC 50 | B48: 1.44 | C48: $/lb | E48: 0 | F48: 0.21 | G48: 0 | H48: 0.21 | I48: 0 | J48: 0.21 | K48: 0.21 | L48: 0 | P48: 1
A49: Vitamin premix without phytase | B49: 0.9 | C49: $/lb | E49: 0 | F49: 0 | G49: 0 | H49: 0 | I49: 0 | J49: 0 | K49: 0 | L49: 0 | P49: 1
A50: GF DDGS Base Mix | B50: 0.25 | C50: $/lb | E50: 0 | F50: 0 | G50: 0 | H50: 0 | I50: 0 | J50: 0 | K50: 0 | L50: 0 | P50: 1
A51: GF synthetics Base Mix | B51: 0.3 | C51: $/lb | E51: 0 | F51: 0 | G51: 0 | H51: 0 | I51: 0 | J51: 0 | K51: 0 | L51: 0 | P51: 1
A52: Choline chloride 60% | B52: 0.6 | C52: $/lb | E52: 0 | F52: 0 | G52: 0 | H52: 0 | I52: 0 | J52: 0 | K52: 0 | L52: 0 | P52: 1
A53: Natuphos 600 | B53: 0 | C53: $/lb | E53: 0 | F53: 0 | G53: 0 | H53: 0 | I53: 0 | J53: 0 | K53: 0 | L53: 0 | P53: 1
A54: Natuphos 1200 | B54: 0 | C54: $/lb | E54: 0 | F54: 0 | G54: 0 | H54: 0 | I54: 0 | J54: 0 | K54: 0 | L54: 0 | P54: 1
A55: Optiphos 2000 | B55: 0 | C55: $/lb | E55: 0 | F55: 0 | G55: 0 | H55: 0 | I55: 0 | J55: 0 | K55: 0 | L55: 0 | P55: =IF(SUM(E55:G254)=0,0,1) -> 1
A56: Phyzyme 1200 | B56: 0 | C56: $/lb | E56: 0 | F56: 0 | G56: 0 | H56: 0 | I56: 0 | J56: 0 | K56: 0 | L56: 0 | P56: 1
A57: Phyzyme 5000 | B57: 0 | C57: $/lb | E57: 0 | F57: 0 | G57: 0 | H57: 0 | I57: 0 | J57: 0 | K57: 0 | L57: 0 | P57: 1
A58: Ronozyme CT (10,000) | B58: 0 | C58: $/lb | E58: 0 | F58: 0 | G58: 0 | H58: 0 | I58: 0 | J58: 0 | K58: 0 | L58: 0 | P58: 1
A59: Ronozyme M (50,000) | B59: 0 | C59: $/lb | E59: 0 | F59: 0 | G59: 0 | H59: 0 | I59: 0 | J59: 0 | K59: 0 | L59: 0 | P59: 1
A60: Bentonite | B60: 0.15 | C60: $/lb | E60: 0 | F60: 0 | G60: 0 | H60: 0 | I60: 0 | J60: 0 | K60: 0 | L60: 0 | P60: 1
A61: Zinc oxide | B61: 1.1 | C61: $/lb | E61: 0 | F61: 0 | G61: 0 | H61: 0 | I61: 0 | J61: 0 | K61: 0 | L61: 0 | P61: 1
A62: Copper sulfate | B62: 1.1 | C62: $/lb | E62: 0 | F62: 0 | G62: 0 | H62: 0 | I62: 0 | J62: 0 | K62: 0 | L62: 0 | P62: 1
A63: Potassium chloride | B63: 0.175 | C63: $/lb | E63: 0 | F63: 0 | G63: 0 | H63: 0 | I63: 0 | J63: 0 | K63: 0 | L63: 0 | P63: 1
A64: Calcium chloride | B64: 0.2 | C64: $/lb | E64: 0 | F64: 0 | G64: 0 | H64: 0 | I64: 0 | J64: 0 | K64: 0 | L64: 0 | P64: 1
A65: Acidifier | B65: 1 | C65: $/lb | E65: 0 | F65: 0 | G65: 0 | H65: 0 | I65: 0 | J65: 0 | K65: 0 | L65: 0 | P65: 1
A66: Vitamin E, 20,000 IU | B66: 0.4 | C66: $/lb | E66: 0 | F66: 0 | G66: 0 | H66: 0 | I66: 0 | J66: 0 | K66: 0 | L66: 0 | P66: 1
A67: Phase 2 supplement D | B67: 0.4 | C67: $/lb | E67: 0 | F67: 0 | G67: 0 | H67: 0 | I67: 0 | J67: 0 | K67: 0 | L67: 0 | P67: 1
A68: DPS 50 | B68: 0.5 | C68: $/lb | E68: 0 | F68: 0 | G68: 0 | H68: 0 | I68: 0 | J68: 0 | K68: 0 | L68: 0 | P68: 1
A69: PEP2+ | B69: 0.6 | C69: $/lb | E69: 0 | F69: 0 | G69: 0 | H69: =SUM(E69:G69) -> 0 | I69: =E69 -> 0 | J69: =F69+G69 -> 0 | K69: =F69 -> 0 | L69: =G69 -> 0 | P69: 1
A70: PEP NS | B70: 0.5 | C70: $/lb | E70: 0 | F70: 0 | G70: 0 | H70: 0 | I70: 0 | J70: 0 | K70: 0 | L70: 0 | P70: 1
A71: Phase 2 supplement (Feb, 2014) | B71: 0.7362 | C71: $/lb | E71: 0 | F71: 2.1 | G71: 0 | H71: 2.1 | I71: 0 | J71: 2.1 | K71: 2.1 | L71: 0 | P71: 1
A72: Other ingredient | C72: $/lb | E72: 0 | F72: 0 | G72: 0 | H72: 0 | I72: 0 | J72: 0 | K72: 0 | L72: 0 | P72: 1
A73: Corn DDGS, 10.5% Oil | B73: 0.125 | C73: $/lb | E73: 0 | F73: 0 | G73: 0 | H73: 0 | I73: 0 | J73: 0 | K73: 0 | L73: 0 | P73: 1
A74: Corn DDGS, 4.5% Oil | B74: 0.125 | C74: $/lb | E74: 0 | F74: 0 | G74: 0 | H74: 0 | I74: 0 | J74: 0 | K74: 0 | L74: 0 | P74: 1
A75: Soybean Meal, Dehull, Sol Extr | B75: 363.15 | C75: $/ton | E75: 22.3056769 | F75: 14.95518111 | G75: 110.143669 | H75: 147.404527 | I75: 22.3056769 | J75: 125.0988501 | K75: 14.95518111 | L75: 110.143669 | P75: 1
A76: Limestone, ground | B76: 35.2 | C76: $/ton | E76: 1.6025 | F76: 0.46575 | G76: 5.295528 | H76: 7.363778 | I76: 1.6025 | J76: 5.761278 | K76: 0.46575 | L76: 5.295528 | P76: 1
A77: Sodium chloride | B77: =0.058*2000 -> 116 | C77: $/ton | E77: 0.58 | F77: 0.2025 | G77: 2.94196 | H77: 3.72446 | I77: 0.58 | J77: 3.14446 | K77: 0.2025 | L77: 2.94196 | P77: 1
A78: Calcium phosphate (monocalcium) | B78: 656 | C78: $/ton | E78: 1.625 | F78: 0.324 | G78: 2.20671783 | H78: 4.15571783 | I78: 1.625 | J78: 2.53071783 | K78: 0.324 | L78: 2.20671783 | P78: 1
A79: Soybean Meal, Dehull, Sol Extr | C79: $/ton | E79: 0 | F79: 0 | G79: 0 | H79: 0 | I79: 0 | J79: 0 | K79: 0 | L79: 0 | P79: 1
A80: Corn DDGS, 7.5% Oil | B80: 192 | C80: $/ton | E80: 0 | F80: 5.25 | G80: 0 | H80: 5.25 | I80: 0 | J80: 5.25 | K80: 5.25 | L80: 0 | P80: 1
A81: Complete nursery pellet | B81: 700 | C81: $/ton | E81: 0 | F81: 3 | G81: 0 | H81: 3 | I81: 0 | J81: 3 | K81: 3 | L81: 0 | P81: 1
A82: Corn, Nutridense | B82: 0.048 | E82: 0 | F82: 0 | G82: 0 | H82: 0 | I82: 0 | J82: 0 | K82: 0 | L82: 0 | P82: 1
A83: Corn Bran | E83: 0 | F83: 0 | G83: 0 | H83: 0 | I83: 0 | J83: 0 | K83: 0 | L83: 0 | P83: 1
A84: Corn DDG | E84: 0 | F84: 0 | G84: 0 | H84: 0 | I84: 0 | J84: 0 | K84: 0 | L84: 0 | P84: 1
A85: Corn DDGS, >10% Oil | B85: 0.125 | E85: 0 | F85: 0 | G85: 0 | H85: 0 | I85: 0 | J85: 0 | K85: 0 | L85: 0 | P85: 1
A86: Corn DDGS, >6 and <9% Oil | B86: 0.078 | E86: 0 | F86: 0 | G86: 0 | H86: 0 | I86: 0 | J86: 0 | K86: 0 | L86: 0 | P86: 1
A87: Corn DDGS, <4% Oil | E87: 0 | F87: 0 | G87: 0 | H87: 0 | I87: 0 | J87: 0 | K87: 0 | L87: 0 | P87: =IF(SUM(E87:G286)=0,0,1) -> 1
A88: Corn HP DDG | B88: 0.06 | E88: 0 | F88: 0 | G88: 0 | H88: 0 | I88: 0 | J88: 0 | K88: 0 | L88: 0 | P88: 1
A89: Soybean Meal, Dehulled, Expelled | E89: 0 | F89: 0 | G89: 0 | H89: 0 | I89: 0 | J89: 0 | K89: 0 | L89: 0 | P89: 1
A90: Soybean Meal, Solvent Extracted | E90: 0 | F90: 0 | G90: 0 | H90: 0 | I90: 0 | J90: 0 | K90: 0 | L90: 0 | P90: 1
A91: Corn Gluten Meal | E91: 0 | F91: 0 | G91: 0 | H91: 0 | I91: 0 | J91: 0 | K91: 0 | L91: 0 | P91: 1
A92: Corn Grits, Hominy Feed | B92: 0.045 | E92: 0 | F92: 0 | G92: 0 | H92: 0 | I92: 0 | J92: 0 | K92: 0 | L92: 0 | P92: 1
A93: Cotton Seeds, Fullfat | E93: 0 | F93: 0 | G93: 0 | H93: 0 | I93: 0 | J93: 0 | K93: 0 | L93: 0 | P93: 1
A94: Cotton Seed Meal | E94: 0 | F94: 0 | G94: 0 | H94: 0 | I94: 0 | J94: 0 | K94: 0 | L94: 0 | P94: 1
A95: Feather Meal | E95: 0 | F95: 0 | G95: 0 | H95: 0 | I95: 0 | J95: 0 | K95: 0 | L95: 0 | P95: 1
A96: Fish Meal Combined | B96: 0.7 | E96: 0 | F96: 0 | G96: 0 | H96: 0 | I96: 0 | J96: 0 | K96: 0 | L96: 0 | P96: 1
A97: Flaxseed | E97: 0 | F97: 0 | G97: 0 | H97: 0 | I97: 0 | J97: 0 | K97: 0 | L97: 0 | P97: 1
A98: Flaxseed Meal | E98: 0 | F98: 0 | G98: 0 | H98: 0 | I98: 0 | J98: 0 | K98: 0 | L98: 0 | P98: 1
A99: Lupins | E99: 0 | F99: 0 | G99: 0 | H99: 0 | I99: 0 | J99: 0 | K99: 0 | L99: 0 | P99: 1
A100: Meat Meal | E100: 0 | F100: 0 | G100: 0 | H100: 0 | I100: 0 | J100: 0 | K100: 0 | L100: 0 | P100: 1
A101: Meat and Bone Meal, P >4% | B101: 0.15 | E101: 0 | F101: 0 | G101: 0 | H101: =SUM(E101:G101) -> 0 | I101: =E101 -> 0 | J101: =F101+G101 -> 0 | K101: =F101 -> 0 | L101: =G101 -> 0 | P101: 1
A102: Milk, Casein | E102: 0 | F102: 0 | G102: 0 | H102: 0 | I102: 0 | J102: 0 | K102: 0 | L102: 0 | P102: 1
A103: Milk, Lactose | B103: 0.3 | E103: 0 | F103: 0 | G103: 0 | H103: 0 | I103: 0 | J103: 0 | K103: 0 | L103: 0 | P103: 1
A104: Milk, Skim Milk Powder | B104: 1.2 | E104: 0 | F104: 0 | G104: 0 | H104: 0 | I104: 0 | J104: 0 | K104: 0 | L104: 0 | P104: 1
A105: Milk, Whey Powder | B105: 0.55 | E105: 0 | F105: 0 | G105: 0 | H105: 0 | I105: 0 | J105: 0 | K105: 0 | L105: 0 | P105: 1
A106: Milk, Whey Permeate, 85% lactose | B106: 0.45 | E106: 0 | F106: 0 | G106: 0 | H106: 0 | I106: 0 | J106: 0 | K106: 0 | L106: 0 | P106: 1
A107: Milk, Whey Protein Concentrate | E107: 0 | F107: 0 | G107: 0 | H107: 0 | I107: 0 | J107: 0 | K107: 0 | L107: 0 | P107: 1
A108: Millet | E108: 0 | F108: 0 | G108: 0 | H108: 0 | I108: 0 | J108: 0 | K108: 0 | L108: 0 | P108: 1
A109: Molasses, Sugarbeet | E109: 0 | F109: 0 | G109: 0 | H109: 0 | I109: 0 | J109: 0 | K109: 0 | L109: 0 | P109: 1
A110: Molasses, Sugarcane | E110: 0 | F110: 0 | G110: 0 | H110: 0 | I110: 0 | J110: 0 | K110: 0 | L110: 0 | P110: 1
A111: Oats | E111: 0 | F111: 0 | G111: 0 | H111: 0 | I111: 0 | J111: 0 | K111: 0 | L111: 0 | P111: 1
A112: Oats, Naked | E112: 0 | F112: 0 | G112: 0 | H112: 0 | I112: 0 | J112: 0 | K112: 0 | L112: 0 | P112: 1
A113: Oat Groats | B113: 0.175 | E113: 0 | F113: 0 | G113: 0 | H113: 0 | I113: 0 | J113: 0 | K113: 0 | L113: 0 | P113: 1
A114: Peanut Meal, Expelled | E114: 0 | F114: 0 | G114: 0 | H114: 0 | I114: 0 | J114: 0 | K114: 0 | L114: 0 | P114: 1
A115: Peanut Meal, Extracted | E115: 0 | F115: 0 | G115: 0 | H115: 0 | I115: 0 | J115: 0 | K115: 0 | L115: 0 | P115: 1
A116: Peas, Field Peas | B116: 0.08 | E116: 0 | F116: 0 | G116: 0 | H116: 0 | I116: 0 | J116: 0 | K116: 0 | L116: 0 | P116: 1
A117: Pea Protein Concentrate | E117: 0 | F117: 0 | G117: 0 | H117: 0 | I117: 0 | J117: 0 | K117: 0 | L117: 0 | P117: 1
A118: Potato Protein Concentrate | E118: 0 | F118: 0 | G118: 0 | H118: 0 | I118: 0 | J118: 0 | K118: 0 | L118: 0 | P118: 1
A119: Poultry Byproduct | B119: 0.12 | E119: 0 | F119: 0 | G119: 0 | H119: 0 | I119: 0 | J119: 0 | K119: 0 | L119: 0 | P119: =IF(SUM(E119:G318)=0,0,1) -> 1
A120: Rice | E120: 0 | F120: 0 | G120: 0 | H120: 0 | I120: 0 | J120: 0 | K120: 0 | L120: 0 | P120: 1
A121: Rice Bran | E121: 0 | F121: 0 | G121: 0 | H121: 0 | I121: 0 | J121: 0 | K121: 0 | L121: 0 | P121: 1
A122: Rice Bran, Defatted | E122: 0 | F122: 0 | G122: 0 | H122: 0 | I122: 0 | J122: 0 | K122: 0 | L122: 0 | P122: 1
A123: Rice, Broken | E123: 0 | F123: 0 | G123: 0 | H123: 0 | I123: 0 | J123: 0 | K123: 0 | L123: 0 | P123: 1
A124: Rye | E124: 0 | F124: 0 | G124: 0 | H124: 0 | I124: 0 | J124: 0 | K124: 0 | L124: 0 | P124: 1
A125: Sesame Meal | E125: 0 | F125: 0 | G125: 0 | H125: 0 | I125: 0 | J125: 0 | K125: 0 | L125: 0 | P125: 1
A126: Sorghum | B126: 0.1 | E126: 0 | F126: 0 | G126: 0 | H126: 0 | I126: 0 | J126: 0 | K126: 0 | L126: 0 | P126: 1
A127: Soybeans, Full Fat | B127: 0.2 | E127: 0 | F127: 0 | G127: 0 | H127: 0 | I127: 0 | J127: 0 | K127: 0 | L127: 0 | P127: 1
A128: Soybeans, High Protein, Full Fat | E128: 0 | F128: 0 | G128: 0 | H128: 0 | I128: 0 | J128: 0 | K128: 0 | L128: 0 | P128: 1
A129: Soybeans, Low Oligosaccharide, Full Fat | E129: 0 | F129: 0 | G129: 0 | H129: 0 | I129: 0 | J129: 0 | K129: 0 | L129: 0 | P129: 1
A130: Soybean Meal, High Protein, Expelled | E130: 0 | F130: 0 | G130: 0 | H130: 0 | I130: 0 | J130: 0 | K130: 0 | L130: 0 | P130: 1
A131: Soybean Meal, Low Oligosacch, Expell | E131: 0 | F131: 0 | G131: 0 | H131: 0 | I131: 0 | J131: 0 | K131: 0 | L131: 0 | P131: 1
A132: Soybean Meal, Expelled | E132: 0 | F132: 0 | G132: 0 | H132: 0 | I132: 0 | J132: 0 | K132: 0 | L132: 0 | P132: 1
A133: Soybean Meal, Dehulled, Expelled | B133: 0.175 | E133: 0 | F133: 0 | G133: 0 | H133: =SUM(E133:G133) -> 0 | I133: =E133 -> 0 | J133: =F133+G133 -> 0 | K133: =F133 -> 0 | L133: =G133 -> 0 | P133: 1
A134: Soybean Meal, Solvent Extracted | B134: 0.155 | E134: 0 | F134: 0 | G134: 0 | H134: 0 | I134: 0 | J134: 0 | K134: 0 | L134: 0 | P134: 1
A135: Soybean Meal, High Prot, Dehull, Solv Extr | B135: 0.32 | E135: 0 | F135: 0 | G135: 0 | H135: 0 | I135: 0 | J135: 0 | K135: 0 | L135: 0 | P135: 1
A136: Soybean Meal, Enzyme Treated | B136: 0.02 | E136: 0 | F136: 0 | G136: 0 | H136: 0 | I136: 0 | J136: 0 | K136: 0 | L136: 0 | P136: 1
A137: Soybean Meal, Fermented | B137: 0.035 | E137: 0 | F137: 0 | G137: 0 | H137: 0 | I137: 0 | J137: 0 | K137: 0 | L137: 0 | P137: 1
A138: Soybean Hulls | B138: 0.048 | E138: 0 | F138: 0 | G138: 0 | H138: 0 | I138: 0 | J138: 0 | K138: 0 | L138: 0 | P138: 1
A139: Soy Protein Concentrate | B139: 0.55 | E139: 0 | F139: 0 | G139: 0 | H139: 0 | I139: 0 | J139: 0 | K139: 0 | L139: 0 | P139: 1
A140: Soy Protein Isolate | B140: 0.175 | E140: 0 | F140: 0 | G140: 0 | H140: 0 | I140: 0 | J140: 0 | K140: 0 | L140: 0 | P140: 1
A141: Sugar Beet Pulp | B141: 0.2 | E141: 0 | F141: 0 | G141: 0 | H141: 0 | I141: 0 | J141: 0 | K141: 0 | L141: 0 | P141: 1
A142: Sunflower, Full Fat | B142: 0 | E142: 0 | F142: 0 | G142: 0 | H142: 0 | I142: 0 | J142: 0 | K142: 0 | L142: 0 | P142: 1
A143: Sunflower Meal, Solvent Extracted | B143: 0 | E143: 0 | F143: 0 | G143: 0 | H143: 0 | I143: 0 | J143: 0 | K143: 0 | L143: 0 | P143: 1
A144: Sunflower Meal, Dehulled, Solvent Extr | B144: 0 | E144: 0 | F144: 0 | G144: 0 | H144: 0 | I144: 0 | J144: 0 | K144: 0 | L144: 0 | P144: 1
A145: Triticale | B145: 0 | E145: 0 | F145: 0 | G145: 0 | H145: 0 | I145: 0 | J145: 0 | K145: 0 | L145: 0 | P145: 1
A146: Wheat, Hard Red | B146: 0.06 | E146: 0 | F146: 0 | G146: 0 | H146: 0 | I146: 0 | J146: 0 | K146: 0 | L146: 0 | P146: 1
A147: Wheat, Soft Red | B147: 0.45 | E147: 0 | F147: 0 | G147: 0 | H147: 0 | I147: 0 | J147: 0 | K147: 0 | L147: 0 | P147: 1
A148: Wheat Bran | B148: 0.05 | E148: 0 | F148: 0 | G148: 0 | H148: 0 | I148: 0 | J148: 0 | K148: 0 | L148: 0 | P148: 1
A149: Wheat Middlings | B149: 0.12 | E149: 0 | F149: 0 | G149: 0 | H149: 0 | I149: 0 | J149: 0 | K149: 0 | L149: 0 | P149: 1
A150: Wheat Shorts | B150: 0 | E150: 0 | F150: 0 | G150: 0 | H150: 0 | I150: 0 | J150: 0 | K150: 0 | L150: 0 | P150: 1
A151: Wheat DDGS | B151: 0 | E151: 0 | F151: 0 | G151: 0 | H151: 0 | I151: 0 | J151: 0 | K151: 0 | L151: 0 | P151: =IF(SUM(E151:G350)=0,0,1) -> 1
A152: Yeast, Brewers' Yeast | B152: 0 | E152: 0 | F152: 0 | G152: 0 | H152: 0 | I152: 0 | J152: 0 | K152: 0 | L152: 0 | P152: 1
A153: Yeast, Single Cell Protein | B153: 0 | E153: 0 | F153: 0 | G153: 0 | H153: 0 | I153: 0 | J153: 0 | K153: 0 | L153: 0 | P153: 1
A154: Beef Tallow | B154: 0.4 | E154: 0 | F154: 0 | G154: 0 | H154: 0 | I154: 0 | J154: 0 | K154: 0 | L154: 0 | P154: 1
A155: Choice White Grease | B155: 0.42 | E155: 0 | F155: 0 | G155: 0 | H155: 0 | I155: 0 | J155: 0 | K155: 0 | L155: 0 | P155: 1
A156: Poultry Fat | B156: 2.7 | E156: 0 | F156: 0 | G156: 0 | H156: 0 | I156: 0 | J156: 0 | K156: 0 | L156: 0 | P156: 1
A157: Lard | B157: 1.25 | E157: 0 | F157: 0 | G157: 0 | H157: 0 | I157: 0 | J157: 0 | K157: 0 | L157: 0 | P157: 1
A158: Restaurant Grease | B158: 0.38 | E158: 0 | F158: 0 | G158: 0 | H158: 0 | I158: 0 | J158: 0 | K158: 0 | L158: 0 | P158: 1
A159: Canola oil | B159: 1.2 | E159: 0 | F159: 0 | G159: 0 | H159: 0 | I159: 0 | J159: 0 | K159: 0 | L159: 0 | P159: 1
A160: Coconut oil | B160: 7 | E160: 0 | F160: 0 | G160: 0 | H160: 0 | I160: 0 | J160: 0 | K160: 0 | L160: 0 | P160: 1
A161: Corn oil | B161: 7 | E161: 0 | F161: 0 | G161: 0 | H161: 0 | I161: 0 | J161: 0 | K161: 0 | L161: 0 | P161: 1
A162: Palm Kernel oil | B162: 0 | E162: 0 | F162: 0 | G162: 0 | H162: 0 | I162: 0 | J162: 0 | K162: 0 | L162: 0 | P162: 1
A163: Soybean oil | B163: 0.38 | E163: 0 | F163: 0 | G163: 0 | H163: 0 | I163: 0 | J163: 0 | K163: 0 | L163: 0 | P163: 1
A164: Soybean Lecithin | B164: 0.7 | E164: 0 | F164: 0 | G164: 0 | H164: 0 | I164: 0 | J164: 0 | K164: 0 | L164: 0 | P164: 1
A165: Sunflower oil | B165: 0.6 | E165: 0 | F165: 0 | G165: 0 | H165: =SUM(E165:G165) -> 0 | I165: =E165 -> 0 | J165: =F165+G165 -> 0 | K165: =F165 -> 0 | L165: =G165 -> 0 | P165: 1
A166: Fat, A/V blend | B166: 2.2 | E166: 0 | F166: 0 | G166: 0 | H166: 0 | I166: 0 | J166: 0 | K166: 0 | L166: 0 | P166: 1
A167: Calcium carbonate | B167: 0 | E167: 0 | F167: 0 | G167: 0 | H167: 0 | I167: 0 | J167: 0 | K167: 0 | L167: 0 | P167: 1
A168: Calcium phosphate (tricalcium) | B168: 0 | E168: 0 | F168: 0 | G168: 0 | H168: 0 | I168: 0 | J168: 0 | K168: 0 | L168: 0 | P168: 1
A169: Calcium phosphate (dicalcium) | B169: 0.3 | E169: 0 | F169: 0 | G169: 0 | H169: 0 | I169: 0 | J169: 0 | K169: 0 | L169: 0 | P169: 1
A170: Calcium sulfate, dihydrate | B170: 0 | E170: 0 | F170: 0 | G170: 0 | H170: 0 | I170: 0 | J170: 0 | K170: 0 | L170: 0 | P170: 1
A171: Magnesium phosphate | B171: 0 | E171: 0 | F171: 0 | G171: 0 | H171: 0 | I171: 0 | J171: 0 | K171: 0 | L171: 0 | P171: 1
A172: Sodium carbonate | B172: 0 | E172: 0 | F172: 0 | G172: 0 | H172: 0 | I172: 0 | J172: 0 | K172: 0 | L172: 0 | P172: 1
A173: Sodium bicarbonate | B173: 0 | E173: 0 | F173: 0 | G173: 0 | H173: 0 | I173: 0 | J173: 0 | K173: 0 | L173: 0 | P173: 1
A174: Sodium phosphate, monobasic | B174: 0 | E174: 0 | F174: 0 | G174: 0 | H174: 0 | I174: 0 | J174: 0 | K174: 0 | L174: 0 | P174: 1
A175: Sodium sulfate, decahydrate | B175: 32 | E175: 0 | F175: 0 | G175: 0 | H175: 0 | I175: 0 | J175: 0 | K175: 0 | L175: 0 | P175: 1
A176: Other ingredient | E176: 0 | F176: 0 | G176: 0 | H176: 0 | I176: 0 | J176: 0 | K176: 0 | L176: 0 | P176: 1
A177: Other ingredient | E177: 0 | F177: 0 | G177: 0 | H177: 0 | I177: 0 | J177: 0 | K177: 0 | L177: 0 | P177: 1
A178: Other ingredient | E178: 0 | F178: 0 | G178: 0 | H178: 0 | I178: 0 | J178: 0 | K178: 0 | L178: 0 | P178: 1
A179: Other ingredient | E179: 0 | F179: 0 | G179: 0 | H179: 0 | I179: 0 | J179: 0 | K179: 0 | L179: 0 | P179: 1
A180: Other ingredient | E180: 0 | F180: 0 | G180: 0 | H180: 0 | I180: 0 | J180: 0 | K180: 0 | L180: 0 | P180: 1
A181: Other ingredient | E181: 0 | F181: 0 | G181: 0 | H181: 0 | I181: 0 | J181: 0 | K181: 0 | L181: 0 | P181: 1
A182: Other ingredient | E182: 0 | F182: 0 | G182: 0 | H182: 0 | I182: 0 | J182: 0 | K182: 0 | L182: 0 | P182: 1
A183: Other ingredient | E183: 0 | F183: 0 | G183: 0 | H183: 0 | I183: 0 | J183: 0 | K183: 0 | L183: 0 | P183: =IF(SUM(E183:G382)=0,0,1) -> 1
A184: Other ingredient | E184: 0 | F184: 0 | G184: 0 | H184: 0 | I184: 0 | J184: 0 | K184: 0 | L184: 0 | P184: 1
A185: Other ingredient | E185: 0 | F185: 0 | G185: 0 | H185: 0 | I185: 0 | J185: 0 | K185: 0 | L185: 0 | P185: 1
A186: Other ingredient | E186: 0 | F186: 0 | G186: 0 | H186: 0 | I186: 0 | J186: 0 | K186: 0 | L186: 0 | P186: 1
A187: Other ingredient | B187: 0 | E187: 0 | F187: 0 | G187: 0 | H187: 0 | I187: 0 | J187: 0 | K187: 0 | L187: 0 | P187: 1
H188: 0 | I188: 0 | J188: 0 | K188: 0 | L188: 0 | P188: 1
E189: =SUM(E23:E188) -> 125 | F189: =SUM(F23:F188) -> 55.5 | G189: 588.392 | H189: =SUM(H23:H188) -> 768.892 | I189: =SUM(I23:I188) -> 125 | J189: 643.892 | K189: 55.5 | L189: 588.392
H192: =H193+H194 -> 25.42446764 | I192: =I193+I194 -> 4.765 | J192: 20.65946764 | K192: 6.8031 | L192: 13.85636764
C193: $/lb | H193: =SUM(H24:H71) -> 7.180511812 | I193: =SUM(I24:I71) -> 0.9575 | J193: 6.223011812 | K193: 2.81085 | L193: 3.412161812
C194: $/ton | H194: =SUM(H76:H78)+H81 -> 18.24395583 | I194: =SUM(I76:I78)+I81 -> 3.8075 | J194: 14.43645583 | K194: 3.99225 | L194: 10.44420583
H195: =SUMPRODUCT($B$24:$B$71,H24:H71)/H193 -> 1.205481613 | I195: =SUMPRODUCT($B$24:$B$71,I24:I71)/I193 -> 1.112221932 | J195: 1.219830958 | K195: 1.008756732 | L195: 1.393708406
H196: =(SUMPRODUCT($B$76:$B$78,H76:H78)+$B$81*H81)/2000/H194 -> 0.151211538 | I196: =(SUMPRODUCT($B$76:$B$78,I76:I78)+$B$81*I81)/2000/I194 -> 0.1562295469 | J196: 0.1498880782 | K196: 0.2946243847 | L196: 0.09456328582
C197: $/lb: | H197: =SUMPRODUCT(H195:H196,H193:H194)/H192 -> 0.448964035 | I197: =SUMPRODUCT(I195:I196,I193:I194)/I192 -> 0.3483308499 | J197: =SUMPRODUCT(J195:J196,J193:J194)/J192 -> 0.4721745618 | K197: 0.5896838294 | L197: 0.4144807044
